Organisation Name,Directorate,Supplier Name,Supplier ID,Expense type,Best Value Accounting Code of Practice,Document/Invoice number,Clearing/Payment date,Invoice Amount
Buckinghamshire Council,"Planning, Growth & Sustainability",TENCER LIMITED,1000023,General Repairs & Maintenance,Controllable Premises,7002976643,04/01/2023,1511
Buckinghamshire Council,Communities,Neales Taxis Ltd,1000473,Contracts (Mainstream),Transport,4101025761,04/01/2023,1999.6
Buckinghamshire Council,Communities,Neales Taxis Ltd,1000473,Contracts (Mainstream),Transport,4101025761,04/01/2023,0.04
Buckinghamshire Council,Communities,Neales Taxis Ltd,1000473,Contracts (Mainstream),Transport,4101025762,04/01/2023,2017.97
Buckinghamshire Council,Communities,Neales Taxis Ltd,1000473,Contracts (Mainstream),Transport,4101025763,04/01/2023,2837.65
Buckinghamshire Council,Adults and Health,Neales Taxis Ltd,1000473,Transport - Day Care - external,Transport,4101025764,04/01/2023,1430
Buckinghamshire Council,Adults and Health,Neales Taxis Ltd,1000473,Transport - Day Care - external,Transport,4101025765,04/01/2023,862.02
Buckinghamshire Council,Adults and Health,Neales Taxis Ltd,1000473,Transport - Day Care - external,Transport,4101025766,04/01/2023,878.22
Buckinghamshire Council,Communities,Neales Taxis Ltd,1000473,Contracts (Mainstream),Transport,4101025782,04/01/2023,1349.9
Buckinghamshire Council,Communities,Neales Taxis Ltd,1000473,Contracts (Mainstream),Transport,4101025782,04/01/2023,0.03
Buckinghamshire Council,Communities,Neales Taxis Ltd,1000473,Contracts (Mainstream),Transport,4101025783,04/01/2023,2738
Buckinghamshire Council,Communities,Neales Taxis Ltd,1000473,Contracts (Mainstream),Transport,4101025783,04/01/2023,0.03
Buckinghamshire Council,Communities,Neales Taxis Ltd,1000473,Contracts (Mainstream),Transport,4101025784,04/01/2023,938.15
Buckinghamshire Council,Communities,Neales Taxis Ltd,1000473,Contracts (Mainstream),Transport,4101025784,04/01/2023,0.03
Buckinghamshire Council,Communities,Neales Taxis Ltd,1000473,Contracts (Mainstream),Transport,4101025785,04/01/2023,1268.1
Buckinghamshire Council,Communities,Neales Taxis Ltd,1000473,Contracts (Mainstream),Transport,4101025785,04/01/2023,0.03
Buckinghamshire Council,Communities,Neales Taxis Ltd,1000473,Contracts (Mainstream),Transport,4101025786,04/01/2023,1392.35
Buckinghamshire Council,Communities,Neales Taxis Ltd,1000473,Contracts (Mainstream),Transport,4101025786,04/01/2023,0.04
Buckinghamshire Council,Communities,Neales Taxis Ltd,1000473,Contracts (Mainstream),Transport,4101025787,04/01/2023,743.07
Buckinghamshire Council,Communities,Neales Taxis Ltd,1000473,Contracts (Mainstream),Transport,4101025788,04/01/2023,1369.9
Buckinghamshire Council,Communities,Neales Taxis Ltd,1000473,Contracts (Mainstream),Transport,4101025789,04/01/2023,2700.07
Buckinghamshire Council,Communities,Neales Taxis Ltd,1000473,Contracts (Mainstream),Transport,4101025790,04/01/2023,1111.16
Buckinghamshire Council,Communities,Neales Taxis Ltd,1000473,Contracts (Mainstream),Transport,4101025791,04/01/2023,1936.06
Buckinghamshire Council,Communities,Neales Taxis Ltd,1000473,Contracts (Mainstream),Transport,4101025792,04/01/2023,1523.91
Buckinghamshire Council,Communities,Neales Taxis Ltd,1000473,Contracts (Mainstream),Transport,4101025793,04/01/2023,1201.2
Buckinghamshire Council,Communities,Neales Taxis Ltd,1000473,Contracts (Mainstream),Transport,4101025794,04/01/2023,2446.25
Buckinghamshire Council,Communities,Neales Taxis Ltd,1000473,Contracts (Mainstream),Transport,4101025795,04/01/2023,1227.4
Buckinghamshire Council,Communities,Neales Taxis Ltd,1000473,Contracts (Mainstream),Transport,4101025795,04/01/2023,0.03
Buckinghamshire Council,Communities,Neales Taxis Ltd,1000473,Contracts (Mainstream),Transport,4101025796,04/01/2023,1519.25
Buckinghamshire Council,Communities,Neales Taxis Ltd,1000473,Contracts (Mainstream),Transport,4101025797,04/01/2023,1396.65
Buckinghamshire Council,Communities,Neales Taxis Ltd,1000473,Contracts (Mainstream),Transport,4101025797,04/01/2023,0.03
Buckinghamshire Council,Communities,Neales Taxis Ltd,1000473,Contracts (Mainstream),Transport,4101025842,04/01/2023,2093.95
Buckinghamshire Council,Communities,Neales Taxis Ltd,1000473,Contracts (Mainstream),Transport,4101025842,04/01/2023,0.04
Buckinghamshire Council,Communities,Neales Taxis Ltd,1000473,Contracts (Mainstream),Transport,4101025843,04/01/2023,1913.55
Buckinghamshire Council,Communities,Neales Taxis Ltd,1000473,Contracts (Mainstream),Transport,4101025844,04/01/2023,1248.56
Buckinghamshire Council,Communities,Neales Taxis Ltd,1000473,Contracts (Mainstream),Transport,4101025845,04/01/2023,1052.86
Buckinghamshire Council,Communities,Neales Taxis Ltd,1000473,Contracts (Mainstream),Transport,4101025846,04/01/2023,2302.41
Buckinghamshire Council,Communities,Neales Taxis Ltd,1000473,Contracts (Mainstream),Transport,4101025847,04/01/2023,1761.3
Buckinghamshire Council,Communities,Neales Taxis Ltd,1000473,Contracts (Mainstream),Transport,4101025848,04/01/2023,1648
Buckinghamshire Council,Communities,Neales Taxis Ltd,1000473,Contracts (Mainstream),Transport,4101025849,04/01/2023,1648
Buckinghamshire Council,Communities,Neales Taxis Ltd,1000473,Contracts (Mainstream),Transport,4101025850,04/01/2023,2351.42
Buckinghamshire Council,Communities,Neales Taxis Ltd,1000473,Contracts (Mainstream),Transport,4101025851,04/01/2023,2935.5
Buckinghamshire Council,Communities,Neales Taxis Ltd,1000473,Contracts (Mainstream),Transport,4101025852,04/01/2023,1565.6
Buckinghamshire Council,Communities,Neales Taxis Ltd,1000473,Contracts (Mainstream),Transport,4101025853,04/01/2023,1700.4
Buckinghamshire Council,Communities,Neales Taxis Ltd,1000473,Contracts (Mainstream),Transport,4101025853,04/01/2023,0.03
Buckinghamshire Council,Communities,Neales Taxis Ltd,1000473,Contracts (Mainstream),Transport,4101025854,04/01/2023,4635
Buckinghamshire Council,Communities,Neales Taxis Ltd,1000473,Contracts (Mainstream),Transport,4101025855,04/01/2023,967.17
Buckinghamshire Council,Communities,Neales Taxis Ltd,1000473,Contracts (Mainstream),Transport,4101025856,04/01/2023,2935.5
Buckinghamshire Council,Communities,Neales Taxis Ltd,1000473,Contracts (Mainstream),Transport,4101025857,04/01/2023,2935.5
Buckinghamshire Council,Communities,Neales Taxis Ltd,1000473,Contracts (Mainstream),Transport,4101025858,04/01/2023,1328.8
Buckinghamshire Council,Communities,Neales Taxis Ltd,1000473,Contracts (Mainstream),Transport,4101025921,04/01/2023,1056.75
Buckinghamshire Council,Communities,Neales Taxis Ltd,1000473,Contracts (Mainstream),Transport,4101025921,04/01/2023,0.03
Buckinghamshire Council,Communities,Neales Taxis Ltd,1000473,Contracts (Mainstream),Transport,4101025922,04/01/2023,2935.5
Buckinghamshire Council,Communities,Neales Taxis Ltd,1000473,Contracts (Mainstream),Transport,4101025923,04/01/2023,958.5
Buckinghamshire Council,Communities,Neales Taxis Ltd,1000473,Contracts (Mainstream),Transport,4101025923,04/01/2023,0.03
Buckinghamshire Council,Communities,Neales Taxis Ltd,1000473,Contracts (Mainstream),Transport,4101025924,04/01/2023,1328.21
Buckinghamshire Council,Communities,Neales Taxis Ltd,1000473,Contracts (Mainstream),Transport,4101025925,04/01/2023,2472
Buckinghamshire Council,Adults and Health,Neales Taxis Ltd,1000473,Transport - Day Care - external,Transport,4101025926,04/01/2023,4133.36
Buckinghamshire Council,Adults and Health,Neales Taxis Ltd,1000473,Transport - Day Care - external,Transport,4101025927,04/01/2023,2391.45
Buckinghamshire Council,Adults and Health,Neales Taxis Ltd,1000473,Transport - Day Care - external,Transport,4101025927,04/01/2023,0.03
Buckinghamshire Council,Communities,Neales Taxis Ltd,1000473,Contracts (Mainstream),Transport,4101025928,04/01/2023,1111.16
Buckinghamshire Council,Communities,Neales Taxis Ltd,1000473,Contracts (Mainstream),Transport,4101025929,04/01/2023,2112.4
Buckinghamshire Council,Communities,Neales Taxis Ltd,1000473,Contracts (Mainstream),Transport,4101025929,04/01/2023,0.04
Buckinghamshire Council,Communities,Neales Taxis Ltd,1000473,Contracts (Mainstream),Transport,4101025930,04/01/2023,2295.95
Buckinghamshire Council,Communities,Neales Taxis Ltd,1000473,Contracts (Mainstream),Transport,4101025930,04/01/2023,0.04
Buckinghamshire Council,Communities,Neales Taxis Ltd,1000473,Contracts (Mainstream),Transport,4101025931,04/01/2023,1621.32
Buckinghamshire Council,Communities,Neales Taxis Ltd,1000473,Contracts (Mainstream),Transport,4101025932,04/01/2023,1741.6
Buckinghamshire Council,Communities,Neales Taxis Ltd,1000473,Contracts (Mainstream),Transport,4101025932,04/01/2023,0.04
Buckinghamshire Council,Communities,Neales Taxis Ltd,1000473,Contracts (Mainstream),Transport,4101025966,04/01/2023,762.8
Buckinghamshire Council,Communities,Neales Taxis Ltd,1000473,Contracts (Mainstream),Transport,4101025966,04/01/2023,0.03
Buckinghamshire Council,Adults and Health,Neales Taxis Ltd,1000473,Transport - Day Care - external,Transport,4101025968,04/01/2023,543.65
Buckinghamshire Council,Adults and Health,Neales Taxis Ltd,1000473,Transport - Day Care - external,Transport,4101025968,04/01/2023,0.03
Buckinghamshire Council,Communities,Neales Taxis Ltd,1000473,Contracts (Mainstream),Transport,4101025969,04/01/2023,1442
Buckinghamshire Council,Communities,Neales Taxis Ltd,1000473,Contracts (Mainstream),Transport,4101025970,04/01/2023,780.12
Buckinghamshire Council,Communities,Neales Taxis Ltd,1000473,Contracts (Mainstream),Transport,4101025971,04/01/2023,7210
Buckinghamshire Council,Communities,Neales Taxis Ltd,1000473,Contracts (Mainstream),Transport,4101025972,04/01/2023,4609.66
Buckinghamshire Council,Communities,Neales Taxis Ltd,1000473,Contracts (Mainstream),Transport,4101025973,04/01/2023,2758.1
Buckinghamshire Council,Communities,Neales Taxis Ltd,1000473,Contracts (Mainstream),Transport,4101025973,04/01/2023,0.03
Buckinghamshire Council,Communities,Neales Taxis Ltd,1000473,Contracts (Mainstream),Transport,4101026000,04/01/2023,2052.85
Buckinghamshire Council,Communities,Neales Taxis Ltd,1000473,Contracts (Mainstream),Transport,4101026000,04/01/2023,0.04
Buckinghamshire Council,Communities,Neales Taxis Ltd,1000473,Contracts (Mainstream),Transport,4101026001,04/01/2023,742.45
Buckinghamshire Council,Communities,Neales Taxis Ltd,1000473,Contracts (Mainstream),Transport,4101026001,04/01/2023,0.03
Buckinghamshire Council,Communities,Neales Taxis Ltd,1000473,Contracts (Mainstream),Transport,4101026002,04/01/2023,1638.55
Buckinghamshire Council,Communities,Neales Taxis Ltd,1000473,Contracts (Mainstream),Transport,4101026002,04/01/2023,0.04
Buckinghamshire Council,Communities,Neales Taxis Ltd,1000473,Contracts (Mainstream),Transport,4101026003,04/01/2023,3697.55
Buckinghamshire Council,Communities,Neales Taxis Ltd,1000473,Contracts (Mainstream),Transport,4101026004,04/01/2023,1957
Buckinghamshire Council,Communities,Neales Taxis Ltd,1000473,Contracts (Mainstream),Transport,4101026005,04/01/2023,1660.31
Buckinghamshire Council,Communities,Neales Taxis Ltd,1000473,Contracts (Mainstream),Transport,4101026006,04/01/2023,3522.6
Buckinghamshire Council,Communities,Neales Taxis Ltd,1000473,Contracts (Mainstream),Transport,4101026007,04/01/2023,1330.76
Buckinghamshire Council,Communities,Neales Taxis Ltd,1000473,Contracts (Mainstream),Transport,4101026008,04/01/2023,2837.65
Buckinghamshire Council,Communities,Neales Taxis Ltd,1000473,Contracts (Mainstream),Transport,4101026009,04/01/2023,1467.75
Buckinghamshire Council,Communities,Neales Taxis Ltd,1000473,Contracts (Mainstream),Transport,4101026010,04/01/2023,1957
Buckinghamshire Council,Communities,Neales Taxis Ltd,1000473,Contracts (Mainstream),Transport,4101026012,04/01/2023,889.5
Buckinghamshire Council,Communities,PREMIUM MINIBUSES & CARS LTD,1000478,Contracts (Mainstream),Transport,4101025878,04/01/2023,1513
Buckinghamshire Council,Children's Services,PREMIUM MINIBUSES & CARS LTD,1000478,Transport - Day Care - external,Transport,4101025880,04/01/2023,2990
Buckinghamshire Council,Communities,PREMIUM MINIBUSES & CARS LTD,1000478,Contracts (Mainstream),Transport,4101025884,04/01/2023,672.9
Buckinghamshire Council,"Planning, Growth & Sustainability",INDUSTRIAL PIPE SERVS(2003)LTD,1000494,General Repairs & Maintenance,Controllable Premises,7002976705,04/01/2023,3750
Buckinghamshire Council,Communities,GILBERTS OF CHESHAM,1000556,Contracts (Mainstream),Transport,4101025864,04/01/2023,11993.32
Buckinghamshire Council,Communities,GILBERTS OF CHESHAM,1000556,Contracts (Mainstream),Transport,4101025891,04/01/2023,10519.86
Buckinghamshire Council,Children's Services,GILBERTS OF CHESHAM,1000556,Sec 20/31: Transport,Transfer Payments (Grants & Assistance),4101025915,04/01/2023,1939
Buckinghamshire Council,"Planning, Growth & Sustainability",E E KEEN & SONS,1000567,General Repairs & Maintenance,Controllable Premises,7002976662,04/01/2023,1783
Buckinghamshire Council,"Planning, Growth & Sustainability",E E KEEN & SONS,1000567,General Repairs & Maintenance,Controllable Premises,7002976663,04/01/2023,1783
Buckinghamshire Council,Resources,THE PERTEMPS GROUP OF COMPANIES,1000901,Agency Worker,Controllable Employees,3300487926,04/01/2023,616.3
Buckinghamshire Council,Children's Services,THE PERTEMPS GROUP OF COMPANIES,1000901,Agency Worker,Controllable Employees,3300487927,04/01/2023,935.66
Buckinghamshire Council,"Planning, Growth & Sustainability",THE PERTEMPS GROUP OF COMPANIES,1000901,Agency Worker,Controllable Employees,3300487930,04/01/2023,2674.23
Buckinghamshire Council,"Planning, Growth & Sustainability",THE PERTEMPS GROUP OF COMPANIES,1000901,Agency Worker,Controllable Employees,3300487931,04/01/2023,724.5
Buckinghamshire Council,"Planning, Growth & Sustainability",THE PERTEMPS GROUP OF COMPANIES,1000901,Agency Worker,Controllable Employees,3300487932,04/01/2023,1202.12
Buckinghamshire Council,Deputy Chief Executive,THE PERTEMPS GROUP OF COMPANIES,1000901,Agency Worker,Controllable Employees,3300487933,04/01/2023,2679.17
Buckinghamshire Council,Deputy Chief Executive,THE PERTEMPS GROUP OF COMPANIES,1000901,Agency Worker,Controllable Employees,3300487934,04/01/2023,715.23
Buckinghamshire Council,Deputy Chief Executive,THE PERTEMPS GROUP OF COMPANIES,1000901,Agency Worker,Controllable Employees,3300487936,04/01/2023,682.65
Buckinghamshire Council,Children's Services,THE PERTEMPS GROUP OF COMPANIES,1000901,Social Workers - Agency,Controllable Employees,3300487938,04/01/2023,1725.68
Buckinghamshire Council,Adults and Health,THE PERTEMPS GROUP OF COMPANIES,1000901,Agency Worker,Controllable Employees,3300487939,04/01/2023,1231.8
Buckinghamshire Council,"Planning, Growth & Sustainability",THE PERTEMPS GROUP OF COMPANIES,1000901,Agency Worker,Controllable Employees,3300487940,04/01/2023,789.5
Buckinghamshire Council,Adults and Health,THE PERTEMPS GROUP OF COMPANIES,1000901,Social Workers - Agency,Controllable Employees,3300487941,04/01/2023,1487.03
Buckinghamshire Council,Children's Services,THE PERTEMPS GROUP OF COMPANIES,1000901,Agency Worker,Controllable Employees,3300487942,04/01/2023,797.25
Buckinghamshire Council,Children's Services,THE PERTEMPS GROUP OF COMPANIES,1000901,Agency Worker,Controllable Employees,3300487944,04/01/2023,1632.81
Buckinghamshire Council,Children's Services,THE PERTEMPS GROUP OF COMPANIES,1000901,Agency Worker,Controllable Employees,3300487945,04/01/2023,1707.55
Buckinghamshire Council,Children's Services,THE PERTEMPS GROUP OF COMPANIES,1000901,Social Workers - Agency,Controllable Employees,3300487946,04/01/2023,1306.56
Buckinghamshire Council,"Planning, Growth & Sustainability",THE PERTEMPS GROUP OF COMPANIES,1000901,Agency Worker,Controllable Employees,3300487947,04/01/2023,1724.25
Buckinghamshire Council,Children's Services,THE PERTEMPS GROUP OF COMPANIES,1000901,Social Workers - Agency,Controllable Employees,3300487948,04/01/2023,1732.71
Buckinghamshire Council,Children's Services,THE PERTEMPS GROUP OF COMPANIES,1000901,Agency Worker,Controllable Employees,3300487949,04/01/2023,1846.67
Buckinghamshire Council,Children's Services,THE PERTEMPS GROUP OF COMPANIES,1000901,Agency Worker,Controllable Employees,3300487950,04/01/2023,1505.73
Buckinghamshire Council,Communities,THE PERTEMPS GROUP OF COMPANIES,1000901,Agency Worker,Controllable Employees,3300487952,04/01/2023,718.74
Buckinghamshire Council,Adults and Health,THE PERTEMPS GROUP OF COMPANIES,1000901,Agency Worker,Controllable Employees,3300487953,04/01/2023,2300
Buckinghamshire Council,Children's Services,THE PERTEMPS GROUP OF COMPANIES,1000901,Social Workers - Agency,Controllable Employees,3300487955,04/01/2023,1352.4
Buckinghamshire Council,Children's Services,THE PERTEMPS GROUP OF COMPANIES,1000901,Social Workers - Agency,Controllable Employees,3300487957,04/01/2023,1887
Buckinghamshire Council,Children's Services,THE PERTEMPS GROUP OF COMPANIES,1000901,Agency Worker,Controllable Employees,3300487958,04/01/2023,1879.97
Buckinghamshire Council,Children's Services,THE PERTEMPS GROUP OF COMPANIES,1000901,Social Workers - Agency,Controllable Employees,3300487959,04/01/2023,2017.98
Buckinghamshire Council,Adults and Health,THE PERTEMPS GROUP OF COMPANIES,1000901,Agency Worker,Controllable Employees,3300487961,04/01/2023,554.7
Buckinghamshire Council,Communities,THE PERTEMPS GROUP OF COMPANIES,1000901,Agency Worker,Controllable Employees,3300487963,04/01/2023,683.38
Buckinghamshire Council,Children's Services,THE PERTEMPS GROUP OF COMPANIES,1000901,Social Workers - Agency,Controllable Employees,3300487965,04/01/2023,1725.68
Buckinghamshire Council,Children's Services,THE PERTEMPS GROUP OF COMPANIES,1000901,Agency Worker,Controllable Employees,3300487967,04/01/2023,1725.68
Buckinghamshire Council,"Planning, Growth & Sustainability",THE PERTEMPS GROUP OF COMPANIES,1000901,Agency Worker,Controllable Employees,3300487968,04/01/2023,1405.87
Buckinghamshire Council,Children's Services,THE PERTEMPS GROUP OF COMPANIES,1000901,Social Workers - Agency,Controllable Employees,3300487970,04/01/2023,1732.71
Buckinghamshire Council,Resources,THE PERTEMPS GROUP OF COMPANIES,1000901,Agency Worker,Controllable Employees,3300487971,04/01/2023,587.19
Buckinghamshire Council,Communities,THE PERTEMPS GROUP OF COMPANIES,1000901,Agency Worker,Controllable Employees,3300487973,04/01/2023,755.61
Buckinghamshire Council,Adults and Health,THE PERTEMPS GROUP OF COMPANIES,1000901,Social Workers - Agency,Controllable Employees,3300487975,04/01/2023,1425.61
Buckinghamshire Council,Children's Services,THE PERTEMPS GROUP OF COMPANIES,1000901,Social Workers - Agency,Controllable Employees,3300487977,04/01/2023,631.95
Buckinghamshire Council,"Planning, Growth & Sustainability",THE PERTEMPS GROUP OF COMPANIES,1000901,Agency Worker,Controllable Employees,3300487978,04/01/2023,5340.95
Buckinghamshire Council,Communities,THE PERTEMPS GROUP OF COMPANIES,1000901,Agency Worker,Controllable Employees,3300487979,04/01/2023,646.02
Buckinghamshire Council,Adults and Health,THE PERTEMPS GROUP OF COMPANIES,1000901,Social Workers - Agency,Controllable Employees,3300487981,04/01/2023,1761.94
Buckinghamshire Council,Resources,THE PERTEMPS GROUP OF COMPANIES,1000901,Agency Worker,Controllable Employees,3300487982,04/01/2023,1990.85
Buckinghamshire Council,Children's Services,THE PERTEMPS GROUP OF COMPANIES,1000901,Social Workers - Agency,Controllable Employees,3300487983,04/01/2023,1423.76
Buckinghamshire Council,Resources,THE PERTEMPS GROUP OF COMPANIES,1000901,Agency Worker,Controllable Employees,3300487984,04/01/2023,588.35
Buckinghamshire Council,Adults and Health,THE PERTEMPS GROUP OF COMPANIES,1000901,Agency Worker,Controllable Employees,3300487985,04/01/2023,3193.45
Buckinghamshire Council,Deputy Chief Executive,THE PERTEMPS GROUP OF COMPANIES,1000901,Agency Worker,Controllable Employees,3300487987,04/01/2023,621.3
Buckinghamshire Council,Resources,THE PERTEMPS GROUP OF COMPANIES,1000901,Agency Worker,Controllable Employees,3300487988,04/01/2023,575.35
Buckinghamshire Council,Children's Services,THE PERTEMPS GROUP OF COMPANIES,1000901,Agency Worker,Controllable Employees,3300487989,04/01/2023,1689.05
Buckinghamshire Council,Resources,THE PERTEMPS GROUP OF COMPANIES,1000901,Agency Worker,Controllable Employees,3300487990,04/01/2023,620.49
Buckinghamshire Council,Children's Services,THE PERTEMPS GROUP OF COMPANIES,1000901,Social Workers - Agency,Controllable Employees,3300487991,04/01/2023,1555.11
Buckinghamshire Council,Children's Services,THE PERTEMPS GROUP OF COMPANIES,1000901,Social Workers - Agency,Controllable Employees,3300487994,04/01/2023,1558.81
Buckinghamshire Council,Adults and Health,THE PERTEMPS GROUP OF COMPANIES,1000901,Agency Worker,Controllable Employees,3300487995,04/01/2023,1425.61
Buckinghamshire Council,Adults and Health,THE PERTEMPS GROUP OF COMPANIES,1000901,Agency Worker,Controllable Employees,3300487996,04/01/2023,868.56
Buckinghamshire Council,Adults and Health,THE PERTEMPS GROUP OF COMPANIES,1000901,Social Workers - Agency,Controllable Employees,3300487997,04/01/2023,1633.7
Buckinghamshire Council,Adults and Health,THE PERTEMPS GROUP OF COMPANIES,1000901,Social Workers - Agency,Controllable Employees,3300487998,04/01/2023,1518.11
Buckinghamshire Council,Resources,THE PERTEMPS GROUP OF COMPANIES,1000901,Agency Worker,Controllable Employees,3300487999,04/01/2023,967.5
Buckinghamshire Council,Deputy Chief Executive,THE PERTEMPS GROUP OF COMPANIES,1000901,Agency Worker,Controllable Employees,3300488000,04/01/2023,1087.43
Buckinghamshire Council,Children's Services,THE PERTEMPS GROUP OF COMPANIES,1000901,Agency Worker,Controllable Employees,3300488001,04/01/2023,663.48
Buckinghamshire Council,"Planning, Growth & Sustainability",THE PERTEMPS GROUP OF COMPANIES,1000901,Agency Worker,Controllable Employees,3300488002,04/01/2023,2661.22
Buckinghamshire Council,Adults and Health,THE PERTEMPS GROUP OF COMPANIES,1000901,Social Workers - Agency,Controllable Employees,3300488003,04/01/2023,1445.22
Buckinghamshire Council,Resources,THE PERTEMPS GROUP OF COMPANIES,1000901,Agency Worker,Controllable Employees,3300488004,04/01/2023,620.49
Buckinghamshire Council,"Planning, Growth & Sustainability",THE PERTEMPS GROUP OF COMPANIES,1000901,Agency Worker,Controllable Employees,3300488005,04/01/2023,1243.57
Buckinghamshire Council,Resources,THE PERTEMPS GROUP OF COMPANIES,1000901,Agency Worker,Controllable Employees,3300488006,04/01/2023,768.12
Buckinghamshire Council,Adults and Health,THE PERTEMPS GROUP OF COMPANIES,1000901,Social Workers - Agency,Controllable Employees,3300488007,04/01/2023,1463.35
Buckinghamshire Council,Deputy Chief Executive,THE PERTEMPS GROUP OF COMPANIES,1000901,Agency Worker,Controllable Employees,3300488008,04/01/2023,1526
Buckinghamshire Council,Deputy Chief Executive,THE PERTEMPS GROUP OF COMPANIES,1000901,Agency Worker,Controllable Employees,3300488009,04/01/2023,1428.2
Buckinghamshire Council,Resources,THE PERTEMPS GROUP OF COMPANIES,1000901,Agency Worker,Controllable Employees,3300488010,04/01/2023,776.94
Buckinghamshire Council,Resources,THE PERTEMPS GROUP OF COMPANIES,1000901,Agency Worker,Controllable Employees,3300488012,04/01/2023,606.06
Buckinghamshire Council,"Planning, Growth & Sustainability",THE PERTEMPS GROUP OF COMPANIES,1000901,Agency Worker,Controllable Employees,3300488013,04/01/2023,1225.77
Buckinghamshire Council,Adults and Health,THE PERTEMPS GROUP OF COMPANIES,1000901,Social Workers - Agency,Controllable Employees,3300488014,04/01/2023,1428.2
Buckinghamshire Council,Adults and Health,THE PERTEMPS GROUP OF COMPANIES,1000901,Agency Worker,Controllable Employees,3300488015,04/01/2023,966.2
Buckinghamshire Council,Resources,THE PERTEMPS GROUP OF COMPANIES,1000901,Agency Worker,Controllable Employees,3300488016,04/01/2023,606.06
Buckinghamshire Council,Adults and Health,THE PERTEMPS GROUP OF COMPANIES,1000901,Social Workers - Agency,Controllable Employees,3300488018,04/01/2023,1493.69
Buckinghamshire Council,Adults and Health,THE PERTEMPS GROUP OF COMPANIES,1000901,Social Workers - Agency,Controllable Employees,3300488019,04/01/2023,1193.56
Buckinghamshire Council,Adults and Health,THE PERTEMPS GROUP OF COMPANIES,1000901,Agency Worker,Controllable Employees,3300488020,04/01/2023,1619.86
Buckinghamshire Council,Adults and Health,THE PERTEMPS GROUP OF COMPANIES,1000901,Social Workers - Agency,Controllable Employees,3300488022,04/01/2023,1394.53
Buckinghamshire Council,Adults and Health,THE PERTEMPS GROUP OF COMPANIES,1000901,Social Workers - Agency,Controllable Employees,3300488023,04/01/2023,1466.31
Buckinghamshire Council,Resources,THE PERTEMPS GROUP OF COMPANIES,1000901,Agency Worker,Controllable Employees,3300488024,04/01/2023,543.78
Buckinghamshire Council,Adults and Health,THE PERTEMPS GROUP OF COMPANIES,1000901,Agency Worker,Controllable Employees,3300488025,04/01/2023,1032.38
Buckinghamshire Council,Children's Services,THE PERTEMPS GROUP OF COMPANIES,1000901,Social Workers - Agency,Controllable Employees,3300488027,04/01/2023,605.61
Buckinghamshire Council,Children's Services,THE PERTEMPS GROUP OF COMPANIES,1000901,Social Workers - Agency,Controllable Employees,3300488028,04/01/2023,1542.53
Buckinghamshire Council,Children's Services,THE PERTEMPS GROUP OF COMPANIES,1000901,Agency Worker,Controllable Employees,3300488029,04/01/2023,1707.18
Buckinghamshire Council,Children's Services,THE PERTEMPS GROUP OF COMPANIES,1000901,Agency Worker,Controllable Employees,3300488030,04/01/2023,1732.71
Buckinghamshire Council,Children's Services,THE PERTEMPS GROUP OF COMPANIES,1000901,Social Workers - Agency,Controllable Employees,3300488031,04/01/2023,1573.61
Buckinghamshire Council,Children's Services,THE PERTEMPS GROUP OF COMPANIES,1000901,Social Workers - Agency,Controllable Employees,3300488032,04/01/2023,1534.39
Buckinghamshire Council,Children's Services,THE PERTEMPS GROUP OF COMPANIES,1000901,Social Workers - Agency,Controllable Employees,3300488034,04/01/2023,1620.6
Buckinghamshire Council,Deputy Chief Executive,THE PERTEMPS GROUP OF COMPANIES,1000901,Agency Worker,Controllable Employees,3300488035,04/01/2023,1836.68
Buckinghamshire Council,"Planning, Growth & Sustainability",THE PERTEMPS GROUP OF COMPANIES,1000901,Agency Worker,Controllable Employees,3300488036,04/01/2023,1237.08
Buckinghamshire Council,"Planning, Growth & Sustainability",THE PERTEMPS GROUP OF COMPANIES,1000901,Agency Worker,Controllable Employees,3300488037,04/01/2023,1523.66
Buckinghamshire Council,Children's Services,THE PERTEMPS GROUP OF COMPANIES,1000901,Agency Worker,Controllable Employees,3300488038,04/01/2023,1732.71
Buckinghamshire Council,Deputy Chief Executive,THE PERTEMPS GROUP OF COMPANIES,1000901,Agency Worker,Controllable Employees,3300488039,04/01/2023,766.27
Buckinghamshire Council,Deputy Chief Executive,THE PERTEMPS GROUP OF COMPANIES,1000901,Agency Worker,Controllable Employees,3300488040,04/01/2023,2148.59
Buckinghamshire Council,Deputy Chief Executive,THE PERTEMPS GROUP OF COMPANIES,1000901,Agency Worker,Controllable Employees,3300488041,04/01/2023,669.6
Buckinghamshire Council,Resources,THE PERTEMPS GROUP OF COMPANIES,1000901,Agency Worker,Controllable Employees,3300488042,04/01/2023,1010.95
Buckinghamshire Council,Resources,THE PERTEMPS GROUP OF COMPANIES,1000901,Agency Worker,Controllable Employees,3300488044,04/01/2023,1010.95
Buckinghamshire Council,Resources,THE PERTEMPS GROUP OF COMPANIES,1000901,Agency Worker,Controllable Employees,3300488046,04/01/2023,824.28
Buckinghamshire Council,Deputy Chief Executive,THE PERTEMPS GROUP OF COMPANIES,1000901,Agency Worker,Controllable Employees,3300488047,04/01/2023,682.65
Buckinghamshire Council,Resources,THE PERTEMPS GROUP OF COMPANIES,1000901,Agency Worker,Controllable Employees,3300488048,04/01/2023,621.97
Buckinghamshire Council,Deputy Chief Executive,THE PERTEMPS GROUP OF COMPANIES,1000901,Agency Worker,Controllable Employees,3300488051,04/01/2023,1955.24
Buckinghamshire Council,"Planning, Growth & Sustainability",THE PERTEMPS GROUP OF COMPANIES,1000901,Agency Worker,Controllable Employees,3300488053,04/01/2023,1183.04
Buckinghamshire Council,Communities,THE PERTEMPS GROUP OF COMPANIES,1000901,Agency Worker,Controllable Employees,3300488054,04/01/2023,659.98
Buckinghamshire Council,Communities,THE PERTEMPS GROUP OF COMPANIES,1000901,Agency Worker,Controllable Employees,3300488056,04/01/2023,620.49
Buckinghamshire Council,Resources,THE PERTEMPS GROUP OF COMPANIES,1000901,Agency Worker,Controllable Employees,3300488057,04/01/2023,621.97
Buckinghamshire Council,Resources,THE PERTEMPS GROUP OF COMPANIES,1000901,Agency Worker,Controllable Employees,3300488058,04/01/2023,605.16
Buckinghamshire Council,Children's Services,THE PERTEMPS GROUP OF COMPANIES,1000901,Social Workers - Agency,Controllable Employees,3300488061,04/01/2023,1732.71
Buckinghamshire Council,Children's Services,THE PERTEMPS GROUP OF COMPANIES,1000901,Agency Worker,Controllable Employees,3300488062,04/01/2023,1692.38
Buckinghamshire Council,Children's Services,THE PERTEMPS GROUP OF COMPANIES,1000901,Agency Worker,Controllable Employees,3300488063,04/01/2023,618.01
Buckinghamshire Council,Resources,THE PERTEMPS GROUP OF COMPANIES,1000901,Agency Worker,Controllable Employees,3300488064,04/01/2023,661.15
Buckinghamshire Council,Resources,THE PERTEMPS GROUP OF COMPANIES,1000901,Agency Worker,Controllable Employees,3300488065,04/01/2023,2127.3
Buckinghamshire Council,Resources,THE PERTEMPS GROUP OF COMPANIES,1000901,Agency Worker,Controllable Employees,3300488066,04/01/2023,3494
Buckinghamshire Council,Resources,THE PERTEMPS GROUP OF COMPANIES,1000901,Agency Worker,Controllable Employees,3300488067,04/01/2023,2043.86
Buckinghamshire Council,Resources,THE PERTEMPS GROUP OF COMPANIES,1000901,Agency Worker,Controllable Employees,3300488068,04/01/2023,2701.25
Buckinghamshire Council,Deputy Chief Executive,THE PERTEMPS GROUP OF COMPANIES,1000901,Agency Worker,Controllable Employees,3300488069,04/01/2023,758.5
Buckinghamshire Council,Resources,THE PERTEMPS GROUP OF COMPANIES,1000901,Agency Worker,Controllable Employees,3300488070,04/01/2023,609.02
Buckinghamshire Council,"Planning, Growth & Sustainability",THE PERTEMPS GROUP OF COMPANIES,1000901,Agency Worker,Controllable Employees,3300488071,04/01/2023,1108.94
Buckinghamshire Council,"Planning, Growth & Sustainability",THE PERTEMPS GROUP OF COMPANIES,1000901,Agency Worker,Controllable Employees,3300488072,04/01/2023,4128.45
Buckinghamshire Council,"Planning, Growth & Sustainability",THE PERTEMPS GROUP OF COMPANIES,1000901,Agency Worker,Controllable Employees,3300488073,04/01/2023,1885.95
Buckinghamshire Council,Resources,THE PERTEMPS GROUP OF COMPANIES,1000901,Agency Worker,Controllable Employees,3300488074,04/01/2023,4230.95
Buckinghamshire Council,"Planning, Growth & Sustainability",THE PERTEMPS GROUP OF COMPANIES,1000901,Agency Worker,Controllable Employees,3300488075,04/01/2023,922
Buckinghamshire Council,Children's Services,THE PERTEMPS GROUP OF COMPANIES,1000901,Social Workers - Agency,Controllable Employees,3300488077,04/01/2023,1556.96
Buckinghamshire Council,Children's Services,THE PERTEMPS GROUP OF COMPANIES,1000901,Social Workers - Agency,Controllable Employees,3300488079,04/01/2023,1563.25
Buckinghamshire Council,Children's Services,THE PERTEMPS GROUP OF COMPANIES,1000901,Social Workers - Agency,Controllable Employees,3300488081,04/01/2023,1543.64
Buckinghamshire Council,Deputy Chief Executive,THE PERTEMPS GROUP OF COMPANIES,1000901,Agency Worker,Controllable Employees,3300488082,04/01/2023,1087.43
Buckinghamshire Council,Children's Services,THE PERTEMPS GROUP OF COMPANIES,1000901,Agency Worker,Controllable Employees,3300488083,04/01/2023,787.44
Buckinghamshire Council,Communities,THE PERTEMPS GROUP OF COMPANIES,1000901,Agency Worker,Controllable Employees,3300488085,04/01/2023,2304.68
Buckinghamshire Council,Communities,THE PERTEMPS GROUP OF COMPANIES,1000901,Agency Worker,Controllable Employees,3300488087,04/01/2023,1325.61
Buckinghamshire Council,Resources,THE PERTEMPS GROUP OF COMPANIES,1000901,Agency Worker,Controllable Employees,3300488088,04/01/2023,669.7
Buckinghamshire Council,"Planning, Growth & Sustainability",THE PERTEMPS GROUP OF COMPANIES,1000901,Agency Worker,Controllable Employees,3300488089,04/01/2023,1706.6
Buckinghamshire Council,Communities,THE PERTEMPS GROUP OF COMPANIES,1000901,Agency Worker,Controllable Employees,3300488090,04/01/2023,646.85
Buckinghamshire Council,Adults and Health,THE PERTEMPS GROUP OF COMPANIES,1000901,Agency Worker,Controllable Employees,3300488091,04/01/2023,2793.57
Buckinghamshire Council,Adults and Health,THE PERTEMPS GROUP OF COMPANIES,1000901,Social Workers - Agency,Controllable Employees,3300488092,04/01/2023,1524.4
Buckinghamshire Council,Adults and Health,THE PERTEMPS GROUP OF COMPANIES,1000901,Social Workers - Agency,Controllable Employees,3300488094,04/01/2023,1816.8
Buckinghamshire Council,Resources,THE PERTEMPS GROUP OF COMPANIES,1000901,Agency Worker,Controllable Employees,3300488095,04/01/2023,609.02
Buckinghamshire Council,Resources,THE PERTEMPS GROUP OF COMPANIES,1000901,Agency Worker,Controllable Employees,3300488096,04/01/2023,576.1
Buckinghamshire Council,Deputy Chief Executive,THE PERTEMPS GROUP OF COMPANIES,1000901,Agency Worker,Controllable Employees,3300488098,04/01/2023,503.1
Buckinghamshire Council,Resources,THE PERTEMPS GROUP OF COMPANIES,1000901,Agency Worker,Controllable Employees,3300488099,04/01/2023,562.24
Buckinghamshire Council,Children's Services,THE PERTEMPS GROUP OF COMPANIES,1000901,Social Workers - Agency,Controllable Employees,3300488102,04/01/2023,1469.27
Buckinghamshire Council,"Planning, Growth & Sustainability",THE PERTEMPS GROUP OF COMPANIES,1000901,Agency Worker,Controllable Employees,3300488103,04/01/2023,1490.34
Buckinghamshire Council,"Planning, Growth & Sustainability",THE PERTEMPS GROUP OF COMPANIES,1000901,Agency Worker,Controllable Employees,3300488104,04/01/2023,975
Buckinghamshire Council,Adults and Health,THE PERTEMPS GROUP OF COMPANIES,1000901,Social Workers - Agency,Controllable Employees,3300488106,04/01/2023,1568.8
Buckinghamshire Council,"Planning, Growth & Sustainability",THE PERTEMPS GROUP OF COMPANIES,1000901,Agency Worker,Controllable Employees,3300488107,04/01/2023,1273.84
Buckinghamshire Council,"Planning, Growth & Sustainability",THE PERTEMPS GROUP OF COMPANIES,1000901,Agency Worker,Controllable Employees,3300488108,04/01/2023,1261.58
Buckinghamshire Council,"Planning, Growth & Sustainability",THE PERTEMPS GROUP OF COMPANIES,1000901,Agency Worker,Controllable Employees,3300488109,04/01/2023,5111.38
Buckinghamshire Council,Children's Services,THE PERTEMPS GROUP OF COMPANIES,1000901,Social Workers - Agency,Controllable Employees,3300488110,04/01/2023,1561.4
Buckinghamshire Council,Communities,THE PERTEMPS GROUP OF COMPANIES,1000901,Agency Worker,Controllable Employees,3300488111,04/01/2023,3054.36
Buckinghamshire Council,Children's Services,THE PERTEMPS GROUP OF COMPANIES,1000901,Agency Worker,Controllable Employees,3300488112,04/01/2023,1989.12
Buckinghamshire Council,Children's Services,THE PERTEMPS GROUP OF COMPANIES,1000901,Agency Worker,Controllable Employees,3300488113,04/01/2023,2442.9
Buckinghamshire Council,Adults and Health,THE PERTEMPS GROUP OF COMPANIES,1000901,Agency Worker,Controllable Employees,3300488115,04/01/2023,1431.53
Buckinghamshire Council,Adults and Health,THE PERTEMPS GROUP OF COMPANIES,1000901,Agency Worker,Controllable Employees,3300488116,04/01/2023,1645.13
Buckinghamshire Council,Communities,THE PERTEMPS GROUP OF COMPANIES,1000901,Agency Worker,Controllable Employees,3300488117,04/01/2023,680.8
Buckinghamshire Council,Communities,THE PERTEMPS GROUP OF COMPANIES,1000901,Agency Worker,Controllable Employees,3300488118,04/01/2023,680.8
Buckinghamshire Council,Communities,THE PERTEMPS GROUP OF COMPANIES,1000901,Agency Worker,Controllable Employees,3300488119,04/01/2023,680.8
Buckinghamshire Council,Adults and Health,THE PERTEMPS GROUP OF COMPANIES,1000901,Social Workers - Agency,Controllable Employees,3300488120,04/01/2023,1541.05
Buckinghamshire Council,Adults and Health,THE PERTEMPS GROUP OF COMPANIES,1000901,Agency Worker,Controllable Employees,3300488121,04/01/2023,2913.64
Buckinghamshire Council,"Planning, Growth & Sustainability",THE PERTEMPS GROUP OF COMPANIES,1000901,Agency Worker,Controllable Employees,3300488122,04/01/2023,635.66
Buckinghamshire Council,Adults and Health,THE PERTEMPS GROUP OF COMPANIES,1000901,Agency Worker,Controllable Employees,3300488123,04/01/2023,2270.55
Buckinghamshire Council,Resources,THE PERTEMPS GROUP OF COMPANIES,1000901,Agency Worker,Controllable Employees,3300488124,04/01/2023,1317.3
Buckinghamshire Council,"Planning, Growth & Sustainability",THE PERTEMPS GROUP OF COMPANIES,1000901,Agency Worker,Controllable Employees,3300488125,04/01/2023,1911
Buckinghamshire Council,Adults and Health,THE PERTEMPS GROUP OF COMPANIES,1000901,Social Workers - Agency,Controllable Employees,3300488127,04/01/2023,1249.92
Buckinghamshire Council,Children's Services,THE PERTEMPS GROUP OF COMPANIES,1000901,Social Workers - Agency,Controllable Employees,3300488128,04/01/2023,1691.64
Buckinghamshire Council,Children's Services,THE PERTEMPS GROUP OF COMPANIES,1000901,Agency Worker,Controllable Employees,3300488129,04/01/2023,1707.18
Buckinghamshire Council,Children's Services,THE PERTEMPS GROUP OF COMPANIES,1000901,Social Workers - Agency,Controllable Employees,3300488130,04/01/2023,1555.11
Buckinghamshire Council,Communities,THE PERTEMPS GROUP OF COMPANIES,1000901,Agency Worker,Controllable Employees,3300488131,04/01/2023,861.12
Buckinghamshire Council,"Planning, Growth & Sustainability",THE PERTEMPS GROUP OF COMPANIES,1000901,Agency Worker,Controllable Employees,3300488132,04/01/2023,1411.55
Buckinghamshire Council,Deputy Chief Executive,THE PERTEMPS GROUP OF COMPANIES,1000901,Agency Worker,Controllable Employees,3300488133,04/01/2023,2440.08
Buckinghamshire Council,Children's Services,THE PERTEMPS GROUP OF COMPANIES,1000901,Social Workers - Agency,Controllable Employees,3300488134,04/01/2023,1524.4
Buckinghamshire Council,Children's Services,THE PERTEMPS GROUP OF COMPANIES,1000901,Social Workers - Agency,Controllable Employees,3300488136,04/01/2023,1556.96
Buckinghamshire Council,Deputy Chief Executive,THE PERTEMPS GROUP OF COMPANIES,1000901,Agency Worker,Controllable Employees,3300488137,04/01/2023,1734.12
Buckinghamshire Council,"Planning, Growth & Sustainability",THE PERTEMPS GROUP OF COMPANIES,1000901,Agency Worker,Controllable Employees,3300488138,04/01/2023,2410.9
Buckinghamshire Council,Deputy Chief Executive,THE PERTEMPS GROUP OF COMPANIES,1000901,Agency Worker,Controllable Employees,3300488139,04/01/2023,654.36
Buckinghamshire Council,Adults and Health,THE PERTEMPS GROUP OF COMPANIES,1000901,Social Workers - Agency,Controllable Employees,3300488141,04/01/2023,1537.35
Buckinghamshire Council,Adults and Health,THE PERTEMPS GROUP OF COMPANIES,1000901,Agency Worker,Controllable Employees,3300488142,04/01/2023,1251
Buckinghamshire Council,Children's Services,THE PERTEMPS GROUP OF COMPANIES,1000901,Social Workers - Agency,Controllable Employees,3300488144,04/01/2023,1530.69
Buckinghamshire Council,Adults and Health,THE PERTEMPS GROUP OF COMPANIES,1000901,Social Workers - Agency,Controllable Employees,3300488146,04/01/2023,601.65
Buckinghamshire Council,Children's Services,THE PERTEMPS GROUP OF COMPANIES,1000901,Agency Worker,Controllable Employees,3300488147,04/01/2023,1732.71
Buckinghamshire Council,Children's Services,THE PERTEMPS GROUP OF COMPANIES,1000901,Social Workers - Agency,Controllable Employees,3300488149,04/01/2023,1498.13
Buckinghamshire Council,Children's Services,THE PERTEMPS GROUP OF COMPANIES,1000901,Agency Worker,Controllable Employees,3300488150,04/01/2023,1656.49
Buckinghamshire Council,Adults and Health,THE PERTEMPS GROUP OF COMPANIES,1000901,Social Workers - Agency,Controllable Employees,3300488151,04/01/2023,1545.96
Buckinghamshire Council,"Planning, Growth & Sustainability",THE PERTEMPS GROUP OF COMPANIES,1000901,Agency Worker,Controllable Employees,3300488153,04/01/2023,974.16
Buckinghamshire Council,Children's Services,THE PERTEMPS GROUP OF COMPANIES,1000901,Agency Worker,Controllable Employees,3300488154,04/01/2023,1717.17
Buckinghamshire Council,Children's Services,THE PERTEMPS GROUP OF COMPANIES,1000901,Social Workers - Agency,Controllable Employees,3300488155,04/01/2023,1725.31
Buckinghamshire Council,Resources,THE PERTEMPS GROUP OF COMPANIES,1000901,Agency Worker,Controllable Employees,3300488156,04/01/2023,3028.2
Buckinghamshire Council,"Planning, Growth & Sustainability",THE PERTEMPS GROUP OF COMPANIES,1000901,Agency Worker,Controllable Employees,3300488157,04/01/2023,2304
Buckinghamshire Council,Children's Services,THE PERTEMPS GROUP OF COMPANIES,1000901,Social Workers - Agency,Controllable Employees,3300488158,04/01/2023,1500.35
Buckinghamshire Council,Children's Services,THE PERTEMPS GROUP OF COMPANIES,1000901,Social Workers - Agency,Controllable Employees,3300488159,04/01/2023,1426.35
Buckinghamshire Council,Children's Services,THE PERTEMPS GROUP OF COMPANIES,1000901,Social Workers - Agency,Controllable Employees,3300488160,04/01/2023,1612.09
Buckinghamshire Council,"Planning, Growth & Sustainability",THE PERTEMPS GROUP OF COMPANIES,1000901,Agency Worker,Controllable Employees,3300488161,04/01/2023,1659.7
Buckinghamshire Council,Children's Services,THE PERTEMPS GROUP OF COMPANIES,1000901,Agency Worker,Controllable Employees,3300488162,04/01/2023,2399.28
Buckinghamshire Council,Adults and Health,THE PERTEMPS GROUP OF COMPANIES,1000901,Social Workers - Agency,Controllable Employees,3300488165,04/01/2023,1537.35
Buckinghamshire Council,Adults and Health,THE PERTEMPS GROUP OF COMPANIES,1000901,Social Workers - Agency,Controllable Employees,3300488166,04/01/2023,772
Buckinghamshire Council,Adults and Health,THE PERTEMPS GROUP OF COMPANIES,1000901,Social Workers - Agency,Controllable Employees,3300488168,04/01/2023,1428.2
Buckinghamshire Council,Adults and Health,THE PERTEMPS GROUP OF COMPANIES,1000901,Social Workers - Agency,Controllable Employees,3300488170,04/01/2023,1414.14
Buckinghamshire Council,Adults and Health,THE PERTEMPS GROUP OF COMPANIES,1000901,Agency Worker,Controllable Employees,3300488171,04/01/2023,1646.13
Buckinghamshire Council,Adults and Health,THE PERTEMPS GROUP OF COMPANIES,1000901,Social Workers - Agency,Controllable Employees,3300488173,04/01/2023,1466.68
Buckinghamshire Council,"Planning, Growth & Sustainability",THE PERTEMPS GROUP OF COMPANIES,1000901,Agency Worker,Controllable Employees,3300488174,04/01/2023,671.17
Buckinghamshire Council,Deputy Chief Executive,THE PERTEMPS GROUP OF COMPANIES,1000901,Agency Worker,Controllable Employees,3300488175,04/01/2023,511.49
Buckinghamshire Council,Children's Services,THE PERTEMPS GROUP OF COMPANIES,1000901,Agency Worker,Controllable Employees,3300488176,04/01/2023,664.32
Buckinghamshire Council,"Planning, Growth & Sustainability",THE PERTEMPS GROUP OF COMPANIES,1000901,Agency Worker,Controllable Employees,3300488177,04/01/2023,1793.63
Buckinghamshire Council,Adults and Health,THE PERTEMPS GROUP OF COMPANIES,1000901,Social Workers - Agency,Controllable Employees,3300488178,04/01/2023,1431.53
Buckinghamshire Council,"Planning, Growth & Sustainability",THE PERTEMPS GROUP OF COMPANIES,1000901,Agency Worker,Controllable Employees,3300488180,04/01/2023,1055.69
Buckinghamshire Council,Children's Services,THE PERTEMPS GROUP OF COMPANIES,1000901,Social Workers - Agency,Controllable Employees,3300488181,04/01/2023,1707.18
Buckinghamshire Council,Children's Services,THE PERTEMPS GROUP OF COMPANIES,1000901,Social Workers - Agency,Controllable Employees,3300488182,04/01/2023,1766.01
Buckinghamshire Council,Deputy Chief Executive,THE PERTEMPS GROUP OF COMPANIES,1000901,Agency Worker,Controllable Employees,3300488183,04/01/2023,784.77
Buckinghamshire Council,"Planning, Growth & Sustainability",THE PERTEMPS GROUP OF COMPANIES,1000901,Agency Worker,Controllable Employees,3300488184,04/01/2023,2166.38
Buckinghamshire Council,"Planning, Growth & Sustainability",THE PERTEMPS GROUP OF COMPANIES,1000901,Agency Worker,Controllable Employees,3300488185,04/01/2023,1536.59
Buckinghamshire Council,Children's Services,THE PERTEMPS GROUP OF COMPANIES,1000901,Agency Worker,Controllable Employees,3300488186,04/01/2023,755.91
Buckinghamshire Council,Children's Services,THE PERTEMPS GROUP OF COMPANIES,1000901,Social Workers - Agency,Controllable Employees,3300488188,04/01/2023,1594.7
Buckinghamshire Council,Children's Services,THE PERTEMPS GROUP OF COMPANIES,1000901,Social Workers - Agency,Controllable Employees,3300488190,04/01/2023,625.35
Buckinghamshire Council,"Planning, Growth & Sustainability",THE PERTEMPS GROUP OF COMPANIES,1000901,Agency Worker,Controllable Employees,3300488191,04/01/2023,3220.59
Buckinghamshire Council,Adults and Health,THE PERTEMPS GROUP OF COMPANIES,1000901,Social Workers - Agency,Controllable Employees,3300488192,04/01/2023,1320.16
Buckinghamshire Council,Adults and Health,THE PERTEMPS GROUP OF COMPANIES,1000901,Social Workers - Agency,Controllable Employees,3300488193,04/01/2023,1460.76
Buckinghamshire Council,Adults and Health,THE PERTEMPS GROUP OF COMPANIES,1000901,Social Workers - Agency,Controllable Employees,3300488195,04/01/2023,1394.53
Buckinghamshire Council,Adults and Health,THE PERTEMPS GROUP OF COMPANIES,1000901,Social Workers - Agency,Controllable Employees,3300488196,04/01/2023,1180.05
Buckinghamshire Council,Adults and Health,THE PERTEMPS GROUP OF COMPANIES,1000901,Social Workers - Agency,Controllable Employees,3300488198,04/01/2023,1460.76
Buckinghamshire Council,Resources,THE PERTEMPS GROUP OF COMPANIES,1000901,Agency Worker,Controllable Employees,3300488199,04/01/2023,2653.7
Buckinghamshire Council,Resources,THE PERTEMPS GROUP OF COMPANIES,1000901,Agency Worker,Controllable Employees,3300488200,04/01/2023,2678
Buckinghamshire Council,Resources,THE PERTEMPS GROUP OF COMPANIES,1000901,Agency Worker,Controllable Employees,3300488201,04/01/2023,1062.36
Buckinghamshire Council,Deputy Chief Executive,THE PERTEMPS GROUP OF COMPANIES,1000901,Agency Worker,Controllable Employees,3300488202,04/01/2023,1316.82
Buckinghamshire Council,Adults and Health,THE PERTEMPS GROUP OF COMPANIES,1000901,Agency Worker,Controllable Employees,3300488204,04/01/2023,570.2
Buckinghamshire Council,"Planning, Growth & Sustainability",THE PERTEMPS GROUP OF COMPANIES,1000901,Agency Worker,Controllable Employees,3300488205,04/01/2023,2225.18
Buckinghamshire Council,Children's Services,THE PERTEMPS GROUP OF COMPANIES,1000901,Agency Worker,Controllable Employees,3300488206,04/01/2023,1604.32
Buckinghamshire Council,Resources,THE PERTEMPS GROUP OF COMPANIES,1000901,Agency Worker,Controllable Employees,3300488207,04/01/2023,2684.55
Buckinghamshire Council,Children's Services,THE PERTEMPS GROUP OF COMPANIES,1000901,Agency Worker,Controllable Employees,3300488209,04/01/2023,1632.81
Buckinghamshire Council,Adults and Health,THE PERTEMPS GROUP OF COMPANIES,1000901,Social Workers - Agency,Controllable Employees,3300488211,04/01/2023,1537.35
Buckinghamshire Council,"Planning, Growth & Sustainability",THE PERTEMPS GROUP OF COMPANIES,1000901,Agency Worker,Controllable Employees,3300488213,04/01/2023,2692.86
Buckinghamshire Council,Adults and Health,THE PERTEMPS GROUP OF COMPANIES,1000901,Social Workers - Agency,Controllable Employees,3300488214,04/01/2023,1445.22
Buckinghamshire Council,Children's Services,THE PERTEMPS GROUP OF COMPANIES,1000901,Social Workers - Agency,Controllable Employees,3300488215,04/01/2023,1732.71
Buckinghamshire Council,Children's Services,THE PERTEMPS GROUP OF COMPANIES,1000901,Agency Worker,Controllable Employees,3300488216,04/01/2023,1732.71
Buckinghamshire Council,Adults and Health,THE PERTEMPS GROUP OF COMPANIES,1000901,Social Workers - Agency,Controllable Employees,3300488217,04/01/2023,1460.76
Buckinghamshire Council,Deputy Chief Executive,THE PERTEMPS GROUP OF COMPANIES,1000901,Agency Worker,Controllable Employees,3300488218,04/01/2023,682.65
Buckinghamshire Council,"Planning, Growth & Sustainability",THE PERTEMPS GROUP OF COMPANIES,1000901,Agency Worker,Controllable Employees,3300488219,04/01/2023,3170.16
Buckinghamshire Council,Adults and Health,THE PERTEMPS GROUP OF COMPANIES,1000901,Social Workers - Agency,Controllable Employees,3300488220,04/01/2023,1171.8
Buckinghamshire Council,Adults and Health,THE PERTEMPS GROUP OF COMPANIES,1000901,Agency Worker,Controllable Employees,3300488221,04/01/2023,1231.8
Buckinghamshire Council,Adults and Health,THE PERTEMPS GROUP OF COMPANIES,1000901,Social Workers - Agency,Controllable Employees,3300488223,04/01/2023,1445.22
Buckinghamshire Council,Adults and Health,THE PERTEMPS GROUP OF COMPANIES,1000901,Social Workers - Agency,Controllable Employees,3300488225,04/01/2023,1460.76
Buckinghamshire Council,Adults and Health,THE PERTEMPS GROUP OF COMPANIES,1000901,Social Workers - Agency,Controllable Employees,3300488226,04/01/2023,1313.55
Buckinghamshire Council,Adults and Health,THE PERTEMPS GROUP OF COMPANIES,1000901,Social Workers - Agency,Controllable Employees,3300488227,04/01/2023,832.5
Buckinghamshire Council,"Planning, Growth & Sustainability",THE PERTEMPS GROUP OF COMPANIES,1000901,Agency Worker,Controllable Employees,3300488228,04/01/2023,1858.51
Buckinghamshire Council,"Planning, Growth & Sustainability",THE PERTEMPS GROUP OF COMPANIES,1000901,Agency Worker,Controllable Employees,3300488229,04/01/2023,3056.63
Buckinghamshire Council,Children's Services,THE PERTEMPS GROUP OF COMPANIES,1000901,Agency Worker,Controllable Employees,3300488230,04/01/2023,1725.68
Buckinghamshire Council,Children's Services,THE PERTEMPS GROUP OF COMPANIES,1000901,Social Workers - Agency,Controllable Employees,3300488231,04/01/2023,1529.58
Buckinghamshire Council,Children's Services,THE PERTEMPS GROUP OF COMPANIES,1000901,Social Workers - Agency,Controllable Employees,3300488232,04/01/2023,1543.64
Buckinghamshire Council,Children's Services,THE PERTEMPS GROUP OF COMPANIES,1000901,Social Workers - Agency,Controllable Employees,3300488233,04/01/2023,1246.5
Buckinghamshire Council,Children's Services,THE PERTEMPS GROUP OF COMPANIES,1000901,Agency Worker,Controllable Employees,3300488234,04/01/2023,786.62
Buckinghamshire Council,Children's Services,THE PERTEMPS GROUP OF COMPANIES,1000901,Social Workers - Agency,Controllable Employees,3300488236,04/01/2023,1725.68
Buckinghamshire Council,Children's Services,THE PERTEMPS GROUP OF COMPANIES,1000901,Social Workers - Agency,Controllable Employees,3300488237,04/01/2023,1638.73
Buckinghamshire Council,Adults and Health,THE PERTEMPS GROUP OF COMPANIES,1000901,Social Workers - Agency,Controllable Employees,3300488238,04/01/2023,1460.76
Buckinghamshire Council,"Planning, Growth & Sustainability",THE PERTEMPS GROUP OF COMPANIES,1000901,Agency Worker,Controllable Employees,3300488239,04/01/2023,789.5
Buckinghamshire Council,Children's Services,THE PERTEMPS GROUP OF COMPANIES,1000901,Agency Worker,Controllable Employees,3300488240,04/01/2023,1846.67
Buckinghamshire Council,Adults and Health,THE PERTEMPS GROUP OF COMPANIES,1000901,Social Workers - Agency,Controllable Employees,3300488242,04/01/2023,1445.22
Buckinghamshire Council,"Planning, Growth & Sustainability",THE PERTEMPS GROUP OF COMPANIES,1000901,Agency Worker,Controllable Employees,3300488243,04/01/2023,2468.52
Buckinghamshire Council,Adults and Health,THE PERTEMPS GROUP OF COMPANIES,1000901,Social Workers - Agency,Controllable Employees,3300488244,04/01/2023,1487.03
Buckinghamshire Council,Resources,THE PERTEMPS GROUP OF COMPANIES,1000901,Agency Worker,Controllable Employees,3300488245,04/01/2023,851.24
Buckinghamshire Council,Communities,THE PERTEMPS GROUP OF COMPANIES,1000901,Agency Worker,Controllable Employees,3300488246,04/01/2023,782.73
Buckinghamshire Council,Communities,THE PERTEMPS GROUP OF COMPANIES,1000901,Agency Worker,Controllable Employees,3300488247,04/01/2023,776.97
Buckinghamshire Council,Deputy Chief Executive,THE PERTEMPS GROUP OF COMPANIES,1000901,Agency Worker,Controllable Employees,3300488248,04/01/2023,1308
Buckinghamshire Council,Deputy Chief Executive,THE PERTEMPS GROUP OF COMPANIES,1000901,Agency Worker,Controllable Employees,3300488249,04/01/2023,1264.4
Buckinghamshire Council,Adults and Health,THE PERTEMPS GROUP OF COMPANIES,1000901,Agency Worker,Controllable Employees,3300488250,04/01/2023,2023.86
Buckinghamshire Council,Resources,THE PERTEMPS GROUP OF COMPANIES,1000901,Agency Worker,Controllable Employees,3300488251,04/01/2023,621.97
Buckinghamshire Council,Deputy Chief Executive,THE PERTEMPS GROUP OF COMPANIES,1000901,Agency Worker,Controllable Employees,3300488252,04/01/2023,623.82
Buckinghamshire Council,Communities,THE PERTEMPS GROUP OF COMPANIES,1000901,Agency Worker,Controllable Employees,3300488253,04/01/2023,576.96
Buckinghamshire Council,Children's Services,THE PERTEMPS GROUP OF COMPANIES,1000901,Social Workers - Agency,Controllable Employees,3300488254,04/01/2023,536.36
Buckinghamshire Council,Deputy Chief Executive,THE PERTEMPS GROUP OF COMPANIES,1000901,Agency Worker,Controllable Employees,3300488255,04/01/2023,2679.17
Buckinghamshire Council,Children's Services,THE PERTEMPS GROUP OF COMPANIES,1000901,Agency Worker,Controllable Employees,3300488256,04/01/2023,1707.55
Buckinghamshire Council,Children's Services,THE PERTEMPS GROUP OF COMPANIES,1000901,Social Workers - Agency,Controllable Employees,3300488257,04/01/2023,934.88
Buckinghamshire Council,"Planning, Growth & Sustainability",THE PERTEMPS GROUP OF COMPANIES,1000901,Agency Worker,Controllable Employees,3300488259,04/01/2023,706.53
Buckinghamshire Council,Children's Services,THE PERTEMPS GROUP OF COMPANIES,1000901,Agency Worker,Controllable Employees,3300488260,04/01/2023,1707.55
Buckinghamshire Council,Communities,THE PERTEMPS GROUP OF COMPANIES,1000901,Agency Worker,Controllable Employees,3300488262,04/01/2023,591.54
Buckinghamshire Council,Adults and Health,THE PERTEMPS GROUP OF COMPANIES,1000901,Agency Worker,Controllable Employees,3300488263,04/01/2023,2280.8
Buckinghamshire Council,Adults and Health,THE PERTEMPS GROUP OF COMPANIES,1000901,Agency Worker,Controllable Employees,3300488264,04/01/2023,1231.8
Buckinghamshire Council,"Planning, Growth & Sustainability",THE PERTEMPS GROUP OF COMPANIES,1000901,Agency Worker,Controllable Employees,3300488265,04/01/2023,3068.41
Buckinghamshire Council,"Planning, Growth & Sustainability",THE PERTEMPS GROUP OF COMPANIES,1000901,Agency Worker,Controllable Employees,3300488267,04/01/2023,3645.32
Buckinghamshire Council,Children's Services,THE PERTEMPS GROUP OF COMPANIES,1000901,Social Workers - Agency,Controllable Employees,3300488269,04/01/2023,1580.64
Buckinghamshire Council,Adults and Health,THE PERTEMPS GROUP OF COMPANIES,1000901,Agency Worker,Controllable Employees,3300488270,04/01/2023,1222.53
Buckinghamshire Council,"Planning, Growth & Sustainability",WESTRONICS LTD,1002792,General Repairs & Maintenance,Controllable Premises,7002976700,04/01/2023,2020
Buckinghamshire Council,Children's Services,Claires Court School,1003039,Professional Services (non curriculum) -,Supplies and Services,4101022600,04/01/2023,1904.67
Buckinghamshire Council,Communities,VEOLIA ENVIRONMENTAL SERVICES,1003429,Waste Contract,Agency (third party payments) & Contribs,4101023287,04/01/2023,142088.83
Buckinghamshire Council,Communities,VEOLIA ENVIRONMENTAL SERVICES,1003429,Waste Contract,Agency (third party payments) & Contribs,4101023288,04/01/2023,44942.6
Buckinghamshire Council,Communities,VEOLIA ENVIRONMENTAL SERVICES,1003429,Waste Contract,Agency (third party payments) & Contribs,4101023297,04/01/2023,27680.19
Buckinghamshire Council,Communities,VEOLIA ENVIRONMENTAL SERVICES,1003429,Waste Contract,Agency (third party payments) & Contribs,4101023298,04/01/2023,1080148.05
Buckinghamshire Council,"Planning, Growth & Sustainability",Busy Bee Cleaning Services Ltd,1003858,Cleaning - Contract Services,Controllable Premises,7002976704,04/01/2023,2950
Buckinghamshire Council,Children's Services,Buckinghamshire Healthcare NHS Trus,1003890,Other - OLA,Agency (third party payments) & Contribs,4101025862,04/01/2023,313698.67
Buckinghamshire Council,Children's Services,Wycombe Wanderers Football Club Ltd,1003907,"Courses, Conference and Seminar Fees",Supplies and Services,4101024468,04/01/2023,1428
Buckinghamshire Council,Children's Services,EGERTON-ROTHESAY SCHOOL LTD,1004196,Tuit Fees Pupils at Independent Schools,Transfer Payments (Grants & Assistance),4101026013,04/01/2023,10106
Buckinghamshire Council,Children's Services,EGERTON-ROTHESAY SCHOOL LTD,1004196,Tuit Fees Pupils at Independent Schools,Transfer Payments (Grants & Assistance),4101026014,04/01/2023,8389.4
Buckinghamshire Council,Children's Services,EGERTON-ROTHESAY SCHOOL LTD,1004196,Tuit Fees Pupils at Independent Schools,Transfer Payments (Grants & Assistance),4101026015,04/01/2023,11396
Buckinghamshire Council,Children's Services,EGERTON-ROTHESAY SCHOOL LTD,1004196,Tuit Fees Pupils at Independent Schools,Transfer Payments (Grants & Assistance),4101026016,04/01/2023,9751.7
Buckinghamshire Council,Children's Services,EGERTON-ROTHESAY SCHOOL LTD,1004196,Tuit Fees Pupils at Independent Schools,Transfer Payments (Grants & Assistance),4101026040,04/01/2023,9372.44
Buckinghamshire Council,Children's Services,EGERTON-ROTHESAY SCHOOL LTD,1004196,Tuit Fees Pupils at Independent Schools,Transfer Payments (Grants & Assistance),4101026041,04/01/2023,10308.1
Buckinghamshire Council,Children's Services,EGERTON-ROTHESAY SCHOOL LTD,1004196,Tuit Fees Pupils at Independent Schools,Transfer Payments (Grants & Assistance),4101026042,04/01/2023,12507.05
Buckinghamshire Council,Children's Services,EGERTON-ROTHESAY SCHOOL LTD,1004196,Tuit Fees Pupils at Independent Schools,Transfer Payments (Grants & Assistance),4101026063,04/01/2023,12079.4
Buckinghamshire Council,Children's Services,EGERTON-ROTHESAY SCHOOL LTD,1004196,Tuit Fees Pupils at Independent Schools,Transfer Payments (Grants & Assistance),4101026064,04/01/2023,10135.1
Buckinghamshire Council,Adults and Health,Talkback-UK Ltd,1004236,Day Care  Other,Agency (third party payments) & Contribs,7002976563,04/01/2023,972
Buckinghamshire Council,Adults and Health,Talkback-UK Ltd,1004236,Day Care  Other,Agency (third party payments) & Contribs,7002976564,04/01/2023,648
Buckinghamshire Council,Adults and Health,Talkback-UK Ltd,1004236,Day Care  Other,Agency (third party payments) & Contribs,7002976564,04/01/2023,81
Buckinghamshire Council,"Planning, Growth & Sustainability",SOUTHERN ELECTRIC,1004792,Electricity,Controllable Premises,4500120717,04/01/2023,940.21
Buckinghamshire Council,"Planning, Growth & Sustainability",SDK  Environmental Ltd,1005179,Payments To Contractors,Supplies and Services,4101024741,04/01/2023,10767.08
Buckinghamshire Council,Adults and Health,Epilepsy Society,1005389,Domiciliary care - perm - other,Agency (third party payments) & Contribs,7002976567,04/01/2023,692.92
Buckinghamshire Council,Adults and Health,Epilepsy Society,1005389,Domiciliary care - perm - other,Agency (third party payments) & Contribs,7002976568,04/01/2023,830.28
Buckinghamshire Council,Adults and Health,Epilepsy Society,1005389,Domiciliary care - perm - other,Agency (third party payments) & Contribs,7002976569,04/01/2023,1206.28
Buckinghamshire Council,Adults and Health,Epilepsy Society,1005389,Domiciliary care - perm - other,Agency (third party payments) & Contribs,7002976570,04/01/2023,2098.32
Buckinghamshire Council,Adults and Health,Epilepsy Society,1005389,Domiciliary care - perm - other,Agency (third party payments) & Contribs,7002976571,04/01/2023,3261.32
Buckinghamshire Council,Adults and Health,Epilepsy Society,1005389,Domiciliary care - perm - other,Agency (third party payments) & Contribs,7002976572,04/01/2023,628.2
Buckinghamshire Council,"Planning, Growth & Sustainability",ENERCO DOORS & LOADING BAY SOL LT,1011050,Service Contracts,Controllable Premises,7002976644,04/01/2023,683
Buckinghamshire Council,"Planning, Growth & Sustainability",ENERCO DOORS & LOADING BAY SOL LT,1011050,Service Contracts,Controllable Premises,7002976646,04/01/2023,628
Buckinghamshire Council,Children's Services,Cambian Autism Services Ltd,1012308,Tuit Fees Pupils at Independent Schools,Transfer Payments (Grants & Assistance),4101025892,04/01/2023,708.9
Buckinghamshire Council,Children's Services,Cambian Autism Services Ltd,1012308,Tuit Fees Pupils at Independent Schools,Transfer Payments (Grants & Assistance),4101025893,04/01/2023,708.9
Buckinghamshire Council,Children's Services,Cambian Autism Services Ltd,1012308,Tuit Fees Pupils at Independent Schools,Transfer Payments (Grants & Assistance),4101025894,04/01/2023,708.9
Buckinghamshire Council,Children's Services,Tofield Ltd,1014071,Fixtures & Fittings,Controllable Premises,4101025278,04/01/2023,896
Buckinghamshire Council,"Planning, Growth & Sustainability",Tofield Ltd,1014071,Urgent Repairs & Maintenance,Controllable Premises,7002976655,04/01/2023,1468
Buckinghamshire Council,Communities,Structural Soils Ltd,1015086,Payments To Contractors,Supplies and Services,4101026018,04/01/2023,759
Buckinghamshire Council,Children's Services,Liquid Personnel Ltd,1017705,Social Workers - Agency,Controllable Employees,4101025872,04/01/2023,1844.82
Buckinghamshire Council,Children's Services,Liquid Personnel Ltd,1017705,Social Workers - Agency,Controllable Employees,4101025873,04/01/2023,1022.4
Buckinghamshire Council,Communities,BUDGET CARS LTD,1018573,Contracts (Mainstream),Transport,4101025885,04/01/2023,2468.4
Buckinghamshire Council,Communities,CROWN CABS TRAVEL LTD.,1020517,Contracts (Mainstream),Transport,4101025886,04/01/2023,1880.34
Buckinghamshire Council,Communities,CROWN CABS TRAVEL LTD.,1020517,Contracts (Mainstream),Transport,4101025888,04/01/2023,2501.18
Buckinghamshire Council,"Planning, Growth & Sustainability",Ringway Jacobs Ltd,1021571,Supply of consultancy services,Supplies and Services,4101025870,04/01/2023,8420.85
Buckinghamshire Council,"Planning, Growth & Sustainability",Ringway Jacobs Ltd,1021571,Supply of consultancy services,Supplies and Services,4101025871,04/01/2023,6325.19
Buckinghamshire Council,Planning Growth & Sustainability,Ringway Jacobs Ltd,1021571,Highways Payments to Main Contractor,Capital - Expenditure -Controllable,4101025981,04/01/2023,3351
Buckinghamshire Council,Children's Services,Remedy Recruitment Group Ltd,1022019,Agency Worker,Controllable Employees,4101023122,04/01/2023,1850
Buckinghamshire Council,Children's Services,Remedy Recruitment Group Ltd,1022019,Agency Worker,Controllable Employees,4101023123,04/01/2023,1850
Buckinghamshire Council,Children's Services,Remedy Recruitment Group Ltd,1022019,Agency Worker,Controllable Employees,4101023124,04/01/2023,1850
Buckinghamshire Council,Children's Services,Remedy Recruitment Group Ltd,1022019,Agency Worker,Controllable Employees,4101023125,04/01/2023,1850
Buckinghamshire Council,Children's Services,Remedy Recruitment Group Ltd,1022019,Agency Worker,Controllable Employees,4101023126,04/01/2023,2191.55
Buckinghamshire Council,Children's Services,Remedy Recruitment Group Ltd,1022019,Agency Worker,Controllable Employees,4101023127,04/01/2023,2035
Buckinghamshire Council,Children's Services,Remedy Recruitment Group Ltd,1022019,Agency Worker,Controllable Employees,4101023128,04/01/2023,1850
Buckinghamshire Council,Children's Services,Remedy Recruitment Group Ltd,1022019,Agency Worker,Controllable Employees,4101023129,04/01/2023,2124.91
Buckinghamshire Council,Children's Services,Remedy Recruitment Group Ltd,1022019,Agency Worker,Controllable Employees,4101023130,04/01/2023,1850
Buckinghamshire Council,Children's Services,Remedy Recruitment Group Ltd,1022019,Agency Worker,Controllable Employees,4101023629,04/01/2023,2124.91
Buckinghamshire Council,Children's Services,Family Links,1023673,"Courses, Conference and Seminar Fees",Supplies and Services,4101025416,04/01/2023,4990
Buckinghamshire Council,Children's Services,Family Links,1023673,"Courses, Conference and Seminar Fees",Supplies and Services,4101025417,04/01/2023,4990
Buckinghamshire Council,Children's Services,Family Links,1023673,"Courses, Conference and Seminar Fees",Supplies and Services,4101025418,04/01/2023,14900
Buckinghamshire Council,Children's Services,Family Links,1023673,"Courses, Conference and Seminar Fees",Supplies and Services,4101025419,04/01/2023,2950
Buckinghamshire Council,Children's Services,Aylesbury Waterside Theatre,1024612,Project Funding,Supplies and Services,4101024860,04/01/2023,750
Buckinghamshire Council,"Planning, Growth & Sustainability",RWA Consulting,1024947,Urgent Repairs & Maintenance,Controllable Premises,7002976686,04/01/2023,750
Buckinghamshire Council,Children's Services,Manor Green School,1025797,FEES to OLEA 17/18,Agency (third party payments) & Contribs,4101025803,04/01/2023,9482.34
Buckinghamshire Council,Children's Services,Manor Green School,1025797,FEES to OLEA 17/18,Agency (third party payments) & Contribs,4101025804,04/01/2023,6059.18
Buckinghamshire Council,Children's Services,Manor Green School,1025797,FEES to OLEA 17/18,Agency (third party payments) & Contribs,4101025805,04/01/2023,7763.93
Buckinghamshire Council,Children's Services,Manor Green School,1025797,FEES to OLEA 17/18,Agency (third party payments) & Contribs,4101025806,04/01/2023,4325.16
Buckinghamshire Council,Children's Services,Manor Green School,1025797,FEES to OLEA 17/18,Agency (third party payments) & Contribs,4101025807,04/01/2023,9482.34
Buckinghamshire Council,Children's Services,Manor Green School,1025797,FEES to OLEA 17/18,Agency (third party payments) & Contribs,4101025808,04/01/2023,1407.65
Buckinghamshire Council,Children's Services,Manor Green School,1025797,FEES to OLEA 17/18,Agency (third party payments) & Contribs,4101025809,04/01/2023,9482.34
Buckinghamshire Council,Children's Services,Manor Green School,1025797,FEES to OLEA 17/18,Agency (third party payments) & Contribs,4101025810,04/01/2023,11413.04
Buckinghamshire Council,Children's Services,Manor Green School,1025797,FEES to OLEA 17/18,Agency (third party payments) & Contribs,4101025811,04/01/2023,12905.87
Buckinghamshire Council,Children's Services,Manor Green School,1025797,FEES to OLEA 17/18,Agency (third party payments) & Contribs,4101025812,04/01/2023,7763.93
Buckinghamshire Council,Children's Services,Manor Green School,1025797,FEES to OLEA 17/18,Agency (third party payments) & Contribs,4101025813,04/01/2023,7763.93
Buckinghamshire Council,Children's Services,Manor Green School,1025797,FEES to OLEA 17/18,Agency (third party payments) & Contribs,4101025814,04/01/2023,12905.87
Buckinghamshire Council,Children's Services,Manor Green School,1025797,FEES to OLEA 17/18,Agency (third party payments) & Contribs,4101025815,04/01/2023,4325.16
Buckinghamshire Council,Children's Services,Manor Green School,1025797,FEES to OLEA 17/18,Agency (third party payments) & Contribs,4101025816,04/01/2023,9482.34
Buckinghamshire Council,Children's Services,Manor Green School,1025797,FEES to OLEA 17/18,Agency (third party payments) & Contribs,4101025817,04/01/2023,12905.87
Buckinghamshire Council,Children's Services,Manor Green School,1025797,FEES to OLEA 17/18,Agency (third party payments) & Contribs,4101025818,04/01/2023,9482.34
Buckinghamshire Council,Children's Services,Manor Green School,1025797,FEES to OLEA 17/18,Agency (third party payments) & Contribs,4101025819,04/01/2023,9482.34
Buckinghamshire Council,Children's Services,Manor Green School,1025797,FEES to OLEA 17/18,Agency (third party payments) & Contribs,4101025820,04/01/2023,9482.34
Buckinghamshire Council,Children's Services,Manor Green School,1025797,FEES to OLEA 17/18,Agency (third party payments) & Contribs,4101025821,04/01/2023,6059.18
Buckinghamshire Council,Children's Services,Manor Green School,1025797,FEES to OLEA 17/18,Agency (third party payments) & Contribs,4101025822,04/01/2023,11413.04
Buckinghamshire Council,Children's Services,Manor Green School,1025797,FEES to OLEA 17/18,Agency (third party payments) & Contribs,4101025823,04/01/2023,9482.34
Buckinghamshire Council,Children's Services,Manor Green School,1025797,FEES to OLEA 17/18,Agency (third party payments) & Contribs,4101025824,04/01/2023,9482.34
Buckinghamshire Council,Children's Services,Manor Green School,1025797,FEES to OLEA 17/18,Agency (third party payments) & Contribs,4101025825,04/01/2023,7763.93
Buckinghamshire Council,Children's Services,Manor Green School,1025797,FEES to OLEA 17/18,Agency (third party payments) & Contribs,4101025826,04/01/2023,12905.87
Buckinghamshire Council,Children's Services,Manor Green School,1025797,FEES to OLEA 17/18,Agency (third party payments) & Contribs,4101025827,04/01/2023,9482.34
Buckinghamshire Council,Children's Services,Manor Green School,1025797,FEES to OLEA 17/18,Agency (third party payments) & Contribs,4101025828,04/01/2023,4325.16
Buckinghamshire Council,Children's Services,Manor Green School,1025797,FEES to OLEA 17/18,Agency (third party payments) & Contribs,4101025829,04/01/2023,7763.93
Buckinghamshire Council,Children's Services,Manor Green School,1025797,FEES to OLEA 17/18,Agency (third party payments) & Contribs,4101025830,04/01/2023,15217.39
Buckinghamshire Council,Children's Services,Manor Green School,1025797,FEES to OLEA 17/18,Agency (third party payments) & Contribs,4101025831,04/01/2023,9482.34
Buckinghamshire Council,Children's Services,Manor Green School,1025797,FEES to OLEA 17/18,Agency (third party payments) & Contribs,4101025832,04/01/2023,11413.04
Buckinghamshire Council,Children's Services,Manor Green School,1025797,FEES to OLEA 17/18,Agency (third party payments) & Contribs,4101025833,04/01/2023,9510.87
Buckinghamshire Council,Children's Services,Manor Green School,1025797,FEES to OLEA 17/18,Agency (third party payments) & Contribs,4101025834,04/01/2023,9510.87
Buckinghamshire Council,Children's Services,Manor Green School,1025797,FEES to OLEA 17/18,Agency (third party payments) & Contribs,4101025835,04/01/2023,9510.87
Buckinghamshire Council,Children's Services,Manor Green School,1025797,FEES to OLEA 17/18,Agency (third party payments) & Contribs,4101025839,04/01/2023,5706.52
Buckinghamshire Council,"Planning, Growth & Sustainability",TMP (UK) Ltd,1025972,Advertising,Supplies and Services,4101023150,04/01/2023,590.62
Buckinghamshire Council,Planning Growth & Sustainability,Lewis Developments (Ilmer) Ltd,1026117,Highways Payments to Other Contractors,Capital - Expenditure -Controllable,4101025980,04/01/2023,6500
Buckinghamshire Council,Adults and Health,Terrence Higgins Enterprises,1026681,Payments To Contractors,Supplies and Services,4101024453,04/01/2023,11160
Buckinghamshire Council,"Planning, Growth & Sustainability",Telnik Roofing Ltd,1027376,Buy Back BCC,Controllable Premises,7002976665,04/01/2023,3360
Buckinghamshire Council,Adults and Health,Sees the Day Ltd,1028014,Day Care  Other,Agency (third party payments) & Contribs,7002976574,04/01/2023,378.24
Buckinghamshire Council,Adults and Health,Sees the Day Ltd,1028014,Day Care  Other,Agency (third party payments) & Contribs,7002976574,04/01/2023,806.4
Buckinghamshire Council,Adults and Health,Sees the Day Ltd,1028014,Day Care  Other,Agency (third party payments) & Contribs,7002976574,04/01/2023,336
Buckinghamshire Council,Adults and Health,Sees the Day Ltd,1028014,Day Care  Other,Agency (third party payments) & Contribs,7002976574,04/01/2023,336
Buckinghamshire Council,Adults and Health,Sees the Day Ltd,1028014,Day Care  Other,Agency (third party payments) & Contribs,7002976574,04/01/2023,-444.24
Buckinghamshire Council,Deputy Chief Executive,Ayl & Dist Citizens Advice Bureau,1028739,Grants to Voluntary Bodies,Transfer Payments (Grants & Assistance),4500120641,04/01/2023,1175
Buckinghamshire Council,Children's Services,Prospero Group Ltd,1029184,Sec 20/31: Domiciliary Care,Transfer Payments (Grants & Assistance),4101023941,04/01/2023,1433.52
Buckinghamshire Council,Children's Services,Prospero Group Ltd,1029184,Sec 20/31: Domiciliary Care,Transfer Payments (Grants & Assistance),4101023942,04/01/2023,1433.52
Buckinghamshire Council,Children's Services,Prospero Group Ltd,1029184,Sec 20/31: Domiciliary Care,Transfer Payments (Grants & Assistance),4101023943,04/01/2023,2389.2
Buckinghamshire Council,Children's Services,Prospero Group Ltd,1029184,Sec 20/31: Domiciliary Care,Transfer Payments (Grants & Assistance),4101023944,04/01/2023,955.68
Buckinghamshire Council,Children's Services,Prospero Group Ltd,1029184,Sec 20/31: Specialist Services,Transfer Payments (Grants & Assistance),4101026029,04/01/2023,1353.88
Buckinghamshire Council,"Planning, Growth & Sustainability",Aberley Ltd,1029423,Supply of consultancy services,Supplies and Services,4101025887,04/01/2023,44005
Buckinghamshire Council,"Planning, Growth & Sustainability",Aberley Ltd,1029423,Supply of consultancy services,Supplies and Services,4101025887,04/01/2023,-28284.7
Buckinghamshire Council,Children's Services,Total Security,1030882,General Repairs & Maintenance,Controllable Premises,4101022541,04/01/2023,4694
Buckinghamshire Council,Children's Services,Acorn Care & Education Ltd,1032037,Tuit Fees Pupils at Independent Schools,Transfer Payments (Grants & Assistance),4101025836,04/01/2023,16074.11
Buckinghamshire Council,Children's Services,Acorn Care & Education Ltd,1032037,Tuit Fees Pupils at Independent Schools,Transfer Payments (Grants & Assistance),4101025837,04/01/2023,25308
Buckinghamshire Council,Children's Services,Acorn Care & Education Ltd,1032037,Tuit Fees Pupils at Independent Schools,Transfer Payments (Grants & Assistance),4101025841,04/01/2023,14513.39
Buckinghamshire Council,Communities,Places for People Leisure Ltd,1032866,General Repairs & Maintenance,Controllable Premises,4101022448,04/01/2023,2272
Buckinghamshire Council,Communities,Fire Training Bucks & MK Ltd,1032937,Course Fees & Post Entry Training,Controllable Employees,4101022325,04/01/2023,1200
Buckinghamshire Council,Children's Services,Wilde Spooner Raleigh  Ltd,1032940,Construction - Consultants Fees,Capital - Expenditure -Controllable,7002966856,04/01/2023,3000
Buckinghamshire Council,Children's Services,Wilde Spooner Raleigh  Ltd,1032940,Construction - Consultants Fees,Capital - Expenditure -Controllable,7002968354,04/01/2023,15000
Buckinghamshire Council,Communities,Redline Buses  Ltd,1033870,Contracts (Mainstream),Transport,4101025955,04/01/2023,4520.64
Buckinghamshire Council,Communities,Redline Buses  Ltd,1033870,Contracts (Mainstream),Transport,4101025956,04/01/2023,6212.5
Buckinghamshire Council,Communities,Redline Buses  Ltd,1033870,Contracts (Mainstream),Transport,4101025958,04/01/2023,9276.96
Buckinghamshire Council,Children's Services,Network Healthcare Professional Ltd,1033926,Sec 20/31: Domiciliary Care,Transfer Payments (Grants & Assistance),4101025212,04/01/2023,955.5
Buckinghamshire Council,Children's Services,Network Healthcare Professional Ltd,1033926,Sec 20/31: Domiciliary Care,Transfer Payments (Grants & Assistance),4101025213,04/01/2023,637
Buckinghamshire Council,Children's Services,Network Healthcare Professional Ltd,1033926,Sec 20/31: Domiciliary Care,Transfer Payments (Grants & Assistance),4101025214,04/01/2023,764.4
Buckinghamshire Council,Children's Services,Network Healthcare Professional Ltd,1033926,Sec 20/31: Domiciliary Care,Transfer Payments (Grants & Assistance),4101025219,04/01/2023,637
Buckinghamshire Council,Children's Services,Network Healthcare Professional Ltd,1033926,Sec 20/31: Domiciliary Care,Transfer Payments (Grants & Assistance),4101025221,04/01/2023,764.4
Buckinghamshire Council,Children's Services,Network Healthcare Professional Ltd,1033926,Sec 20/31: Dir Work with Children,Transfer Payments (Grants & Assistance),4101025941,04/01/2023,2019
Buckinghamshire Council,Children's Services,Network Healthcare Professional Ltd,1033926,Sec 20/31: Dir Work with Children,Transfer Payments (Grants & Assistance),4101025942,04/01/2023,1211.4
Buckinghamshire Council,Children's Services,Network Healthcare Professional Ltd,1033926,Sec 20/31: Dir Work with Children,Transfer Payments (Grants & Assistance),4101025943,04/01/2023,807.6
Buckinghamshire Council,Children's Services,Network Healthcare Professional Ltd,1033926,Sec 20/31: Dir Work with Children,Transfer Payments (Grants & Assistance),4101025944,04/01/2023,2759.3
Buckinghamshire Council,Deputy Chief Executive,REDACTED,1034429,Legal Fees,Supplies and Services,4101026026,04/01/2023,675
Buckinghamshire Council,"Planning, Growth & Sustainability",Contour Architecture,1034926,Professional Services (non curriculum) -,Supplies and Services,4101026044,04/01/2023,3850
Buckinghamshire Council,Communities,Cabs4U,1035028,Contracts (Mainstream),Transport,4101025838,04/01/2023,1099.05
Buckinghamshire Council,Communities,Cabs4U,1035028,Contracts (Mainstream),Transport,4101025920,04/01/2023,510.15
Buckinghamshire Council,Adults and Health,Connection Support,1035253,Payments To Contractors,Supplies and Services,4101025897,04/01/2023,42247.24
Buckinghamshire Council,Children's Services,Connection Support,1035253,Grants to Voluntary Bodies,Transfer Payments (Grants & Assistance),4101025935,04/01/2023,17661.92
Buckinghamshire Council,Adults and Health,CommuniKate,1035311,Day Care  Other,Agency (third party payments) & Contribs,7002976579,04/01/2023,857.29
Buckinghamshire Council,Resources,Greatwithtalent Ltd,1035598,Course Fees & Post Entry Training,Controllable Employees,4101022854,04/01/2023,7200
Buckinghamshire Council,Resources,Greatwithtalent Ltd,1035598,Course Fees & Post Entry Training,Controllable Employees,4101022854,04/01/2023,-4000
Buckinghamshire Council,Resources,Greatwithtalent Ltd,1035598,Course Fees & Post Entry Training,Controllable Employees,4101022855,04/01/2023,4000
Buckinghamshire Council,"Planning, Growth & Sustainability",WSP UK Limited,1035637,Professional Services (non curriculum) -,Supplies and Services,4101023171,04/01/2023,8291.67
Buckinghamshire Council,"Planning, Growth & Sustainability",JBA Consulting,1035840,Environmental Projects,Supplies and Services,4101022689,04/01/2023,3105
Buckinghamshire Council,Deputy Chief Executive,Buckingham Area Rural Transport,1036048,Grants to Voluntary Bodies,Transfer Payments (Grants & Assistance),3300491387,04/01/2023,1825
Buckinghamshire Council,Children's Services,Following Whispers Family Service,1036358,Sec 20/31: Financial Assistance,Transfer Payments (Grants & Assistance),4101025800,04/01/2023,1120
Buckinghamshire Council,Children's Services,Mott MacDonald Ltd,1036384,Recoverable Expenditure,Supplies and Services,4101026055,04/01/2023,680
Buckinghamshire Council,Communities,Maydencroft Limited,1036445,General Repairs & Maintenance,Controllable Premises,4101022819,04/01/2023,4938.4
Buckinghamshire Council,"Planning, Growth & Sustainability",Expert Property Care,1036472,Buy Back BCC,Controllable Premises,7002968362,04/01/2023,630
Buckinghamshire Council,Communities,New Networks Ltd,1037318,Supply of consultancy services,Supplies and Services,4101026017,04/01/2023,27764.07
Buckinghamshire Council,Communities,Safesite Ltd,1037487,Protective Clothing & Uniforms,Supplies and Services,4101022484,04/01/2023,535
Buckinghamshire Council,Children's Services,REDACTED,1038087,Professional Services (non curriculum) -,Supplies and Services,4101025883,04/01/2023,900
Buckinghamshire Council,Children's Services,The National Autistic Society,1038137,Tuit Fees Pupils at Independent Schools,Transfer Payments (Grants & Assistance),4101026050,04/01/2023,7737
Buckinghamshire Council,Children's Services,YEME Empowerment,1038190,Professional Services (non curriculum) -,Supplies and Services,4101023888,04/01/2023,500.25
Buckinghamshire Council,Resources,CX Partners,1038424,Professional Services (non curriculum) -,Supplies and Services,4101025051,04/01/2023,830
Buckinghamshire Council,Adults and Health,Affection Care Services Ltd,1038455,Domiciliary care - perm - other,Agency (third party payments) & Contribs,7002976582,04/01/2023,1120
Buckinghamshire Council,Adults and Health,Affection Care Services Ltd,1038455,Domiciliary care - perm - other,Agency (third party payments) & Contribs,7002976582,04/01/2023,72
Buckinghamshire Council,Adults and Health,Affection Care Services Ltd,1038455,Domiciliary care - perm - other,Agency (third party payments) & Contribs,7002976583,04/01/2023,1260
Buckinghamshire Council,"Planning, Growth & Sustainability",Fourth Story Limited,1038500,Professional Services (non curriculum) -,Supplies and Services,4101023938,04/01/2023,7250
Buckinghamshire Council,Adults and Health,Topkare Limited,1038624,Domiciliary care - perm - other,Agency (third party payments) & Contribs,7002976584,04/01/2023,1028.76
Buckinghamshire Council,Adults and Health,Topkare Limited,1038624,Domiciliary care - perm - other,Agency (third party payments) & Contribs,7002976584,04/01/2023,-20.76
Buckinghamshire Council,Adults and Health,Topkare Limited,1038624,Domiciliary care - perm - other,Agency (third party payments) & Contribs,7002976585,04/01/2023,1162.38
Buckinghamshire Council,Adults and Health,Topkare Limited,1038624,Domiciliary care - perm - other,Agency (third party payments) & Contribs,7002976585,04/01/2023,-154.38
Buckinghamshire Council,Deputy Chief Executive,REDACTED,1038759,Legal Fees,Supplies and Services,4101023601,04/01/2023,27750
Buckinghamshire Council,Children's Services,MARS Secure Transport & Recruitment,1039366,Sec 20/31: Financial Assistance,Transfer Payments (Grants & Assistance),4101025875,04/01/2023,1026.95
Buckinghamshire Council,Children's Services,MARS Secure Transport & Recruitment,1039366,Sec 20/31: Financial Assistance,Transfer Payments (Grants & Assistance),4101025876,04/01/2023,2749.95
Buckinghamshire Council,Communities,Bucks Minibus Travel Ltd (t/a Swan,1039661,Contracts (Mainstream),Transport,4101025933,04/01/2023,4392.64
Buckinghamshire Council,Communities,Bucks Minibus Travel Ltd (t/a Swan,1039661,Contracts (Mainstream),Transport,4101025953,04/01/2023,1553.2
Buckinghamshire Council,Adults and Health,Bucks Minibus Travel Ltd (t/a Swan,1039661,Transport - Day Care - external,Transport,4101025963,04/01/2023,2849.25
Buckinghamshire Council,Adults and Health,Bucks Minibus Travel Ltd (t/a Swan,1039661,Transport - Day Care - external,Transport,4101025965,04/01/2023,2963.66
Buckinghamshire Council,Adults and Health,Bucks Minibus Travel Ltd (t/a Swan,1039661,Transport - Day Care - external,Transport,4101025976,04/01/2023,1110.2
Buckinghamshire Council,Deputy Chief Executive,REDACTED,1039872,Legal Fees,Supplies and Services,4101023120,04/01/2023,1050
Buckinghamshire Council,Communities,METRIC GROUP LTD,1040130,Repair and Maintenance of Equipment,Supplies and Services,4101023220,04/01/2023,634.4
Buckinghamshire Council,Communities,DS Operations Centre Limited,1040496,Repair and Maintenance of Equipment,Supplies and Services,4101024456,04/01/2023,2104.42
Buckinghamshire Council,Adults and Health,Good Oaks Home Care (Aylesbury),1040653,Domiciliary care - perm - other,Agency (third party payments) & Contribs,7002976587,04/01/2023,723.8
Buckinghamshire Council,Adults and Health,Good Oaks Home Care (Aylesbury),1040653,Domiciliary care - perm - other,Agency (third party payments) & Contribs,7002976587,04/01/2023,11.2
Buckinghamshire Council,Adults and Health,Good Oaks Home Care (Aylesbury),1040653,Domiciliary care - perm - other,Agency (third party payments) & Contribs,7002976588,04/01/2023,1158.08
Buckinghamshire Council,Adults and Health,Good Oaks Home Care (Aylesbury),1040653,Domiciliary care - perm - other,Agency (third party payments) & Contribs,7002976588,04/01/2023,1158.08
Buckinghamshire Council,Adults and Health,Good Oaks Home Care (Aylesbury),1040653,Domiciliary care - perm - other,Agency (third party payments) & Contribs,7002976588,04/01/2023,35.84
Buckinghamshire Council,Adults and Health,Good Oaks Home Care (Aylesbury),1040653,Domiciliary care - perm - other,Agency (third party payments) & Contribs,7002976589,04/01/2023,1302.84
Buckinghamshire Council,Adults and Health,Good Oaks Home Care (Aylesbury),1040653,Domiciliary care - perm - other,Agency (third party payments) & Contribs,7002976589,04/01/2023,20.16
Buckinghamshire Council,Adults and Health,Good Oaks Home Care (Aylesbury),1040653,Domiciliary care - perm - other,Agency (third party payments) & Contribs,7002976590,04/01/2023,1470.84
Buckinghamshire Council,Adults and Health,Good Oaks Home Care (Aylesbury),1040653,Domiciliary care - perm - other,Agency (third party payments) & Contribs,7002976590,04/01/2023,-116.34
Buckinghamshire Council,Adults and Health,Good Oaks Home Care (Aylesbury),1040653,Domiciliary care - perm - other,Agency (third party payments) & Contribs,7002976592,04/01/2023,1326.08
Buckinghamshire Council,Adults and Health,Good Oaks Home Care (Aylesbury),1040653,Domiciliary care - perm - other,Agency (third party payments) & Contribs,7002976592,04/01/2023,17.92
Buckinghamshire Council,Adults and Health,Good Oaks Home Care (Aylesbury),1040653,Domiciliary care - perm - other,Agency (third party payments) & Contribs,7002976593,04/01/2023,723.8
Buckinghamshire Council,Adults and Health,Good Oaks Home Care (Aylesbury),1040653,Domiciliary care - perm - other,Agency (third party payments) & Contribs,7002976593,04/01/2023,11.2
Buckinghamshire Council,Adults and Health,Good Oaks Home Care (Aylesbury),1040653,Domiciliary care - perm - other,Agency (third party payments) & Contribs,7002976594,04/01/2023,1302.84
Buckinghamshire Council,Adults and Health,Good Oaks Home Care (Aylesbury),1040653,Domiciliary care - perm - other,Agency (third party payments) & Contribs,7002976594,04/01/2023,20.16
Buckinghamshire Council,Adults and Health,Good Oaks Home Care (Aylesbury),1040653,Domiciliary care - perm - other,Agency (third party payments) & Contribs,7002976595,04/01/2023,961.52
Buckinghamshire Council,Adults and Health,Good Oaks Home Care (Aylesbury),1040653,Domiciliary care - perm - other,Agency (third party payments) & Contribs,7002976595,04/01/2023,4.48
Buckinghamshire Council,Adults and Health,Good Oaks Home Care (Aylesbury),1040653,Domiciliary care - perm - other,Agency (third party payments) & Contribs,7002976597,04/01/2023,1292.5
Buckinghamshire Council,Adults and Health,Good Oaks Home Care (Aylesbury),1040653,Domiciliary care - perm - other,Agency (third party payments) & Contribs,7002976597,04/01/2023,1292.5
Buckinghamshire Council,Adults and Health,Good Oaks Home Care (Aylesbury),1040653,Domiciliary care - perm - other,Agency (third party payments) & Contribs,7002976597,04/01/2023,-201.5
Buckinghamshire Council,Adults and Health,Good Oaks Home Care (Aylesbury),1040653,Domiciliary care - perm - other,Agency (third party payments) & Contribs,7002976598,04/01/2023,672.1
Buckinghamshire Council,Adults and Health,Good Oaks Home Care (Aylesbury),1040653,Domiciliary care - perm - other,Agency (third party payments) & Contribs,7002976598,04/01/2023,10.4
Buckinghamshire Council,Adults and Health,Good Oaks Home Care (Aylesbury),1040653,Domiciliary care - perm - other,Agency (third party payments) & Contribs,7002976599,04/01/2023,1708.56
Buckinghamshire Council,Adults and Health,Good Oaks Home Care (Aylesbury),1040653,Domiciliary care - perm - other,Agency (third party payments) & Contribs,7002976599,04/01/2023,-291.06
Buckinghamshire Council,Adults and Health,Gain Healthcare,1040655,Supported Living - Additional Care,Agency (third party payments) & Contribs,7002976562,04/01/2023,10946.57
Buckinghamshire Council,Adults and Health,Gain Healthcare,1040655,Supported Living - Additional Care,Agency (third party payments) & Contribs,7002976562,04/01/2023,7776
Buckinghamshire Council,Adults and Health,Gain Healthcare,1040655,Supported Living - Other,Agency (third party payments) & Contribs,7002976562,04/01/2023,1243.74
Buckinghamshire Council,Adults and Health,F� Care Ltd,1040873,Domiciliary care - perm - other,Agency (third party payments) & Contribs,7002976603,04/01/2023,1764
Buckinghamshire Council,Adults and Health,F� Care Ltd,1040873,Domiciliary care - perm - other,Agency (third party payments) & Contribs,7002976603,04/01/2023,1764
Buckinghamshire Council,Adults and Health,F� Care Ltd,1040873,Domiciliary care - perm - other,Agency (third party payments) & Contribs,7002976603,04/01/2023,-84
Buckinghamshire Council,Children's Services,Bedford Greenacre Indpend. School,1041055,Tuit Fees Pupils at Independent Schools,Transfer Payments (Grants & Assistance),4101023222,04/01/2023,7850.66
Buckinghamshire Council,Children's Services,Active Care Group,1041094,Maintenance & Attendance F - Residential,Agency (third party payments) & Contribs,4101025898,04/01/2023,510
Buckinghamshire Council,Children's Services,Active Care Group,1041094,Maintenance & Attendance F - Residential,Agency (third party payments) & Contribs,4101025899,04/01/2023,2380
Buckinghamshire Council,Children's Services,Active Care Group,1041094,Maintenance & Attendance F - Residential,Agency (third party payments) & Contribs,4101025900,04/01/2023,2210
Buckinghamshire Council,Children's Services,Active Care Group,1041094,Maintenance & Attendance F - Residential,Agency (third party payments) & Contribs,4101025901,04/01/2023,510
Buckinghamshire Council,"Planning, Growth & Sustainability",CAG Consultants,1041309,Supply of consultancy services,Supplies and Services,4101022483,04/01/2023,2492.75
Buckinghamshire Council,Children's Services,Talking Life Ltd,1041346,Continuing Professional Development,Controllable Employees,4101022198,04/01/2023,695
Buckinghamshire Council,Children's Services,Kym Scott Consultancy Ltd,1041502,Payments - Other Bodies,Transfer Payments (Grants & Assistance),4101024258,04/01/2023,800
Buckinghamshire Council,Adults and Health,Quality & Compassion Ltd,1041671,Domiciliary care - perm - other,Agency (third party payments) & Contribs,7002976605,04/01/2023,952
Buckinghamshire Council,Adults and Health,Quality & Compassion Ltd,1041671,Domiciliary care - perm - other,Agency (third party payments) & Contribs,7002976605,04/01/2023,7096.32
Buckinghamshire Council,Adults and Health,Quality & Compassion Ltd,1041671,Domiciliary care - perm - other,Agency (third party payments) & Contribs,7002976605,04/01/2023,-3.92
Buckinghamshire Council,Deputy Chief Executive,ADJ Flooring ltd t/a Willow Carpets,1042075,Other Personal Needs,Supplies and Services,4101025993,04/01/2023,794.17
Buckinghamshire Council,Deputy Chief Executive,ADJ Flooring ltd t/a Willow Carpets,1042075,Other Personal Needs,Supplies and Services,4101025994,04/01/2023,779.78
Buckinghamshire Council,Deputy Chief Executive,ADJ Flooring ltd t/a Willow Carpets,1042075,Other Personal Needs,Supplies and Services,4101025995,04/01/2023,553.11
Buckinghamshire Council,Adults and Health,Grace Eyre Foundation,1042085,Supported Living - Other,Agency (third party payments) & Contribs,7002970914,04/01/2023,1344
Buckinghamshire Council,Adults and Health,Grace Eyre Foundation,1042085,Supported Living - Other,Agency (third party payments) & Contribs,7002970914,04/01/2023,1743.06
Buckinghamshire Council,Adults and Health,Grace Eyre Foundation,1042085,Supported Living - Other,Agency (third party payments) & Contribs,7002970914,04/01/2023,9408
Buckinghamshire Council,Adults and Health,Grace Eyre Foundation,1042085,Supported Living - Other,Agency (third party payments) & Contribs,7002970914,04/01/2023,9408
Buckinghamshire Council,Adults and Health,Grace Eyre Foundation,1042085,Supported Living - Other,Agency (third party payments) & Contribs,7002970914,04/01/2023,9408
Buckinghamshire Council,Adults and Health,Grace Eyre Foundation,1042085,Supported Living - Other,Agency (third party payments) & Contribs,7002970914,04/01/2023,9408
Buckinghamshire Council,Adults and Health,Grace Eyre Foundation,1042085,Supported Living - Other,Agency (third party payments) & Contribs,7002970914,04/01/2023,1980
Buckinghamshire Council,Adults and Health,Grace Eyre Foundation,1042085,Supported Living - Other,Agency (third party payments) & Contribs,7002970914,04/01/2023,9408
Buckinghamshire Council,Adults and Health,Grace Eyre Foundation,1042085,Supported Living - Other,Agency (third party payments) & Contribs,7002970914,04/01/2023,2310
Buckinghamshire Council,Adults and Health,Innovative Start,1042166,Domiciliary care - perm - other,Agency (third party payments) & Contribs,7002976606,04/01/2023,-697.41
Buckinghamshire Council,Adults and Health,Innovative Start,1042166,Domiciliary care - perm - other,Agency (third party payments) & Contribs,7002976606,04/01/2023,0.54
Buckinghamshire Council,Adults and Health,Innovative Start,1042166,Domiciliary care - perm - other,Agency (third party payments) & Contribs,7002976606,04/01/2023,697.41
Buckinghamshire Council,Adults and Health,Innovative Start,1042166,Domiciliary care - perm - other,Agency (third party payments) & Contribs,7002976606,04/01/2023,813.75
Buckinghamshire Council,Adults and Health,Innovative Start,1042166,Domiciliary care - perm - other,Agency (third party payments) & Contribs,7002976606,04/01/2023,813.75
Buckinghamshire Council,Adults and Health,Innovative Start,1042166,Domiciliary care - perm - other,Agency (third party payments) & Contribs,7002976608,04/01/2023,1394.96
Buckinghamshire Council,Adults and Health,Innovative Start,1042166,Domiciliary care - perm - other,Agency (third party payments) & Contribs,7002976608,04/01/2023,1394.96
Buckinghamshire Council,Adults and Health,Innovative Start,1042166,Domiciliary care - perm - other,Agency (third party payments) & Contribs,7002976608,04/01/2023,1
Buckinghamshire Council,Adults and Health,Innovative Start,1042166,Domiciliary care - perm - other,Agency (third party payments) & Contribs,7002976609,04/01/2023,1394.96
Buckinghamshire Council,Adults and Health,Innovative Start,1042166,Domiciliary care - perm - other,Agency (third party payments) & Contribs,7002976609,04/01/2023,1394.96
Buckinghamshire Council,Adults and Health,Innovative Start,1042166,Domiciliary care - perm - other,Agency (third party payments) & Contribs,7002976609,04/01/2023,1
Buckinghamshire Council,Adults and Health,Innovative Start,1042166,Domiciliary care - perm - other,Agency (third party payments) & Contribs,7002976610,04/01/2023,1394.96
Buckinghamshire Council,Adults and Health,Innovative Start,1042166,Domiciliary care - perm - other,Agency (third party payments) & Contribs,7002976610,04/01/2023,1394.96
Buckinghamshire Council,Adults and Health,Innovative Start,1042166,Domiciliary care - perm - other,Agency (third party payments) & Contribs,7002976610,04/01/2023,1
Buckinghamshire Council,Adults and Health,Innovative Start,1042166,Domiciliary care - perm - other,Agency (third party payments) & Contribs,7002976611,04/01/2023,1284.56
Buckinghamshire Council,Adults and Health,Innovative Start,1042166,Domiciliary care - perm - other,Agency (third party payments) & Contribs,7002976611,04/01/2023,0.16
Buckinghamshire Council,Adults and Health,Innovative Start,1042166,Domiciliary care - perm - other,Agency (third party payments) & Contribs,7002976612,04/01/2023,1394.96
Buckinghamshire Council,Adults and Health,Innovative Start,1042166,Domiciliary care - perm - other,Agency (third party payments) & Contribs,7002976612,04/01/2023,0.48
Buckinghamshire Council,Adults and Health,Innovative Start,1042166,Domiciliary care - perm - other,Agency (third party payments) & Contribs,7002976613,04/01/2023,1239.84
Buckinghamshire Council,Adults and Health,Innovative Start,1042166,Domiciliary care - perm - other,Agency (third party payments) & Contribs,7002976613,04/01/2023,0.56
Buckinghamshire Council,Adults and Health,Innovative Start,1042166,Domiciliary care - perm - other,Agency (third party payments) & Contribs,7002976615,04/01/2023,525.92
Buckinghamshire Council,Adults and Health,Innovative Start,1042166,Domiciliary care - perm - other,Agency (third party payments) & Contribs,7002976615,04/01/2023,619.92
Buckinghamshire Council,Adults and Health,Innovative Start,1042166,Domiciliary care - perm - other,Agency (third party payments) & Contribs,7002976615,04/01/2023,-370.6
Buckinghamshire Council,Adults and Health,Innovative Start,1042166,Domiciliary care - perm - other,Agency (third party payments) & Contribs,7002976617,04/01/2023,708.52
Buckinghamshire Council,Adults and Health,Innovative Start,1042166,Domiciliary care - perm - other,Agency (third party payments) & Contribs,7002976617,04/01/2023,0.28
Buckinghamshire Council,Adults and Health,Innovative Start,1042166,Domiciliary care - perm - other,Agency (third party payments) & Contribs,7002976618,04/01/2023,775
Buckinghamshire Council,Adults and Health,Innovative Start,1042166,Domiciliary care - perm - other,Agency (third party payments) & Contribs,7002976618,04/01/2023,-16.36
Buckinghamshire Council,Adults and Health,Innovative Start,1042166,Domiciliary care - perm - other,Agency (third party payments) & Contribs,7002976619,04/01/2023,619.92
Buckinghamshire Council,Adults and Health,Innovative Start,1042166,Domiciliary care - perm - other,Agency (third party payments) & Contribs,7002976619,04/01/2023,0.28
Buckinghamshire Council,Adults and Health,Innovative Start,1042166,Domiciliary care - perm - other,Agency (third party payments) & Contribs,7002976620,04/01/2023,619.92
Buckinghamshire Council,Adults and Health,Innovative Start,1042166,Domiciliary care - perm - other,Agency (third party payments) & Contribs,7002976620,04/01/2023,619.92
Buckinghamshire Council,Adults and Health,Innovative Start,1042166,Domiciliary care - perm - other,Agency (third party payments) & Contribs,7002976620,04/01/2023,0.56
Buckinghamshire Council,Adults and Health,Innovative Start,1042166,Domiciliary care - perm - other,Agency (third party payments) & Contribs,7002976625,04/01/2023,1394.96
Buckinghamshire Council,Adults and Health,Innovative Start,1042166,Domiciliary care - perm - other,Agency (third party payments) & Contribs,7002976625,04/01/2023,1394.96
Buckinghamshire Council,Adults and Health,Innovative Start,1042166,Domiciliary care - perm - other,Agency (third party payments) & Contribs,7002976625,04/01/2023,1
Buckinghamshire Council,Children's Services,REDACTED,1042599,Support for Foster Carers,Agency (third party payments) & Contribs,4101022223,04/01/2023,581.37
Buckinghamshire Council,Children's Services,REDACTED,1042599,Support for Foster Carers,Agency (third party payments) & Contribs,4101022631,04/01/2023,1053.55
Buckinghamshire Council,Planning Growth & Sustainability,SOL Services Ltd,1042686,Construction - Building Work,Capital - Expenditure -Controllable,7002976698,04/01/2023,3371.67
Buckinghamshire Council,"Planning, Growth & Sustainability",National World Publishing Limited,1043025,Advertising,Supplies and Services,4101022337,04/01/2023,1138.5
Buckinghamshire Council,Children's Services,Inclusion,1043132,Professional Services (non curriculum) -,Supplies and Services,4101022175,04/01/2023,1035
Buckinghamshire Council,Adults and Health,Willow Support Limited,1043155,Domiciliary care - perm - other,Agency (third party payments) & Contribs,7002976628,04/01/2023,2002
Buckinghamshire Council,Adults and Health,Willow Support Limited,1043155,Domiciliary care - perm - other,Agency (third party payments) & Contribs,7002976628,04/01/2023,2002
Buckinghamshire Council,Adults and Health,Willow Support Limited,1043155,Domiciliary care - perm - other,Agency (third party payments) & Contribs,7002976628,04/01/2023,-220
Buckinghamshire Council,Adults and Health,Willow Support Limited,1043155,Domiciliary care - perm - other,Agency (third party payments) & Contribs,7002976629,04/01/2023,1540
Buckinghamshire Council,Adults and Health,Willow Support Limited,1043155,Domiciliary care - perm - other,Agency (third party payments) & Contribs,7002976629,04/01/2023,1540
Buckinghamshire Council,Adults and Health,Willow Support Limited,1043155,Domiciliary care - perm - other,Agency (third party payments) & Contribs,7002976630,04/01/2023,1474
Buckinghamshire Council,Adults and Health,Willow Support Limited,1043155,Domiciliary care - perm - other,Agency (third party payments) & Contribs,7002976630,04/01/2023,1386
Buckinghamshire Council,Adults and Health,Willow Support Limited,1043155,Domiciliary care - perm - other,Agency (third party payments) & Contribs,7002976631,04/01/2023,924
Buckinghamshire Council,Adults and Health,Willow Support Limited,1043155,Domiciliary care - perm - other,Agency (third party payments) & Contribs,7002976632,04/01/2023,2112
Buckinghamshire Council,Adults and Health,Willow Support Limited,1043155,Domiciliary care - perm - other,Agency (third party payments) & Contribs,7002976632,04/01/2023,1232
Buckinghamshire Council,Adults and Health,Willow Support Limited,1043155,Domiciliary care - perm - other,Agency (third party payments) & Contribs,7002976633,04/01/2023,1386
Buckinghamshire Council,Adults and Health,Willow Support Limited,1043155,Domiciliary care - perm - other,Agency (third party payments) & Contribs,7002976633,04/01/2023,1386
Buckinghamshire Council,Adults and Health,Willow Support Limited,1043155,Domiciliary care - perm - other,Agency (third party payments) & Contribs,7002976634,04/01/2023,577.5
Buckinghamshire Council,Adults and Health,Willow Support Limited,1043155,Domiciliary care - perm - other,Agency (third party payments) & Contribs,7002976635,04/01/2023,22
Buckinghamshire Council,Adults and Health,Willow Support Limited,1043155,Domiciliary care - perm - other,Agency (third party payments) & Contribs,7002976635,04/01/2023,132
Buckinghamshire Council,Adults and Health,Willow Support Limited,1043155,Domiciliary care - perm - other,Agency (third party payments) & Contribs,7002976635,04/01/2023,1782
Buckinghamshire Council,Adults and Health,Willow Support Limited,1043155,Domiciliary care - perm - other,Agency (third party payments) & Contribs,7002976635,04/01/2023,308
Buckinghamshire Council,Adults and Health,Willow Support Limited,1043155,Domiciliary care - perm - other,Agency (third party payments) & Contribs,7002976635,04/01/2023,44
Buckinghamshire Council,Adults and Health,Willow Support Limited,1043155,Domiciliary care - perm - other,Agency (third party payments) & Contribs,7002976635,04/01/2023,44
Buckinghamshire Council,Adults and Health,Willow Support Limited,1043155,Domiciliary care - perm - other,Agency (third party payments) & Contribs,7002976635,04/01/2023,-66
Buckinghamshire Council,Deputy Chief Executive,REDACTED,1043214,Legal Fees,Supplies and Services,4101025746,04/01/2023,800
Buckinghamshire Council,Children's Services,REDACTED,1043342,Supply of consultancy services,Supplies and Services,4101025802,04/01/2023,2400
Buckinghamshire Council,Children's Services,REDACTED,1043402,Professional Services (non curriculum) -,Supplies and Services,4101025912,04/01/2023,962.5
Buckinghamshire Council,Adults and Health,Ridge View Homes Ltd (Cairnside),1043546,Supported Living - Other,Agency (third party payments) & Contribs,7002970922,04/01/2023,2340
Buckinghamshire Council,Adults and Health,NSSL Holding Ltd,1043547,Supported Living - Other,Agency (third party payments) & Contribs,7002970923,04/01/2023,2380
Buckinghamshire Council,Adults and Health,NSSL Holding Ltd,1043547,Supported Living - Other,Agency (third party payments) & Contribs,7002970923,04/01/2023,798
Buckinghamshire Council,Adults and Health,Ridge View Homes Ltd (West Wycombe,1043558,Supported Living - Other,Agency (third party payments) & Contribs,7002970924,04/01/2023,5453.68
Buckinghamshire Council,Adults and Health,Ridge View Homes Ltd (West Wycombe,1043558,Supported Living - Other,Agency (third party payments) & Contribs,7002970924,04/01/2023,5294.84
Buckinghamshire Council,Adults and Health,Ridge View Homes Ltd (West Wycombe,1043558,Supported Living - Other,Agency (third party payments) & Contribs,7002970924,04/01/2023,5562.76
Buckinghamshire Council,Adults and Health,Ridge View Homes Ltd (West Wycombe,1043558,Supported Living - Other,Agency (third party payments) & Contribs,7002970924,04/01/2023,5453.68
Buckinghamshire Council,Adults and Health,Ridge View Homes Ltd (West Wycombe,1043558,Supported Living - Other,Agency (third party payments) & Contribs,7002970924,04/01/2023,5453.68
Buckinghamshire Council,Adults and Health,Ridge View Homes Ltd (West Wycombe,1043558,Supported Living - Other,Agency (third party payments) & Contribs,7002970924,04/01/2023,5460
Buckinghamshire Council,Deputy Chief Executive,REDACTED,1043561,Legal Fees,Supplies and Services,4101022655,04/01/2023,2000
Buckinghamshire Council,Children's Services,Wild for Life,1043569,Activities & General Recreation,Supplies and Services,4101023066,04/01/2023,20000
Buckinghamshire Council,"Planning, Growth & Sustainability",Chandler Garvey Ltd,1331414,Miscellaneous (Other)  Expenses,Supplies and Services,4101021987,04/01/2023,600
Buckinghamshire Council,Deputy Chief Executive,AXIS12 LTD,1331730,Software Rental (Annual),Supplies and Services,4101025861,04/01/2023,1115
Buckinghamshire Council,"Planning, Growth & Sustainability",COLLIERS INTERNATIONAL,1332009,"Rents, Wayleaves & Hire of Premises",Controllable Premises,4101025165,04/01/2023,105296.25
Buckinghamshire Council,"Planning, Growth & Sustainability",COLLIERS INTERNATIONAL,1332009,"Rents, Wayleaves & Hire of Premises",Controllable Premises,4101025165,04/01/2023,6498
Buckinghamshire Council,"Planning, Growth & Sustainability",REDACTED,1332851,Supply of consultancy services,Supplies and Services,4101023849,04/01/2023,24116.2
Buckinghamshire Council,Resources,NEC Software Solutions UK Ltd,1332956,Professional Services (non curriculum) -,Supplies and Services,4101022587,04/01/2023,2700
Buckinghamshire Council,Communities,REDACTED,1333059,Repair & Maint of Vehicles & Plant,Transport,4101025781,04/01/2023,5881.2
Buckinghamshire Council,Communities,REDACTED,1333059,Repair & Maint of Vehicles & Plant,Transport,4101025781,04/01/2023,49.06
Buckinghamshire Council,Communities,TELESHORE UK LTD,1333487,Urns & Caskets,Supplies and Services,4101023109,04/01/2023,2992
Buckinghamshire Council,Communities,TELESHORE UK LTD,1333487,Urns & Caskets,Supplies and Services,4101023109,04/01/2023,80
Buckinghamshire Council,Communities,TELESHORE UK LTD,1333487,Urns & Caskets,Supplies and Services,4101023109,04/01/2023,142
Buckinghamshire Council,Communities,TELESHORE UK LTD,1333487,Urns & Caskets,Supplies and Services,4101023109,04/01/2023,1496
Buckinghamshire Council,Communities,TELESHORE UK LTD,1333487,Urns & Caskets,Supplies and Services,4101023109,04/01/2023,40
Buckinghamshire Council,Communities,TELESHORE UK LTD,1333487,Urns & Caskets,Supplies and Services,4101023109,04/01/2023,67.5
Buckinghamshire Council,"Planning, Growth & Sustainability",WSP UK LTD,1333777,Professional Services (non curriculum) -,Supplies and Services,4101023321,04/01/2023,8007
Buckinghamshire Council,Communities,FAUN ZOELLER UK LTD,1333904,Repair & Maint of Vehicles & Plant,Transport,4101022327,04/01/2023,5965.45
Buckinghamshire Council,"Planning, Growth & Sustainability",LAND USE CONSULTANTS,1333954,Professional Services (non curriculum) -,Supplies and Services,4101025934,04/01/2023,4820
Buckinghamshire Council,Communities,Vale Tyre Service Ltd,1334070,Repair & Maint of Vehicles & Plant,Transport,4101022335,04/01/2023,800
Buckinghamshire Council,Children's Services,REDACTED,1334568,Professional Services (non curriculum) -,Supplies and Services,4101025882,04/01/2023,650
Buckinghamshire Council,Children's Services,REDACTED,1334688,Professional Services (non curriculum) -,Supplies and Services,4101025998,04/01/2023,2190.47
Buckinghamshire Council,Deputy Chief Executive,Croydon Council,1410010,Audit Fee,Supplies and Services,4101025131,04/01/2023,20417
Buckinghamshire Council,"Planning, Growth & Sustainability",Sheffield Teaching Hospitals,1410985,Doctors Fees for Toxicology Tests,Supplies and Services,4101025057,04/01/2023,6840
Buckinghamshire Council,"Planning, Growth & Sustainability",STEEPLE CLAYDON PARISH COUNCIL,1800274,Project Funding,Supplies and Services,3300490572,04/01/2023,2837.4
Buckinghamshire Council,Children's Services,ST PIERS SCHOOL,1800294,College Placements,Agency (third party payments) & Contribs,4101025954,04/01/2023,19611.58
Buckinghamshire Council,Adults and Health,ST PIERS SCHOOL,1800294,Res care-permanent - other,Agency (third party payments) & Contribs,4101025954,04/01/2023,28931.93
Buckinghamshire Council,"Planning, Growth & Sustainability",Twyford Parish Council,1807497,Project Funding,Supplies and Services,3300490568,04/01/2023,835.75
Buckinghamshire Council,"Planning, Growth & Sustainability",Calvert Green Parish Council,1810450,Project Funding,Supplies and Services,3300490571,04/01/2023,2837.4
Buckinghamshire Council,"Planning, Growth & Sustainability",Charndon Parish Council,1810466,Project Funding,Supplies and Services,3300490569,04/01/2023,2126.23
Buckinghamshire Council,Children's Services,Louise Field Consultancy Ltd,1817189,Professional Services (non curriculum) -,Supplies and Services,4101025877,04/01/2023,900
Buckinghamshire Council,Children's Services,REDACTED,1817443,Professional Services (non curriculum) -,Supplies and Services,4101025881,04/01/2023,2000
Buckinghamshire Council,Children's Services,REDACTED,1820162,Joint Authority Direct Payments,Agency (third party payments) & Contribs,7002976396,04/01/2023,690
Buckinghamshire Council,Children's Services,Paynetics UK Limited,1820884,Activities & General Recreation,Supplies and Services,4101023151,04/01/2023,2389.36
Buckinghamshire Council,Deputy Chief Executive,Mehiel Foundation,1821272,Payments - Other Bodies,Transfer Payments (Grants & Assistance),4101025863,04/01/2023,1309.18
Buckinghamshire Council,"Planning, Growth & Sustainability",OTV for BACS,1999990,Assistance to Private Landlords,Supplies and Services,3300490578,04/01/2023,1500
Buckinghamshire Council,Planning Growth & Sustainability,OTV for BACS,1999990,Grants (Capital Expenditure),Capital - Expenditure -Controllable,3300491377,04/01/2023,1037.2
Buckinghamshire Council,Deputy Chief Executive,OTV for BACS,1999990,Miscellaneous (Other)  Expenses,Supplies and Services,3300490583,04/01/2023,798.6
Buckinghamshire Council,Children's Services,TENCER LIMITED,1000023,Construction - Building Work,Capital - Expenditure -Controllable,7002977118,06/01/2023,1680.95
Buckinghamshire Council,Communities,HeyfordianTravel Limited,1000307,Contracts (Mainstream),Transport,4101026186,06/01/2023,3600
Buckinghamshire Council,Communities,HeyfordianTravel Limited,1000307,Contracts (Mainstream),Transport,4101026187,06/01/2023,3836
Buckinghamshire Council,Communities,Neales Taxis Ltd,1000473,Contracts (Mainstream),Transport,4101026119,06/01/2023,954.36
Buckinghamshire Council,Children's Services,Neales Taxis Ltd,1000473,Transport - Day Care - external,Transport,4101026229,06/01/2023,1756.7
Buckinghamshire Council,Adults and Health,Neales Taxis Ltd,1000473,Transport - Day Care - external,Transport,4101026230,06/01/2023,545.75
Buckinghamshire Council,Adults and Health,Neales Taxis Ltd,1000473,Transport - Day Care - external,Transport,4101026230,06/01/2023,0.04
Buckinghamshire Council,Communities,PREMIUM MINIBUSES & CARS LTD,1000478,Contracts (Mainstream),Transport,4101026233,06/01/2023,1897.5
Buckinghamshire Council,Communities,PREMIUM MINIBUSES & CARS LTD,1000478,Contracts (Mainstream),Transport,4101026265,06/01/2023,1198
Buckinghamshire Council,Adults and Health,Bucks Vision,1000512,Payments To Contractors,Supplies and Services,4101025584,06/01/2023,24559.17
Buckinghamshire Council,"Planning, Growth & Sustainability",KEE SERVICES LTD,1000542,Service Contracts,Controllable Premises,7002977107,06/01/2023,587.01
Buckinghamshire Council,Resources,Royal Mail Group Ltd,1000878,General Postage,Supplies and Services,4500120732,06/01/2023,1055
Buckinghamshire Council,"Planning, Growth & Sustainability",OccupEye,1001076,Surveys,Supplies and Services,7002977117,06/01/2023,46424.54
Buckinghamshire Council,Communities,CENTREWIRE LIMITED,1002485,CROW Act - Expenditure,Agency (third party payments) & Contribs,4101026379,06/01/2023,1751
Buckinghamshire Council,Communities,CENTREWIRE LIMITED,1002485,CROW Act - Expenditure,Agency (third party payments) & Contribs,4101026380,06/01/2023,3405
Buckinghamshire Council,Planning Growth & Sustainability,Matchtech Group Plc,1002697,Highways Direct Payments Other Services,Capital - Expenditure -Controllable,4101026333,06/01/2023,50242.5
Buckinghamshire Council,Resources,Kinto UK Ltd,1002707,Professional Services (non curriculum) -,Supplies and Services,4101026179,06/01/2023,873.43
Buckinghamshire Council,"Planning, Growth & Sustainability",WESTRONICS LTD,1002792,Urgent Repairs & Maintenance,Controllable Premises,7002968373,06/01/2023,590
Buckinghamshire Council,Adults and Health,Housing Solutions Ltd,1003043,Supported Living - Block,Agency (third party payments) & Contribs,4101026326,06/01/2023,733.12
Buckinghamshire Council,Adults and Health,Housing Solutions Ltd,1003043,Supported Living - Block,Agency (third party payments) & Contribs,4101026327,06/01/2023,932.48
Buckinghamshire Council,Adults and Health,Housing Solutions Ltd,1003043,Supported Living - Block,Agency (third party payments) & Contribs,4101026330,06/01/2023,575.64
Buckinghamshire Council,Children's Services,Tot Town Nursery Ltd,1003899,Sec 20/31: Financial Assistance,Transfer Payments (Grants & Assistance),4101026143,06/01/2023,584
Buckinghamshire Council,Children's Services,Oxford Health NHS Foundation Trust,1004025,Other - OLA,Agency (third party payments) & Contribs,4101026223,06/01/2023,83492
Buckinghamshire Council,Children's Services,Oxford Health NHS Foundation Trust,1004025,Other - OLA,Agency (third party payments) & Contribs,4101026422,06/01/2023,791806.87
Buckinghamshire Council,Children's Services,THE PACE CENTRE,1004044,Tuit Fees Pupils at Independent Schools,Transfer Payments (Grants & Assistance),4101026453,06/01/2023,20210
Buckinghamshire Council,Children's Services,THE PACE CENTRE,1004044,Tuit Fees Pupils at Independent Schools,Transfer Payments (Grants & Assistance),4101026454,06/01/2023,5561
Buckinghamshire Council,Children's Services,THE PACE CENTRE,1004044,Tuit Fees Pupils at Independent Schools,Transfer Payments (Grants & Assistance),4101026455,06/01/2023,16158
Buckinghamshire Council,Children's Services,THE PACE CENTRE,1004044,Tuit Fees Pupils at Independent Schools,Transfer Payments (Grants & Assistance),4101026456,06/01/2023,17946
Buckinghamshire Council,Children's Services,THE PACE CENTRE,1004044,Tuit Fees Pupils at Independent Schools,Transfer Payments (Grants & Assistance),4101026457,06/01/2023,16125
Buckinghamshire Council,Children's Services,THE PACE CENTRE,1004044,Tuit Fees Pupils at Independent Schools,Transfer Payments (Grants & Assistance),4101026458,06/01/2023,17200
Buckinghamshire Council,Children's Services,THE PACE CENTRE,1004044,Tuit Fees Pupils at Independent Schools,Transfer Payments (Grants & Assistance),4101026459,06/01/2023,17946
Buckinghamshire Council,Children's Services,THE PACE CENTRE,1004044,Tuit Fees Pupils at Independent Schools,Transfer Payments (Grants & Assistance),4101026460,06/01/2023,22797
Buckinghamshire Council,Children's Services,THE PACE CENTRE,1004044,Tuit Fees Pupils at Independent Schools,Transfer Payments (Grants & Assistance),4101026461,06/01/2023,18459
Buckinghamshire Council,Children's Services,THE PACE CENTRE,1004044,Tuit Fees Pupils at Independent Schools,Transfer Payments (Grants & Assistance),4101026462,06/01/2023,16232
Buckinghamshire Council,Children's Services,THE PACE CENTRE,1004044,Tuit Fees Pupils at Independent Schools,Transfer Payments (Grants & Assistance),4101026463,06/01/2023,2506
Buckinghamshire Council,Children's Services,THE PACE CENTRE,1004044,Tuit Fees Pupils at Independent Schools,Transfer Payments (Grants & Assistance),4101026464,06/01/2023,16125
Buckinghamshire Council,Children's Services,THE PACE CENTRE,1004044,Tuit Fees Pupils at Independent Schools,Transfer Payments (Grants & Assistance),4101026465,06/01/2023,16231
Buckinghamshire Council,Children's Services,THE PACE CENTRE,1004044,Tuit Fees Pupils at Independent Schools,Transfer Payments (Grants & Assistance),4101026466,06/01/2023,16125
Buckinghamshire Council,Children's Services,THE PACE CENTRE,1004044,Tuit Fees Pupils at Independent Schools,Transfer Payments (Grants & Assistance),4101026467,06/01/2023,16231
Buckinghamshire Council,Children's Services,THE PACE CENTRE,1004044,Tuit Fees Pupils at Independent Schools,Transfer Payments (Grants & Assistance),4101026468,06/01/2023,20778.33
Buckinghamshire Council,Children's Services,EGERTON-ROTHESAY SCHOOL LTD,1004196,Tuit Fees Pupils at Independent Schools,Transfer Payments (Grants & Assistance),4101026065,06/01/2023,10211
Buckinghamshire Council,Children's Services,EGERTON-ROTHESAY SCHOOL LTD,1004196,Tuit Fees Pupils at Independent Schools,Transfer Payments (Grants & Assistance),4101026066,06/01/2023,11391
Buckinghamshire Council,Children's Services,EGERTON-ROTHESAY SCHOOL LTD,1004196,Tuit Fees Pupils at Independent Schools,Transfer Payments (Grants & Assistance),4101026067,06/01/2023,2375.08
Buckinghamshire Council,Children's Services,EGERTON-ROTHESAY SCHOOL LTD,1004196,Tuit Fees Pupils at Independent Schools,Transfer Payments (Grants & Assistance),4101026068,06/01/2023,16058
Buckinghamshire Council,Children's Services,EGERTON-ROTHESAY SCHOOL LTD,1004196,Tuit Fees Pupils at Independent Schools,Transfer Payments (Grants & Assistance),4101026069,06/01/2023,8883.2
Buckinghamshire Council,Children's Services,EGERTON-ROTHESAY SCHOOL LTD,1004196,Tuit Fees Pupils at Independent Schools,Transfer Payments (Grants & Assistance),4101026070,06/01/2023,8499.8
Buckinghamshire Council,Children's Services,EGERTON-ROTHESAY SCHOOL LTD,1004196,Tuit Fees Pupils at Independent Schools,Transfer Payments (Grants & Assistance),4101026071,06/01/2023,13140.8
Buckinghamshire Council,Children's Services,EGERTON-ROTHESAY SCHOOL LTD,1004196,Tuit Fees Pupils at Independent Schools,Transfer Payments (Grants & Assistance),4101026072,06/01/2023,9449.8
Buckinghamshire Council,Children's Services,EGERTON-ROTHESAY SCHOOL LTD,1004196,Tuit Fees Pupils at Independent Schools,Transfer Payments (Grants & Assistance),4101026073,06/01/2023,11499.1
Buckinghamshire Council,Children's Services,EGERTON-ROTHESAY SCHOOL LTD,1004196,Tuit Fees Pupils at Independent Schools,Transfer Payments (Grants & Assistance),4101026074,06/01/2023,10714
Buckinghamshire Council,Children's Services,EGERTON-ROTHESAY SCHOOL LTD,1004196,Tuit Fees Pupils at Independent Schools,Transfer Payments (Grants & Assistance),4101026075,06/01/2023,10308.1
Buckinghamshire Council,Children's Services,EGERTON-ROTHESAY SCHOOL LTD,1004196,Tuit Fees Pupils at Independent Schools,Transfer Payments (Grants & Assistance),4101026076,06/01/2023,10257.4
Buckinghamshire Council,Children's Services,EGERTON-ROTHESAY SCHOOL LTD,1004196,Tuit Fees Pupils at Independent Schools,Transfer Payments (Grants & Assistance),4101026093,06/01/2023,9736.1
Buckinghamshire Council,Children's Services,EGERTON-ROTHESAY SCHOOL LTD,1004196,Tuit Fees Pupils at Independent Schools,Transfer Payments (Grants & Assistance),4101026094,06/01/2023,9874
Buckinghamshire Council,Children's Services,EGERTON-ROTHESAY SCHOOL LTD,1004196,Tuit Fees Pupils at Independent Schools,Transfer Payments (Grants & Assistance),4101026095,06/01/2023,14893.4
Buckinghamshire Council,Children's Services,EGERTON-ROTHESAY SCHOOL LTD,1004196,Tuit Fees Pupils at Independent Schools,Transfer Payments (Grants & Assistance),4101026096,06/01/2023,10215.35
Buckinghamshire Council,Children's Services,EGERTON-ROTHESAY SCHOOL LTD,1004196,Tuit Fees Pupils at Independent Schools,Transfer Payments (Grants & Assistance),4101026097,06/01/2023,11169.5
Buckinghamshire Council,Children's Services,EGERTON-ROTHESAY SCHOOL LTD,1004196,Tuit Fees Pupils at Independent Schools,Transfer Payments (Grants & Assistance),4101026098,06/01/2023,9838
Buckinghamshire Council,Children's Services,EGERTON-ROTHESAY SCHOOL LTD,1004196,Tuit Fees Pupils at Independent Schools,Transfer Payments (Grants & Assistance),4101026099,06/01/2023,10283
Buckinghamshire Council,Adults and Health,MACINTYRE CARE,1004563,Res care-permanent - other,Agency (third party payments) & Contribs,4101026220,06/01/2023,14743.9
Buckinghamshire Council,Children's Services,MACINTYRE CARE,1004563,Tuit Fees Pupils at Independent Schools,Transfer Payments (Grants & Assistance),4101026220,06/01/2023,14743.9
Buckinghamshire Council,Adults and Health,GOLD HILL HOUSING ASSOCIATION,1005375,Domiciliary care - perm - other,Agency (third party payments) & Contribs,7002976905,06/01/2023,86.52
Buckinghamshire Council,Adults and Health,GOLD HILL HOUSING ASSOCIATION,1005375,Domiciliary care - perm - other,Agency (third party payments) & Contribs,7002976905,06/01/2023,757.12
Buckinghamshire Council,Adults and Health,GOLD HILL HOUSING ASSOCIATION,1005375,Domiciliary care - perm - other,Agency (third party payments) & Contribs,7002976905,06/01/2023,1363.04
Buckinghamshire Council,Adults and Health,GOLD HILL HOUSING ASSOCIATION,1005375,Domiciliary care - perm - other,Agency (third party payments) & Contribs,7002976905,06/01/2023,-670.88
Buckinghamshire Council,Adults and Health,GOLD HILL HOUSING ASSOCIATION,1005375,Domiciliary care - perm - other,Agency (third party payments) & Contribs,7002976906,06/01/2023,757.12
Buckinghamshire Council,Adults and Health,GOLD HILL HOUSING ASSOCIATION,1005375,Domiciliary care - perm - other,Agency (third party payments) & Contribs,7002976906,06/01/2023,1363.04
Buckinghamshire Council,Adults and Health,GOLD HILL HOUSING ASSOCIATION,1005375,Domiciliary care - perm - other,Agency (third party payments) & Contribs,7002976906,06/01/2023,86.52
Buckinghamshire Council,Adults and Health,GOLD HILL HOUSING ASSOCIATION,1005375,Domiciliary care - perm - other,Agency (third party payments) & Contribs,7002976906,06/01/2023,-714.1
Buckinghamshire Council,Adults and Health,GOLD HILL HOUSING ASSOCIATION,1005375,Domiciliary care - perm - other,Agency (third party payments) & Contribs,7002976907,06/01/2023,908.88
Buckinghamshire Council,Adults and Health,GOLD HILL HOUSING ASSOCIATION,1005375,Domiciliary care - perm - other,Agency (third party payments) & Contribs,7002976907,06/01/2023,-152.04
Buckinghamshire Council,Adults and Health,GOLD HILL HOUSING ASSOCIATION,1005375,Domiciliary care - perm - other,Agency (third party payments) & Contribs,7002976908,06/01/2023,908.88
Buckinghamshire Council,Adults and Health,GOLD HILL HOUSING ASSOCIATION,1005375,Domiciliary care - perm - other,Agency (third party payments) & Contribs,7002976908,06/01/2023,-152.04
Buckinghamshire Council,Resources,HCL Technologies UK Ltd,1006666,Professional Services (non curriculum) -,Supplies and Services,4101024350,06/01/2023,12625
Buckinghamshire Council,Adults and Health,NOTTINGHAM REHAB LTD,1006886,Specialist Equipment,Supplies and Services,4101026429,06/01/2023,1006869.36
Buckinghamshire Council,Communities,BUDGET CARS,1007608,Contracts (Mainstream),Transport,4101026123,06/01/2023,1258.87
Buckinghamshire Council,Communities,THOMLEY ACTIVITY CENTRE,1011171,Miscellaneous (Other)  Expenses,Supplies and Services,4101024344,06/01/2023,965
Buckinghamshire Council,Planning Growth & Sustainability,Thames Water Utilities Ltd,1013155,Water,Capital - Expenditure -Controllable,4101026269,06/01/2023,386029.2
Buckinghamshire Council,"Planning, Growth & Sustainability",Tofield Ltd,1014071,General Repairs & Maintenance,Controllable Premises,7002977133,06/01/2023,4783
Buckinghamshire Council,Communities,AUTOSCREENS,1014869,Repair & Maint of Vehicles & Plant,Transport,4101026446,06/01/2023,628.1
Buckinghamshire Council,Children's Services,Stone and Fairford Leys Childcare L,1015135,Professional Services (non curriculum) -,Supplies and Services,4101023079,06/01/2023,2981.22
Buckinghamshire Council,"Planning, Growth & Sustainability",Fairhive Homes Limited,1015316,Project Funding,Supplies and Services,4101023476,06/01/2023,655.88
Buckinghamshire Council,"Planning, Growth & Sustainability",Fairhive Homes Limited,1015316,Project Funding,Supplies and Services,4101023476,06/01/2023,170.3
Buckinghamshire Council,Deputy Chief Executive,Community Impact Bucks,1016030,Service Contracts,Controllable Premises,4101026320,06/01/2023,15602.5
Buckinghamshire Council,Adults and Health,Express Travel Uk Ltd,1017957,Transport - Day Care - external,Transport,4101026120,06/01/2023,1782
Buckinghamshire Council,Adults and Health,SSA Quality Care,1018525,Domiciliary care - perm - other,Agency (third party payments) & Contribs,7002976912,06/01/2023,903.84
Buckinghamshire Council,Adults and Health,SSA Quality Care,1018525,Domiciliary care - perm - other,Agency (third party payments) & Contribs,7002976912,06/01/2023,-0.05
Buckinghamshire Council,Adults and Health,SSA Quality Care,1018525,Domiciliary care - perm - other,Agency (third party payments) & Contribs,7002976912,06/01/2023,0.05
Buckinghamshire Council,Adults and Health,SSA Quality Care,1018525,Domiciliary care - perm - other,Agency (third party payments) & Contribs,7002976913,06/01/2023,1205.4
Buckinghamshire Council,Adults and Health,SSA Quality Care,1018525,Domiciliary care - perm - other,Agency (third party payments) & Contribs,7002976913,06/01/2023,5399.6
Buckinghamshire Council,Adults and Health,SSA Quality Care,1018525,Domiciliary care - perm - other,Agency (third party payments) & Contribs,7002976915,06/01/2023,1248.2
Buckinghamshire Council,Adults and Health,SSA Quality Care,1018525,Domiciliary care - perm - other,Agency (third party payments) & Contribs,7002976915,06/01/2023,-0.04
Buckinghamshire Council,Adults and Health,SSA Quality Care,1018525,Domiciliary care - perm - other,Agency (third party payments) & Contribs,7002976916,06/01/2023,903.84
Buckinghamshire Council,Adults and Health,SSA Quality Care,1018525,Domiciliary care - perm - other,Agency (third party payments) & Contribs,7002976916,06/01/2023,-0.05
Buckinghamshire Council,Adults and Health,SSA Quality Care,1018525,Domiciliary care - perm - other,Agency (third party payments) & Contribs,7002976916,06/01/2023,0.05
Buckinghamshire Council,Adults and Health,SSA Quality Care,1018525,Domiciliary care - perm - other,Agency (third party payments) & Contribs,7002976917,06/01/2023,753.48
Buckinghamshire Council,Adults and Health,SSA Quality Care,1018525,Domiciliary care - perm - other,Agency (third party payments) & Contribs,7002976917,06/01/2023,1356.04
Buckinghamshire Council,Adults and Health,SSA Quality Care,1018525,Domiciliary care - perm - other,Agency (third party payments) & Contribs,7002976917,06/01/2023,-1582.15
Buckinghamshire Council,Adults and Health,SSA Quality Care,1018525,Domiciliary care - perm - other,Agency (third party payments) & Contribs,7002976917,06/01/2023,0.01
Buckinghamshire Council,Adults and Health,SSA Quality Care,1018525,Domiciliary care - perm - other,Agency (third party payments) & Contribs,7002976918,06/01/2023,903.84
Buckinghamshire Council,Adults and Health,SSA Quality Care,1018525,Domiciliary care - perm - other,Agency (third party payments) & Contribs,7002976918,06/01/2023,774.8
Buckinghamshire Council,Adults and Health,SSA Quality Care,1018525,Domiciliary care - perm - other,Agency (third party payments) & Contribs,7002976918,06/01/2023,-903.85
Buckinghamshire Council,Adults and Health,SSA Quality Care,1018525,Domiciliary care - perm - other,Agency (third party payments) & Contribs,7002976918,06/01/2023,-0.07
Buckinghamshire Council,Adults and Health,SSA Quality Care,1018525,Domiciliary care - perm - other,Agency (third party payments) & Contribs,7002976919,06/01/2023,1506.96
Buckinghamshire Council,Adults and Health,SSA Quality Care,1018525,Domiciliary care - perm - other,Agency (third party payments) & Contribs,7002976919,06/01/2023,2109.52
Buckinghamshire Council,Adults and Health,SSA Quality Care,1018525,Domiciliary care - perm - other,Agency (third party payments) & Contribs,7002976919,06/01/2023,-0.05
Buckinghamshire Council,Adults and Health,SSA Quality Care,1018525,Domiciliary care - perm - other,Agency (third party payments) & Contribs,7002976919,06/01/2023,0.05
Buckinghamshire Council,Adults and Health,SSA Quality Care,1018525,Domiciliary care - perm - other,Agency (third party payments) & Contribs,7002976920,06/01/2023,753.48
Buckinghamshire Council,Adults and Health,SSA Quality Care,1018525,Domiciliary care - perm - other,Agency (third party payments) & Contribs,7002976920,06/01/2023,172.24
Buckinghamshire Council,Adults and Health,SSA Quality Care,1018525,Domiciliary care - perm - other,Agency (third party payments) & Contribs,7002976920,06/01/2023,-0.35
Buckinghamshire Council,Adults and Health,SSA Quality Care,1018525,Domiciliary care - perm - other,Agency (third party payments) & Contribs,7002976920,06/01/2023,-0.01
Buckinghamshire Council,Adults and Health,SSA Quality Care,1018525,Domiciliary care - perm - other,Agency (third party payments) & Contribs,7002976921,06/01/2023,1356.04
Buckinghamshire Council,Adults and Health,SSA Quality Care,1018525,Domiciliary care - perm - other,Agency (third party payments) & Contribs,7002976921,06/01/2023,1356.04
Buckinghamshire Council,Adults and Health,SSA Quality Care,1018525,Domiciliary care - perm - other,Agency (third party payments) & Contribs,7002976921,06/01/2023,-0.1
Buckinghamshire Council,Adults and Health,SSA Quality Care,1018525,Domiciliary care - perm - other,Agency (third party payments) & Contribs,7002976921,06/01/2023,0.1
Buckinghamshire Council,Adults and Health,SSA Quality Care,1018525,Domiciliary care - perm - other,Agency (third party payments) & Contribs,7002976922,06/01/2023,1291.8
Buckinghamshire Council,Adults and Health,SSA Quality Care,1018525,Domiciliary care - perm - other,Agency (third party payments) & Contribs,7002976922,06/01/2023,1636.28
Buckinghamshire Council,Adults and Health,SSA Quality Care,1018525,Domiciliary care - perm - other,Agency (third party payments) & Contribs,7002976922,06/01/2023,688.96
Buckinghamshire Council,Adults and Health,SSA Quality Care,1018525,Domiciliary care - perm - other,Agency (third party payments) & Contribs,7002976922,06/01/2023,-1291.85
Buckinghamshire Council,Adults and Health,SSA Quality Care,1018525,Domiciliary care - perm - other,Agency (third party payments) & Contribs,7002976922,06/01/2023,0.05
Buckinghamshire Council,Communities,BUDGET CARS LTD,1018573,Contracts (Mainstream),Transport,4101025661,06/01/2023,1549.28
Buckinghamshire Council,Communities,BUDGET CARS LTD,1018573,Contracts (Mainstream),Transport,4101025662,06/01/2023,959.04
Buckinghamshire Council,Communities,BUDGET CARS LTD,1018573,Contracts (Mainstream),Transport,4101025663,06/01/2023,590.48
Buckinghamshire Council,Communities,BUDGET CARS LTD,1018573,Contracts (Mainstream),Transport,4101025664,06/01/2023,1254.33
Buckinghamshire Council,Communities,BUDGET CARS LTD,1018573,Contracts (Mainstream),Transport,4101025665,06/01/2023,1656.28
Buckinghamshire Council,Communities,BUDGET CARS LTD,1018573,Contracts (Mainstream),Transport,4101025666,06/01/2023,2307.2
Buckinghamshire Council,Communities,BUDGET CARS LTD,1018573,Contracts (Mainstream),Transport,4101025667,06/01/2023,1138.6
Buckinghamshire Council,Communities,BUDGET CARS LTD,1018573,Contracts (Mainstream),Transport,4101025668,06/01/2023,1864.79
Buckinghamshire Council,Communities,BUDGET CARS LTD,1018573,Contracts (Mainstream),Transport,4101025669,06/01/2023,1591.39
Buckinghamshire Council,Communities,BUDGET CARS LTD,1018573,Contracts (Mainstream),Transport,4101025670,06/01/2023,1113.51
Buckinghamshire Council,Communities,BUDGET CARS LTD,1018573,Contracts (Mainstream),Transport,4101025671,06/01/2023,1690.92
Buckinghamshire Council,Communities,BUDGET CARS LTD,1018573,Contracts (Mainstream),Transport,4101025672,06/01/2023,2496.97
Buckinghamshire Council,Communities,BUDGET CARS LTD,1018573,Contracts (Mainstream),Transport,4101025673,06/01/2023,1570.8
Buckinghamshire Council,Communities,BUDGET CARS LTD,1018573,Contracts (Mainstream),Transport,4101025674,06/01/2023,1516.16
Buckinghamshire Council,Communities,BUDGET CARS LTD,1018573,Contracts (Mainstream),Transport,4101025675,06/01/2023,1802.5
Buckinghamshire Council,Communities,BUDGET CARS LTD,1018573,Contracts (Mainstream),Transport,4101025676,06/01/2023,1405.95
Buckinghamshire Council,Communities,BUDGET CARS LTD,1018573,Contracts (Mainstream),Transport,4101025677,06/01/2023,1596.29
Buckinghamshire Council,Communities,BUDGET CARS LTD,1018573,Contracts (Mainstream),Transport,4101025678,06/01/2023,2166.32
Buckinghamshire Council,Communities,BUDGET CARS LTD,1018573,Contracts (Mainstream),Transport,4101025705,06/01/2023,1417.05
Buckinghamshire Council,Communities,BUDGET CARS LTD,1018573,Contracts (Mainstream),Transport,4101025705,06/01/2023,0.02
Buckinghamshire Council,Communities,BUDGET CARS LTD,1018573,Contracts (Mainstream),Transport,4101025706,06/01/2023,1865.35
Buckinghamshire Council,Communities,BUDGET CARS LTD,1018573,Contracts (Mainstream),Transport,4101025706,06/01/2023,0.02
Buckinghamshire Council,Communities,BUDGET CARS LTD,1018573,Contracts (Mainstream),Transport,4101025710,06/01/2023,1038.24
Buckinghamshire Council,Communities,BUDGET CARS LTD,1018573,Contracts (Mainstream),Transport,4101025711,06/01/2023,2325.57
Buckinghamshire Council,Communities,BUDGET CARS LTD,1018573,Contracts (Mainstream),Transport,4101025712,06/01/2023,1316.28
Buckinghamshire Council,Communities,BUDGET CARS LTD,1018573,Contracts (Mainstream),Transport,4101025713,06/01/2023,770
Buckinghamshire Council,Communities,BUDGET CARS LTD,1018573,Contracts (Mainstream),Transport,4101025714,06/01/2023,2256.4
Buckinghamshire Council,Communities,BUDGET CARS LTD,1018573,Contracts (Mainstream),Transport,4101025716,06/01/2023,1711.12
Buckinghamshire Council,Communities,BUDGET CARS LTD,1018573,Contracts (Mainstream),Transport,4101025717,06/01/2023,1081.5
Buckinghamshire Council,Communities,BUDGET CARS LTD,1018573,Contracts (Mainstream),Transport,4101025718,06/01/2023,1153.6
Buckinghamshire Council,Communities,BUDGET CARS LTD,1018573,Contracts (Mainstream),Transport,4101025719,06/01/2023,2305.47
Buckinghamshire Council,Communities,BUDGET CARS LTD,1018573,Contracts (Mainstream),Transport,4101025720,06/01/2023,2379.3
Buckinghamshire Council,Communities,BUDGET CARS LTD,1018573,Contracts (Mainstream),Transport,4101025721,06/01/2023,1989.96
Buckinghamshire Council,Communities,BUDGET CARS LTD,1018573,Contracts (Mainstream),Transport,4101026235,06/01/2023,646.59
Buckinghamshire Council,Communities,BUDGET CARS LTD,1018573,Contracts (Mainstream),Transport,4101026236,06/01/2023,1178.1
Buckinghamshire Council,Communities,BUDGET CARS LTD,1018573,Contracts (Mainstream),Transport,4101026266,06/01/2023,1297.8
Buckinghamshire Council,Communities,LITTLE CHALFONT COMMUNITY LIBRARY,1019651,Grants to External Bodies,Supplies and Services,4101026144,06/01/2023,1395
Buckinghamshire Council,"Planning, Growth & Sustainability",Bauer Media Group,1020297,Advertising,Supplies and Services,4101026321,06/01/2023,5778.72
Buckinghamshire Council,Children's Services,Bauer Media Group,1020297,Advertising,Supplies and Services,4101026322,06/01/2023,3490.42
Buckinghamshire Council,Children's Services,Bauer Media Group,1020297,Advertising,Supplies and Services,4101026323,06/01/2023,1478.62
Buckinghamshire Council,Communities,CASWELL MAINTENANCE SERVICES LTD,1021208,General Repairs & Maintenance,Controllable Premises,4101023237,06/01/2023,1699.4
Buckinghamshire Council,Adults and Health,ATEGI,1021522,Adult Placement Schemes,Agency (third party payments) & Contribs,7002976923,06/01/2023,1492.44
Buckinghamshire Council,Adults and Health,ATEGI,1021522,Adult Placement Schemes,Agency (third party payments) & Contribs,7002976923,06/01/2023,-0.32
Buckinghamshire Council,Adults and Health,ATEGI,1021522,Adult Placement Schemes,Agency (third party payments) & Contribs,7002976924,06/01/2023,1463.16
Buckinghamshire Council,Adults and Health,ATEGI,1021522,Adult Placement Schemes,Agency (third party payments) & Contribs,7002976924,06/01/2023,28.96
Buckinghamshire Council,Adults and Health,ATEGI,1021522,Adult Placement Schemes,Agency (third party payments) & Contribs,7002976925,06/01/2023,1492.44
Buckinghamshire Council,Adults and Health,ATEGI,1021522,Adult Placement Schemes,Agency (third party payments) & Contribs,7002976925,06/01/2023,-0.32
Buckinghamshire Council,Adults and Health,ATEGI,1021522,Adult Placement Schemes,Agency (third party payments) & Contribs,7002976926,06/01/2023,1492.44
Buckinghamshire Council,Adults and Health,ATEGI,1021522,Adult Placement Schemes,Agency (third party payments) & Contribs,7002976926,06/01/2023,-0.32
Buckinghamshire Council,Adults and Health,ATEGI,1021522,Adult Placement Schemes,Agency (third party payments) & Contribs,7002976927,06/01/2023,1492.44
Buckinghamshire Council,Adults and Health,ATEGI,1021522,Adult Placement Schemes,Agency (third party payments) & Contribs,7002976927,06/01/2023,-0.32
Buckinghamshire Council,Adults and Health,ATEGI,1021522,Adult Placement Schemes,Agency (third party payments) & Contribs,7002976928,06/01/2023,1492.44
Buckinghamshire Council,Adults and Health,ATEGI,1021522,Adult Placement Schemes,Agency (third party payments) & Contribs,7002976928,06/01/2023,-0.32
Buckinghamshire Council,Adults and Health,ATEGI,1021522,Adult Placement Schemes,Agency (third party payments) & Contribs,7002976929,06/01/2023,1492.44
Buckinghamshire Council,Adults and Health,ATEGI,1021522,Adult Placement Schemes,Agency (third party payments) & Contribs,7002976929,06/01/2023,-0.32
Buckinghamshire Council,Adults and Health,ATEGI,1021522,Adult Placement Schemes,Agency (third party payments) & Contribs,7002976930,06/01/2023,1492.32
Buckinghamshire Council,Adults and Health,ATEGI,1021522,Adult Placement Schemes,Agency (third party payments) & Contribs,7002976930,06/01/2023,-0.2
Buckinghamshire Council,Adults and Health,ATEGI,1021522,Adult Placement Schemes,Agency (third party payments) & Contribs,7002976931,06/01/2023,1492.12
Buckinghamshire Council,Adults and Health,ATEGI,1021522,Adult Placement Schemes,Agency (third party payments) & Contribs,7002976932,06/01/2023,1492.12
Buckinghamshire Council,Adults and Health,ATEGI,1021522,Adult Placement Schemes,Agency (third party payments) & Contribs,7002976933,06/01/2023,1492.44
Buckinghamshire Council,Adults and Health,ATEGI,1021522,Adult Placement Schemes,Agency (third party payments) & Contribs,7002976933,06/01/2023,-0.32
Buckinghamshire Council,Adults and Health,ATEGI,1021522,Adult Placement Schemes,Agency (third party payments) & Contribs,7002976934,06/01/2023,1492.32
Buckinghamshire Council,Adults and Health,ATEGI,1021522,Adult Placement Schemes,Agency (third party payments) & Contribs,7002976934,06/01/2023,-0.2
Buckinghamshire Council,Adults and Health,ATEGI,1021522,Adult Placement Schemes,Agency (third party payments) & Contribs,7002976935,06/01/2023,1492.44
Buckinghamshire Council,Adults and Health,ATEGI,1021522,Adult Placement Schemes,Agency (third party payments) & Contribs,7002976935,06/01/2023,-0.32
Buckinghamshire Council,Adults and Health,ATEGI,1021522,Adult Placement Schemes,Agency (third party payments) & Contribs,7002976936,06/01/2023,1492.44
Buckinghamshire Council,Adults and Health,ATEGI,1021522,Adult Placement Schemes,Agency (third party payments) & Contribs,7002976936,06/01/2023,-0.32
Buckinghamshire Council,Adults and Health,ATEGI,1021522,Adult Placement Schemes,Agency (third party payments) & Contribs,7002976937,06/01/2023,1492.44
Buckinghamshire Council,Adults and Health,ATEGI,1021522,Adult Placement Schemes,Agency (third party payments) & Contribs,7002976937,06/01/2023,-0.32
Buckinghamshire Council,Adults and Health,ATEGI,1021522,Adult Placement Schemes,Agency (third party payments) & Contribs,7002976938,06/01/2023,1492.44
Buckinghamshire Council,Adults and Health,ATEGI,1021522,Adult Placement Schemes,Agency (third party payments) & Contribs,7002976938,06/01/2023,-0.32
Buckinghamshire Council,Adults and Health,ATEGI,1021522,Adult Placement Schemes,Agency (third party payments) & Contribs,7002976939,06/01/2023,1492.44
Buckinghamshire Council,Adults and Health,ATEGI,1021522,Adult Placement Schemes,Agency (third party payments) & Contribs,7002976939,06/01/2023,-0.32
Buckinghamshire Council,Adults and Health,ATEGI,1021522,Adult Placement Schemes,Agency (third party payments) & Contribs,7002976940,06/01/2023,1492.44
Buckinghamshire Council,Adults and Health,ATEGI,1021522,Adult Placement Schemes,Agency (third party payments) & Contribs,7002976940,06/01/2023,-0.32
Buckinghamshire Council,Adults and Health,ATEGI,1021522,Adult Placement Schemes,Agency (third party payments) & Contribs,7002976941,06/01/2023,1492.44
Buckinghamshire Council,Adults and Health,ATEGI,1021522,Adult Placement Schemes,Agency (third party payments) & Contribs,7002976941,06/01/2023,-0.32
Buckinghamshire Council,Adults and Health,ATEGI,1021522,Adult Placement Schemes,Agency (third party payments) & Contribs,7002976942,06/01/2023,1448.72
Buckinghamshire Council,Adults and Health,ATEGI,1021522,Adult Placement Schemes,Agency (third party payments) & Contribs,7002976942,06/01/2023,43.4
Buckinghamshire Council,Adults and Health,ATEGI,1021522,Adult Placement Schemes,Agency (third party payments) & Contribs,7002976943,06/01/2023,1953.32
Buckinghamshire Council,Adults and Health,ATEGI,1021522,Adult Placement Schemes,Agency (third party payments) & Contribs,7002976943,06/01/2023,-461.2
Buckinghamshire Council,Adults and Health,ATEGI,1021522,Adult Placement Schemes,Agency (third party payments) & Contribs,7002976944,06/01/2023,1492.2
Buckinghamshire Council,Adults and Health,ATEGI,1021522,Adult Placement Schemes,Agency (third party payments) & Contribs,7002976944,06/01/2023,-0.08
Buckinghamshire Council,Adults and Health,ATEGI,1021522,Adult Placement Schemes,Agency (third party payments) & Contribs,7002976945,06/01/2023,1492.44
Buckinghamshire Council,Adults and Health,ATEGI,1021522,Adult Placement Schemes,Agency (third party payments) & Contribs,7002976945,06/01/2023,-0.32
Buckinghamshire Council,Adults and Health,ATEGI,1021522,Adult Placement Schemes,Agency (third party payments) & Contribs,7002976946,06/01/2023,1492.2
Buckinghamshire Council,Adults and Health,ATEGI,1021522,Adult Placement Schemes,Agency (third party payments) & Contribs,7002976946,06/01/2023,-0.08
Buckinghamshire Council,Adults and Health,ATEGI,1021522,Adult Placement Schemes,Agency (third party payments) & Contribs,7002976947,06/01/2023,1492.44
Buckinghamshire Council,Adults and Health,ATEGI,1021522,Adult Placement Schemes,Agency (third party payments) & Contribs,7002976947,06/01/2023,-0.32
Buckinghamshire Council,Adults and Health,ATEGI,1021522,Adult Placement Schemes,Agency (third party payments) & Contribs,7002976948,06/01/2023,1492.44
Buckinghamshire Council,Adults and Health,ATEGI,1021522,Adult Placement Schemes,Agency (third party payments) & Contribs,7002976948,06/01/2023,-0.32
Buckinghamshire Council,Adults and Health,ATEGI,1021522,Adult Placement Schemes,Agency (third party payments) & Contribs,7002976949,06/01/2023,1492.32
Buckinghamshire Council,Adults and Health,ATEGI,1021522,Adult Placement Schemes,Agency (third party payments) & Contribs,7002976949,06/01/2023,-0.2
Buckinghamshire Council,Adults and Health,ATEGI,1021522,Adult Placement Schemes,Agency (third party payments) & Contribs,7002976950,06/01/2023,1492.44
Buckinghamshire Council,Adults and Health,ATEGI,1021522,Adult Placement Schemes,Agency (third party payments) & Contribs,7002976950,06/01/2023,-0.32
Buckinghamshire Council,Adults and Health,ATEGI,1021522,Adult Placement Schemes,Agency (third party payments) & Contribs,7002976951,06/01/2023,1492.44
Buckinghamshire Council,Adults and Health,ATEGI,1021522,Adult Placement Schemes,Agency (third party payments) & Contribs,7002976951,06/01/2023,-0.32
Buckinghamshire Council,Adults and Health,ATEGI,1021522,Adult Placement Schemes,Agency (third party payments) & Contribs,7002976952,06/01/2023,1492.44
Buckinghamshire Council,Adults and Health,ATEGI,1021522,Adult Placement Schemes,Agency (third party payments) & Contribs,7002976952,06/01/2023,-0.32
Buckinghamshire Council,Adults and Health,ATEGI,1021522,Adult Placement Schemes,Agency (third party payments) & Contribs,7002976953,06/01/2023,1492.44
Buckinghamshire Council,Adults and Health,ATEGI,1021522,Adult Placement Schemes,Agency (third party payments) & Contribs,7002976953,06/01/2023,-0.32
Buckinghamshire Council,Planning Growth & Sustainability,Ringway Jacobs Ltd,1021571,Construction - Consultants Fees,Capital - Expenditure -Controllable,4101026222,06/01/2023,4369.01
Buckinghamshire Council,"Planning, Growth & Sustainability",Ringway Jacobs Ltd,1021571,Jacobs Fees,Supplies and Services,4101026308,06/01/2023,2901.04
Buckinghamshire Council,Planning Growth & Sustainability,Ringway Jacobs Ltd,1021571,Highways Direct Payments Other Services,Capital - Expenditure -Controllable,4101026340,06/01/2023,2284.56
Buckinghamshire Council,"Planning, Growth & Sustainability",Ringway Jacobs Ltd,1021571,Jacobs Fees,Supplies and Services,4101026347,06/01/2023,5509.86
Buckinghamshire Council,"Planning, Growth & Sustainability",Ringway Jacobs Ltd,1021571,Jacobs Fees,Supplies and Services,4101026348,06/01/2023,4028.95
Buckinghamshire Council,Planning Growth & Sustainability,Ringway Jacobs Ltd,1021571,Construction - Consultants Fees,Capital - Expenditure -Controllable,4101026349,06/01/2023,14498.29
Buckinghamshire Council,"Planning, Growth & Sustainability",Ringway Jacobs Ltd,1021571,Jacobs Fees,Supplies and Services,4101026350,06/01/2023,1296.83
Buckinghamshire Council,"Planning, Growth & Sustainability",Ringway Jacobs Ltd,1021571,Jacobs Fees,Supplies and Services,4101026352,06/01/2023,11122.32
Buckinghamshire Council,Adults and Health,Transport Wizard,1022319,Transport - Day Care - external,Transport,4101026121,06/01/2023,6460
Buckinghamshire Council,Communities,Arcus Global Ltd,1023081,Agency Worker,Controllable Employees,4101026190,06/01/2023,20425
Buckinghamshire Council,"Planning, Growth & Sustainability",Akeman Asset Management,1023904,NNDR/Business Rates,Controllable Premises,4101026365,06/01/2023,3150
Buckinghamshire Council,Children's Services,Wycombe Wanderers Community Trust,1024107,Payments - Other Bodies,Transfer Payments (Grants & Assistance),4101024607,06/01/2023,2388
Buckinghamshire Council,Children's Services,TPXimpact Ltd,1024861,Professional Services (non curriculum) -,Supplies and Services,4101024882,06/01/2023,6000
Buckinghamshire Council,Children's Services,TPXimpact Ltd,1024861,Professional Services (non curriculum) -,Supplies and Services,4101024882,06/01/2023,6000
Buckinghamshire Council,"Planning, Growth & Sustainability",Reactive Doors Ltd,1025217,Buy Back BCC,Controllable Premises,7002969720,06/01/2023,3050
Buckinghamshire Council,Communities,Allstar Business Solutions Ltd,1027195,Vehicle Hire,Transport,4101025889,06/01/2023,661.6
Buckinghamshire Council,Communities,Allstar Business Solutions Ltd,1027195,Vehicle Hire,Transport,4101025889,06/01/2023,142.33
Buckinghamshire Council,Communities,Flackwell Heath Community Library,1027614,Grants to External Bodies,Supplies and Services,4101026376,06/01/2023,1250
Buckinghamshire Council,Communities,Bills Minibus & Coach Hire Ltd,1028935,Contracts (Mainstream),Transport,4101026125,06/01/2023,4367.2
Buckinghamshire Council,Children's Services,Prospero Group Ltd,1029184,Sec 20/31: Specialist Services,Transfer Payments (Grants & Assistance),4101026205,06/01/2023,1433.52
Buckinghamshire Council,Children's Services,Prospero Group Ltd,1029184,Sec 20/31: Specialist Services,Transfer Payments (Grants & Assistance),4101026207,06/01/2023,955.68
Buckinghamshire Council,"Planning, Growth & Sustainability",Origin Transport Consultants Ltd,1030992,Supply of consultancy services,Supplies and Services,4101026473,06/01/2023,5301.5
Buckinghamshire Council,"Planning, Growth & Sustainability",Origin Transport Consultants Ltd,1030992,Supply of consultancy services,Supplies and Services,4101026473,06/01/2023,0.06
Buckinghamshire Council,Deputy Chief Executive,CHILTERN RANGERS CIC,1031702,Grants to Voluntary Bodies,Transfer Payments (Grants & Assistance),4101026126,06/01/2023,1287.5
Buckinghamshire Council,Planning Growth & Sustainability,CHILTERN RANGERS CIC,1031702,Detailed Design and Preparation Fees,Capital - Expenditure -Controllable,4101026354,06/01/2023,1900
Buckinghamshire Council,Adults and Health,Bucks Country Homecare,1033888,Domiciliary care - perm - other,Agency (third party payments) & Contribs,7002976957,06/01/2023,924
Buckinghamshire Council,Adults and Health,Bucks Country Homecare,1033888,Domiciliary care - perm - other,Agency (third party payments) & Contribs,7002976957,06/01/2023,-341
Buckinghamshire Council,Adults and Health,Bucks Country Homecare,1033888,Domiciliary care - perm - other,Agency (third party payments) & Contribs,7002976958,06/01/2023,764.4
Buckinghamshire Council,Adults and Health,Bucks Country Homecare,1033888,Domiciliary care - perm - other,Agency (third party payments) & Contribs,7002976958,06/01/2023,-148.4
Buckinghamshire Council,Adults and Health,Bucks Country Homecare,1033888,Domiciliary care - perm - other,Agency (third party payments) & Contribs,7002976960,06/01/2023,1688.4
Buckinghamshire Council,Adults and Health,Bucks Country Homecare,1033888,Domiciliary care - perm - other,Agency (third party payments) & Contribs,7002976960,06/01/2023,1688.4
Buckinghamshire Council,Adults and Health,Bucks Country Homecare,1033888,Domiciliary care - perm - other,Agency (third party payments) & Contribs,7002976960,06/01/2023,-898.8
Buckinghamshire Council,Adults and Health,Bucks Country Homecare,1033888,Domiciliary care - perm - other,Agency (third party payments) & Contribs,7002976961,06/01/2023,1985.2
Buckinghamshire Council,Adults and Health,Bucks Country Homecare,1033888,Domiciliary care - perm - other,Agency (third party payments) & Contribs,7002976961,06/01/2023,1704.8
Buckinghamshire Council,Adults and Health,Bucks Country Homecare,1033888,Domiciliary care - perm - other,Agency (third party payments) & Contribs,7002976961,06/01/2023,-125.9
Buckinghamshire Council,Adults and Health,Bucks Country Homecare,1033888,Domiciliary care - perm - other,Agency (third party payments) & Contribs,7002976964,06/01/2023,1035.3
Buckinghamshire Council,Adults and Health,Bucks Country Homecare,1033888,Domiciliary care - perm - other,Agency (third party payments) & Contribs,7002976964,06/01/2023,1035.3
Buckinghamshire Council,Children's Services,Network Healthcare Professional Ltd,1033926,Sec 20/31: Dir Work with Children,Transfer Payments (Grants & Assistance),4101025945,06/01/2023,1973.91
Buckinghamshire Council,Children's Services,Network Healthcare Professional Ltd,1033926,Sec 20/31: Dir Work with Children,Transfer Payments (Grants & Assistance),4101025946,06/01/2023,2826.6
Buckinghamshire Council,Children's Services,Network Healthcare Professional Ltd,1033926,Sec 20/31: Dir Work with Children,Transfer Payments (Grants & Assistance),4101025947,06/01/2023,1615.2
Buckinghamshire Council,Children's Services,Network Healthcare Professional Ltd,1033926,Sec 20/31: Dir Work with Children,Transfer Payments (Grants & Assistance),4101025950,06/01/2023,2422.8
Buckinghamshire Council,Children's Services,Network Healthcare Professional Ltd,1033926,Sec 20/31: Dir Work with Children,Transfer Payments (Grants & Assistance),4101025951,06/01/2023,2759.3
Buckinghamshire Council,Children's Services,Network Healthcare Professional Ltd,1033926,Sec 20/31: Dir Work with Children,Transfer Payments (Grants & Assistance),4101025952,06/01/2023,807.6
Buckinghamshire Council,Children's Services,Network Healthcare Professional Ltd,1033926,Sec 20/31: Specialist Services,Transfer Payments (Grants & Assistance),4101026390,06/01/2023,967.68
Buckinghamshire Council,Children's Services,Network Healthcare Professional Ltd,1033926,Sec 20/31: Specialist Services,Transfer Payments (Grants & Assistance),4101026393,06/01/2023,898.56
Buckinghamshire Council,Children's Services,Network Healthcare Professional Ltd,1033926,Sec 20/31: Specialist Services,Transfer Payments (Grants & Assistance),4101026395,06/01/2023,2004.48
Buckinghamshire Council,Children's Services,Network Healthcare Professional Ltd,1033926,Sec 20/31: Specialist Services,Transfer Payments (Grants & Assistance),4101026396,06/01/2023,3870.72
Buckinghamshire Council,Children's Services,Network Healthcare Professional Ltd,1033926,Sec 20/31: Specialist Services,Transfer Payments (Grants & Assistance),4101026398,06/01/2023,622.08
Buckinghamshire Council,Children's Services,Network Healthcare Professional Ltd,1033926,Sec 20/31: Specialist Services,Transfer Payments (Grants & Assistance),4101026399,06/01/2023,1097.28
Buckinghamshire Council,Children's Services,Network Healthcare Professional Ltd,1033926,Sec 20/31: Specialist Services,Transfer Payments (Grants & Assistance),4101026400,06/01/2023,2903.04
Buckinghamshire Council,Children's Services,Network Healthcare Professional Ltd,1033926,Sec 20/31: Specialist Services,Transfer Payments (Grants & Assistance),4101026401,06/01/2023,3870.72
Buckinghamshire Council,Children's Services,Network Healthcare Professional Ltd,1033926,Sec 20/31: Specialist Services,Transfer Payments (Grants & Assistance),4101026402,06/01/2023,3110.4
Buckinghamshire Council,Children's Services,Network Healthcare Professional Ltd,1033926,Sec 20/31: Specialist Services,Transfer Payments (Grants & Assistance),4101026404,06/01/2023,1797.12
Buckinghamshire Council,Children's Services,Network Healthcare Professional Ltd,1033926,Sec 20/31: Specialist Services,Transfer Payments (Grants & Assistance),4101026405,06/01/2023,1382.4
Buckinghamshire Council,Children's Services,Network Healthcare Professional Ltd,1033926,Sec 20/31: Specialist Services,Transfer Payments (Grants & Assistance),4101026406,06/01/2023,1874.88
Buckinghamshire Council,Children's Services,Network Healthcare Professional Ltd,1033926,Sec 20/31: Specialist Services,Transfer Payments (Grants & Assistance),4101026407,06/01/2023,1036.8
Buckinghamshire Council,Adults and Health,Excelcare 24 Limited,1034599,Domiciliary care - perm - other,Agency (third party payments) & Contribs,7002976965,06/01/2023,8400
Buckinghamshire Council,Adults and Health,Excelcare 24 Limited,1034599,Domiciliary care - perm - other,Agency (third party payments) & Contribs,7002976966,06/01/2023,1269.24
Buckinghamshire Council,Adults and Health,Excelcare 24 Limited,1034599,Domiciliary care - perm - other,Agency (third party payments) & Contribs,7002976967,06/01/2023,331.8
Buckinghamshire Council,Adults and Health,Excelcare 24 Limited,1034599,Domiciliary care - perm - other,Agency (third party payments) & Contribs,7002976967,06/01/2023,331.8
Buckinghamshire Council,Adults and Health,Excelcare 24 Limited,1034599,Domiciliary care - perm - other,Agency (third party payments) & Contribs,7002976968,06/01/2023,1575
Buckinghamshire Council,Adults and Health,Excelcare 24 Limited,1034599,Domiciliary care - perm - other,Agency (third party payments) & Contribs,7002976968,06/01/2023,5331.28
Buckinghamshire Council,Adults and Health,Excelcare 24 Limited,1034599,Domiciliary care - perm - other,Agency (third party payments) & Contribs,7002976968,06/01/2023,-118.24
Buckinghamshire Council,Adults and Health,Excelcare 24 Limited,1034599,Domiciliary care - perm - other,Agency (third party payments) & Contribs,7002976969,06/01/2023,1327.2
Buckinghamshire Council,Adults and Health,Excelcare 24 Limited,1034599,Domiciliary care - perm - other,Agency (third party payments) & Contribs,7002976969,06/01/2023,5331.28
Buckinghamshire Council,Adults and Health,Excelcare 24 Limited,1034599,Domiciliary care - perm - other,Agency (third party payments) & Contribs,7002976969,06/01/2023,-2615.88
Buckinghamshire Council,Adults and Health,24x7 (Buckinghamshire) Ltd,1034902,Transport - Day Care - external,Transport,4101026231,06/01/2023,2050.58
Buckinghamshire Council,Communities,Cabs4U,1035028,Contracts (Mainstream),Transport,4101026089,06/01/2023,1275.55
Buckinghamshire Council,Communities,A1 Taxiline Ltd,1035140,Contracts (Mainstream),Transport,4101026336,06/01/2023,897
Buckinghamshire Council,Communities,A1 Taxiline Ltd,1035140,Contracts (Mainstream),Transport,4101026337,06/01/2023,1386
Buckinghamshire Council,Adults and Health,A1 Taxiline Ltd,1035140,Transport - Day Care - external,Transport,4101026338,06/01/2023,1100
Buckinghamshire Council,Children's Services,Lee Cunningham Partnership,1035734,Construction - Consultants Fees,Capital - Expenditure -Controllable,7002977119,06/01/2023,600
Buckinghamshire Council,Communities,Star Travel Services Ltd,1035871,Contracts (Mainstream),Transport,4101026261,06/01/2023,3396.16
Buckinghamshire Council,Children's Services,SoloProtect Ltd,1036305,IT Equipment Purchase,Supplies and Services,4101024873,06/01/2023,1400
Buckinghamshire Council,Children's Services,LVS Oxford,1036453,Tuit Fees Pupils at Independent Schools,Transfer Payments (Grants & Assistance),4101026159,06/01/2023,9350
Buckinghamshire Council,"Planning, Growth & Sustainability",Norse Commercial Services Ltd,1036798,Surveys,Supplies and Services,7002968398,06/01/2023,550
Buckinghamshire Council,"Planning, Growth & Sustainability",Norse Commercial Services Ltd,1036798,Surveys,Supplies and Services,7002968418,06/01/2023,1920
Buckinghamshire Council,Adults and Health,Matrix Service Development & Traini,1036836,Supply of consultancy services,Supplies and Services,4101025476,06/01/2023,3667.65
Buckinghamshire Council,Communities,New Networks Ltd,1037318,Professional Services (non curriculum) -,Supplies and Services,4101026160,06/01/2023,4936.81
Buckinghamshire Council,Children's Services,The Jam Academy,1037659,Tuit Fees Pupils at Independent Schools,Transfer Payments (Grants & Assistance),4101026303,06/01/2023,845
Buckinghamshire Council,Children's Services,The Jam Academy,1037659,Tuit Fees Pupils at Independent Schools,Transfer Payments (Grants & Assistance),4101026304,06/01/2023,845
Buckinghamshire Council,Children's Services,The Jam Academy,1037659,Tuit Fees Pupils at Independent Schools,Transfer Payments (Grants & Assistance),4101026305,06/01/2023,845
Buckinghamshire Council,Children's Services,The Jam Academy,1037659,Tuit Fees Pupils at Independent Schools,Transfer Payments (Grants & Assistance),4101026318,06/01/2023,845
Buckinghamshire Council,Adults and Health,SureCare Wycombe & Chiltern,1038073,Domiciliary care - perm - other,Agency (third party payments) & Contribs,7002976971,06/01/2023,1081
Buckinghamshire Council,Adults and Health,SureCare Wycombe & Chiltern,1038073,Domiciliary care - perm - other,Agency (third party payments) & Contribs,7002976971,06/01/2023,-22.13
Buckinghamshire Council,Adults and Health,SureCare Wycombe & Chiltern,1038073,Domiciliary care - perm - other,Agency (third party payments) & Contribs,7002976972,06/01/2023,1288
Buckinghamshire Council,Adults and Health,SureCare Wycombe & Chiltern,1038073,Domiciliary care - perm - other,Agency (third party payments) & Contribs,7002976972,06/01/2023,-414
Buckinghamshire Council,Adults and Health,SureCare Wycombe & Chiltern,1038073,Domiciliary care - perm - other,Agency (third party payments) & Contribs,7002976973,06/01/2023,1932
Buckinghamshire Council,Adults and Health,SureCare Wycombe & Chiltern,1038073,Domiciliary care - perm - other,Agency (third party payments) & Contribs,7002976973,06/01/2023,-506
Buckinghamshire Council,Children's Services,"Everyday Arts Ltd, The Green School",1038287,Tuit Fees Pupils at Independent Schools,Transfer Payments (Grants & Assistance),4101026366,06/01/2023,10250
Buckinghamshire Council,Children's Services,"Everyday Arts Ltd, The Green School",1038287,Tuit Fees Pupils at Independent Schools,Transfer Payments (Grants & Assistance),4101026367,06/01/2023,10250
Buckinghamshire Council,Children's Services,"Everyday Arts Ltd, The Green School",1038287,Tuit Fees Pupils at Independent Schools,Transfer Payments (Grants & Assistance),4101026368,06/01/2023,10250
Buckinghamshire Council,Children's Services,"Everyday Arts Ltd, The Green School",1038287,Tuit Fees Pupils at Independent Schools,Transfer Payments (Grants & Assistance),4101026369,06/01/2023,12500
Buckinghamshire Council,Children's Services,"Everyday Arts Ltd, The Green School",1038287,Tuit Fees Pupils at Independent Schools,Transfer Payments (Grants & Assistance),4101026370,06/01/2023,10250
Buckinghamshire Council,Children's Services,"Everyday Arts Ltd, The Green School",1038287,Tuit Fees Pupils at Independent Schools,Transfer Payments (Grants & Assistance),4101026371,06/01/2023,10250
Buckinghamshire Council,Children's Services,"Everyday Arts Ltd, The Green School",1038287,Tuit Fees Pupils at Independent Schools,Transfer Payments (Grants & Assistance),4101026372,06/01/2023,12500
Buckinghamshire Council,Children's Services,"Everyday Arts Ltd, The Green School",1038287,Tuit Fees Pupils at Independent Schools,Transfer Payments (Grants & Assistance),4101026373,06/01/2023,12500
Buckinghamshire Council,Children's Services,"Everyday Arts Ltd, The Green School",1038287,Tuit Fees Pupils at Independent Schools,Transfer Payments (Grants & Assistance),4101026374,06/01/2023,15000
Buckinghamshire Council,Children's Services,"Everyday Arts Ltd, The Green School",1038287,Tuit Fees Pupils at Independent Schools,Transfer Payments (Grants & Assistance),4101026375,06/01/2023,10250
Buckinghamshire Council,Deputy Chief Executive,Language Link Plus Ltd,1038347,Legal Fees,Supplies and Services,4101023603,06/01/2023,1531.15
Buckinghamshire Council,Adults and Health,Topkare Limited,1038624,Domiciliary care - perm - other,Agency (third party payments) & Contribs,7002976974,06/01/2023,1668
Buckinghamshire Council,Adults and Health,Topkare Limited,1038624,Domiciliary care - perm - other,Agency (third party payments) & Contribs,7002976974,06/01/2023,-0.04
Buckinghamshire Council,Adults and Health,Topkare Limited,1038624,Domiciliary care - perm - other,Agency (third party payments) & Contribs,7002976975,06/01/2023,1893.42
Buckinghamshire Council,Adults and Health,Topkare Limited,1038624,Domiciliary care - perm - other,Agency (third party payments) & Contribs,7002976975,06/01/2023,-225.46
Buckinghamshire Council,Adults and Health,Topkare Limited,1038624,Domiciliary care - perm - other,Agency (third party payments) & Contribs,7002976976,06/01/2023,2043.55
Buckinghamshire Council,Adults and Health,Topkare Limited,1038624,Domiciliary care - perm - other,Agency (third party payments) & Contribs,7002976976,06/01/2023,1985.5
Buckinghamshire Council,Adults and Health,Topkare Limited,1038624,Domiciliary care - perm - other,Agency (third party payments) & Contribs,7002976976,06/01/2023,-478.37
Buckinghamshire Council,Adults and Health,Topkare Limited,1038624,Domiciliary care - perm - other,Agency (third party payments) & Contribs,7002976977,06/01/2023,1299.44
Buckinghamshire Council,Adults and Health,Topkare Limited,1038624,Domiciliary care - perm - other,Agency (third party payments) & Contribs,7002976977,06/01/2023,1299.44
Buckinghamshire Council,Adults and Health,Topkare Limited,1038624,Domiciliary care - perm - other,Agency (third party payments) & Contribs,7002976977,06/01/2023,-489.64
Buckinghamshire Council,Adults and Health,Topkare Limited,1038624,Domiciliary care - perm - other,Agency (third party payments) & Contribs,7002976978,06/01/2023,1711.57
Buckinghamshire Council,Adults and Health,Topkare Limited,1038624,Domiciliary care - perm - other,Agency (third party payments) & Contribs,7002976978,06/01/2023,1711.57
Buckinghamshire Council,Adults and Health,Topkare Limited,1038624,Domiciliary care - perm - other,Agency (third party payments) & Contribs,7002976978,06/01/2023,-378.42
Buckinghamshire Council,Adults and Health,Topkare Limited,1038624,Domiciliary care - perm - other,Agency (third party payments) & Contribs,7002976979,06/01/2023,1850.46
Buckinghamshire Council,Adults and Health,Topkare Limited,1038624,Domiciliary care - perm - other,Agency (third party payments) & Contribs,7002976979,06/01/2023,1067.08
Buckinghamshire Council,Adults and Health,Topkare Limited,1038624,Domiciliary care - perm - other,Agency (third party payments) & Contribs,7002976979,06/01/2023,4532
Buckinghamshire Council,Adults and Health,Topkare Limited,1038624,Domiciliary care - perm - other,Agency (third party payments) & Contribs,7002976979,06/01/2023,-203.14
Buckinghamshire Council,Adults and Health,Topkare Limited,1038624,Domiciliary care - perm - other,Agency (third party payments) & Contribs,7002976980,06/01/2023,1689.94
Buckinghamshire Council,Adults and Health,Topkare Limited,1038624,Domiciliary care - perm - other,Agency (third party payments) & Contribs,7002976980,06/01/2023,1689.94
Buckinghamshire Council,Adults and Health,Topkare Limited,1038624,Domiciliary care - perm - other,Agency (third party payments) & Contribs,7002976980,06/01/2023,-397.88
Buckinghamshire Council,Adults and Health,Topkare Limited,1038624,Domiciliary care - perm - other,Agency (third party payments) & Contribs,7002976981,06/01/2023,1850.46
Buckinghamshire Council,Adults and Health,Topkare Limited,1038624,Domiciliary care - perm - other,Agency (third party payments) & Contribs,7002976981,06/01/2023,-202.94
Buckinghamshire Council,Adults and Health,Topkare Limited,1038624,Domiciliary care - perm - other,Agency (third party payments) & Contribs,7002976982,06/01/2023,5310.68
Buckinghamshire Council,Adults and Health,Topkare Limited,1038624,Domiciliary care - perm - other,Agency (third party payments) & Contribs,7002976982,06/01/2023,0.08
Buckinghamshire Council,Adults and Health,Topkare Limited,1038624,Domiciliary care - perm - other,Agency (third party payments) & Contribs,7002976983,06/01/2023,1899.44
Buckinghamshire Council,Adults and Health,Topkare Limited,1038624,Domiciliary care - perm - other,Agency (third party payments) & Contribs,7002976983,06/01/2023,1563.44
Buckinghamshire Council,Adults and Health,Topkare Limited,1038624,Domiciliary care - perm - other,Agency (third party payments) & Contribs,7002976983,06/01/2023,-339.48
Buckinghamshire Council,Adults and Health,Topkare Limited,1038624,Domiciliary care - perm - other,Agency (third party payments) & Contribs,7002976984,06/01/2023,1084.58
Buckinghamshire Council,Adults and Health,Topkare Limited,1038624,Domiciliary care - perm - other,Agency (third party payments) & Contribs,7002976984,06/01/2023,1084.58
Buckinghamshire Council,Adults and Health,Topkare Limited,1038624,Domiciliary care - perm - other,Agency (third party payments) & Contribs,7002976984,06/01/2023,-262.64
Buckinghamshire Council,Adults and Health,Topkare Limited,1038624,Domiciliary care - perm - other,Agency (third party payments) & Contribs,7002976985,06/01/2023,2051.41
Buckinghamshire Council,Adults and Health,Topkare Limited,1038624,Domiciliary care - perm - other,Agency (third party payments) & Contribs,7002976985,06/01/2023,2051.41
Buckinghamshire Council,Adults and Health,Topkare Limited,1038624,Domiciliary care - perm - other,Agency (third party payments) & Contribs,7002976985,06/01/2023,-453.42
Buckinghamshire Council,Adults and Health,Topkare Limited,1038624,Domiciliary care - perm - other,Agency (third party payments) & Contribs,7002976986,06/01/2023,262.8
Buckinghamshire Council,Adults and Health,Topkare Limited,1038624,Domiciliary care - perm - other,Agency (third party payments) & Contribs,7002976986,06/01/2023,3430.14
Buckinghamshire Council,Adults and Health,Topkare Limited,1038624,Domiciliary care - perm - other,Agency (third party payments) & Contribs,7002976986,06/01/2023,2940.94
Buckinghamshire Council,Adults and Health,Topkare Limited,1038624,Domiciliary care - perm - other,Agency (third party payments) & Contribs,7002976986,06/01/2023,126
Buckinghamshire Council,Adults and Health,Topkare Limited,1038624,Domiciliary care - perm - other,Agency (third party payments) & Contribs,7002976986,06/01/2023,-641.8
Buckinghamshire Council,Adults and Health,Topkare Limited,1038624,Domiciliary care - perm - other,Agency (third party payments) & Contribs,7002976987,06/01/2023,876.66
Buckinghamshire Council,Adults and Health,Topkare Limited,1038624,Domiciliary care - perm - other,Agency (third party payments) & Contribs,7002976987,06/01/2023,876.66
Buckinghamshire Council,Adults and Health,Topkare Limited,1038624,Domiciliary care - perm - other,Agency (third party payments) & Contribs,7002976987,06/01/2023,-204.64
Buckinghamshire Council,Adults and Health,Topkare Limited,1038624,Domiciliary care - perm - other,Agency (third party payments) & Contribs,7002976988,06/01/2023,4532
Buckinghamshire Council,Adults and Health,Topkare Limited,1038624,Domiciliary care - perm - other,Agency (third party payments) & Contribs,7002976988,06/01/2023,0.08
Buckinghamshire Council,Adults and Health,Topkare Limited,1038624,Domiciliary care - perm - other,Agency (third party payments) & Contribs,7002976989,06/01/2023,1689.94
Buckinghamshire Council,Adults and Health,Topkare Limited,1038624,Domiciliary care - perm - other,Agency (third party payments) & Contribs,7002976989,06/01/2023,1689.94
Buckinghamshire Council,Adults and Health,Topkare Limited,1038624,Domiciliary care - perm - other,Agency (third party payments) & Contribs,7002976989,06/01/2023,-398.16
Buckinghamshire Council,Adults and Health,Topkare Limited,1038624,Domiciliary care - perm - other,Agency (third party payments) & Contribs,7002976990,06/01/2023,5176
Buckinghamshire Council,Adults and Health,Topkare Limited,1038624,Domiciliary care - perm - other,Agency (third party payments) & Contribs,7002976990,06/01/2023,0.08
Buckinghamshire Council,Adults and Health,Topkare Limited,1038624,Domiciliary care - perm - other,Agency (third party payments) & Contribs,7002976991,06/01/2023,1588.2
Buckinghamshire Council,Adults and Health,Topkare Limited,1038624,Domiciliary care - perm - other,Agency (third party payments) & Contribs,7002976991,06/01/2023,1588.2
Buckinghamshire Council,Adults and Health,Topkare Limited,1038624,Domiciliary care - perm - other,Agency (third party payments) & Contribs,7002976991,06/01/2023,-371.64
Buckinghamshire Council,Adults and Health,Topkare Limited,1038624,Domiciliary care - perm - other,Agency (third party payments) & Contribs,7002976993,06/01/2023,771.57
Buckinghamshire Council,Adults and Health,Topkare Limited,1038624,Domiciliary care - perm - other,Agency (third party payments) & Contribs,7002976993,06/01/2023,-15.57
Buckinghamshire Council,"Planning, Growth & Sustainability",Airways Aero Associations Ltd,1039071,Service Charge,Controllable Premises,4101026438,06/01/2023,6096.86
Buckinghamshire Council,Deputy Chief Executive,DNA Legal,1039343,Legal Fees,Supplies and Services,4101023621,06/01/2023,932
Buckinghamshire Council,Adults and Health,MIC Healthcaresolutions Ltd,1039526,Domiciliary care - perm - other,Agency (third party payments) & Contribs,7002976997,06/01/2023,1405.44
Buckinghamshire Council,Adults and Health,MIC Healthcaresolutions Ltd,1039526,Domiciliary care - perm - other,Agency (third party payments) & Contribs,7002976997,06/01/2023,-22.4
Buckinghamshire Council,Adults and Health,MIC Healthcaresolutions Ltd,1039526,Domiciliary care - perm - other,Agency (third party payments) & Contribs,7002976998,06/01/2023,1083.96
Buckinghamshire Council,Adults and Health,MIC Healthcaresolutions Ltd,1039526,Domiciliary care - perm - other,Agency (third party payments) & Contribs,7002976998,06/01/2023,1552.44
Buckinghamshire Council,Adults and Health,MIC Healthcaresolutions Ltd,1039526,Domiciliary care - perm - other,Agency (third party payments) & Contribs,7002976998,06/01/2023,257.13
Buckinghamshire Council,Adults and Health,MIC Healthcaresolutions Ltd,1039526,Domiciliary care - perm - other,Agency (third party payments) & Contribs,7002976998,06/01/2023,-1364.29
Buckinghamshire Council,Adults and Health,Bucks Minibus Travel Ltd (t/a Swan,1039661,Transport - Other Care - external,Transport,4101026264,06/01/2023,3002.5
Buckinghamshire Council,Children's Services,"Workskills Education Ltd, Edith Kay",1039969,Tuit Fees Pupils at Independent Schools,Transfer Payments (Grants & Assistance),4101026263,06/01/2023,27769.22
Buckinghamshire Council,Adults and Health,Caremark (Three Rivers & Chiltern),1039978,Domiciliary care - perm - other,Agency (third party payments) & Contribs,7002977003,06/01/2023,1352.96
Buckinghamshire Council,Adults and Health,Caremark (Three Rivers & Chiltern),1039978,Domiciliary care - perm - other,Agency (third party payments) & Contribs,7002977003,06/01/2023,-833.52
Buckinghamshire Council,Adults and Health,Caremark (Three Rivers & Chiltern),1039978,Domiciliary care - perm - other,Agency (third party payments) & Contribs,7002977005,06/01/2023,1691.2
Buckinghamshire Council,Adults and Health,Caremark (Three Rivers & Chiltern),1039978,Domiciliary care - perm - other,Agency (third party payments) & Contribs,7002977005,06/01/2023,1691.2
Buckinghamshire Council,Adults and Health,Caremark (Three Rivers & Chiltern),1039978,Domiciliary care - perm - other,Agency (third party payments) & Contribs,7002977005,06/01/2023,-434.88
Buckinghamshire Council,Adults and Health,Caremark (Three Rivers & Chiltern),1039978,Domiciliary care - perm - other,Agency (third party payments) & Contribs,7002977006,06/01/2023,676.48
Buckinghamshire Council,Adults and Health,Connect 2 Flexicare Ltd,1040000,Domiciliary care - perm - other,Agency (third party payments) & Contribs,7002977008,06/01/2023,7105
Buckinghamshire Council,Adults and Health,Connect 2 Flexicare Ltd,1040000,Domiciliary care - perm - other,Agency (third party payments) & Contribs,7002977008,06/01/2023,-665
Buckinghamshire Council,Children's Services,County Private Client Ltd,1040216,Leaving Care - Rent,Transfer Payments (Grants & Assistance),4101026315,06/01/2023,1566
Buckinghamshire Council,Deputy Chief Executive,Hillingdon Law Centre,1040795,Legal Fees,Supplies and Services,4101024137,06/01/2023,750
Buckinghamshire Council,Deputy Chief Executive,Hillingdon Law Centre,1040795,Legal Fees,Supplies and Services,4101024137,06/01/2023,2359
Buckinghamshire Council,"Planning, Growth & Sustainability",Tile Hill Interim & Executive Ltd,1041086,Staff Advertising,Controllable Employees,4101025054,06/01/2023,15510
Buckinghamshire Council,Children's Services,Capital Staffing Services Ltd,1041128,Sec 17: Domiciliary Care,Agency (third party payments) & Contribs,7002968220,06/01/2023,216
Buckinghamshire Council,Children's Services,Capital Staffing Services Ltd,1041128,Sec 17: Domiciliary Care,Agency (third party payments) & Contribs,7002968220,06/01/2023,216
Buckinghamshire Council,Children's Services,Capital Staffing Services Ltd,1041128,Sec 17: Domiciliary Care,Agency (third party payments) & Contribs,7002968220,06/01/2023,432
Buckinghamshire Council,Children's Services,Capital Staffing Services Ltd,1041128,Sec 17: Domiciliary Care,Agency (third party payments) & Contribs,7002968220,06/01/2023,108
Buckinghamshire Council,Children's Services,Capital Staffing Services Ltd,1041128,Sec 17: Domiciliary Care,Agency (third party payments) & Contribs,7002968220,06/01/2023,108
Buckinghamshire Council,Children's Services,Capital Staffing Services Ltd,1041128,Sec 17: Domiciliary Care,Agency (third party payments) & Contribs,7002968220,06/01/2023,216
Buckinghamshire Council,Adults and Health,Pai Healthcare Ltd,1041224,Domiciliary care - perm - other,Agency (third party payments) & Contribs,7002977010,06/01/2023,882
Buckinghamshire Council,Adults and Health,Pai Healthcare Ltd,1041224,Domiciliary care - perm - other,Agency (third party payments) & Contribs,7002977011,06/01/2023,1029
Buckinghamshire Council,Adults and Health,Pai Healthcare Ltd,1041224,Domiciliary care - perm - other,Agency (third party payments) & Contribs,7002977011,06/01/2023,1029
Buckinghamshire Council,Adults and Health,Pai Healthcare Ltd,1041224,Domiciliary care - perm - other,Agency (third party payments) & Contribs,7002977012,06/01/2023,882
Buckinghamshire Council,Adults and Health,Pai Healthcare Ltd,1041224,Domiciliary care - perm - other,Agency (third party payments) & Contribs,7002977013,06/01/2023,1176
Buckinghamshire Council,Adults and Health,Pai Healthcare Ltd,1041224,Domiciliary care - perm - other,Agency (third party payments) & Contribs,7002977013,06/01/2023,1176
Buckinghamshire Council,Adults and Health,Pai Healthcare Ltd,1041224,Domiciliary care - perm - other,Agency (third party payments) & Contribs,7002977014,06/01/2023,4000
Buckinghamshire Council,Adults and Health,Pai Healthcare Ltd,1041224,Domiciliary care - perm - other,Agency (third party payments) & Contribs,7002977015,06/01/2023,1323
Buckinghamshire Council,Adults and Health,Pai Healthcare Ltd,1041224,Domiciliary care - perm - other,Agency (third party payments) & Contribs,7002977015,06/01/2023,-330.75
Buckinghamshire Council,Adults and Health,Pai Healthcare Ltd,1041224,Domiciliary care - perm - other,Agency (third party payments) & Contribs,7002977017,06/01/2023,882
Buckinghamshire Council,Adults and Health,Pai Healthcare Ltd,1041224,Domiciliary care - perm - other,Agency (third party payments) & Contribs,7002977018,06/01/2023,1323
Buckinghamshire Council,Adults and Health,Pai Healthcare Ltd,1041224,Domiciliary care - perm - other,Agency (third party payments) & Contribs,7002977018,06/01/2023,1323
Buckinghamshire Council,Adults and Health,Pai Healthcare Ltd,1041224,Domiciliary care - perm - other,Agency (third party payments) & Contribs,7002977019,06/01/2023,1176
Buckinghamshire Council,Adults and Health,Pai Healthcare Ltd,1041224,Domiciliary care - perm - other,Agency (third party payments) & Contribs,7002977020,06/01/2023,966
Buckinghamshire Council,Adults and Health,Pai Healthcare Ltd,1041224,Domiciliary care - perm - other,Agency (third party payments) & Contribs,7002977021,06/01/2023,504
Buckinghamshire Council,Adults and Health,Pai Healthcare Ltd,1041224,Domiciliary care - perm - other,Agency (third party payments) & Contribs,7002977021,06/01/2023,504
Buckinghamshire Council,Planning Growth & Sustainability,ADEPT,1041304,Grants (Capital Expenditure),Capital - Expenditure -Controllable,4101026448,06/01/2023,250000
Buckinghamshire Council,Adults and Health,WR Care Services Limited,1041724,Domiciliary care - perm - other,Agency (third party payments) & Contribs,7002977022,06/01/2023,1575
Buckinghamshire Council,Adults and Health,WR Care Services Limited,1041724,Domiciliary care - perm - other,Agency (third party payments) & Contribs,7002977022,06/01/2023,1323
Buckinghamshire Council,Adults and Health,WR Care Services Limited,1041724,Domiciliary care - perm - other,Agency (third party payments) & Contribs,7002977022,06/01/2023,-590.8
Buckinghamshire Council,Adults and Health,WR Care Services Limited,1041724,Domiciliary care - perm - other,Agency (third party payments) & Contribs,7002977023,06/01/2023,924
Buckinghamshire Council,Adults and Health,WR Care Services Limited,1041724,Domiciliary care - perm - other,Agency (third party payments) & Contribs,7002977023,06/01/2023,588
Buckinghamshire Council,Adults and Health,WR Care Services Limited,1041724,Domiciliary care - perm - other,Agency (third party payments) & Contribs,7002977023,06/01/2023,-317.2
Buckinghamshire Council,Adults and Health,WR Care Services Limited,1041724,Domiciliary care - perm - other,Agency (third party payments) & Contribs,7002977024,06/01/2023,588
Buckinghamshire Council,Adults and Health,WR Care Services Limited,1041724,Domiciliary care - perm - other,Agency (third party payments) & Contribs,7002977024,06/01/2023,-11.2
Buckinghamshire Council,Adults and Health,WR Care Services Limited,1041724,Domiciliary care - perm - other,Agency (third party payments) & Contribs,7002977025,06/01/2023,1029
Buckinghamshire Council,Adults and Health,WR Care Services Limited,1041724,Domiciliary care - perm - other,Agency (third party payments) & Contribs,7002977025,06/01/2023,-19.6
Buckinghamshire Council,Adults and Health,WR Care Services Limited,1041724,Domiciliary care - perm - other,Agency (third party payments) & Contribs,7002977027,06/01/2023,1176
Buckinghamshire Council,Adults and Health,WR Care Services Limited,1041724,Domiciliary care - perm - other,Agency (third party payments) & Contribs,7002977027,06/01/2023,1176
Buckinghamshire Council,Adults and Health,WR Care Services Limited,1041724,Domiciliary care - perm - other,Agency (third party payments) & Contribs,7002977027,06/01/2023,-44.8
Buckinghamshire Council,Adults and Health,WR Care Services Limited,1041724,Domiciliary care - perm - other,Agency (third party payments) & Contribs,7002977028,06/01/2023,1323
Buckinghamshire Council,Adults and Health,WR Care Services Limited,1041724,Domiciliary care - perm - other,Agency (third party payments) & Contribs,7002977028,06/01/2023,-25.2
Buckinghamshire Council,Adults and Health,WR Care Services Limited,1041724,Domiciliary care - perm - other,Agency (third party payments) & Contribs,7002977029,06/01/2023,441
Buckinghamshire Council,Adults and Health,WR Care Services Limited,1041724,Domiciliary care - perm - other,Agency (third party payments) & Contribs,7002977029,06/01/2023,441
Buckinghamshire Council,Adults and Health,WR Care Services Limited,1041724,Domiciliary care - perm - other,Agency (third party payments) & Contribs,7002977029,06/01/2023,-305.2
Buckinghamshire Council,Adults and Health,WR Care Services Limited,1041724,Domiciliary care - perm - other,Agency (third party payments) & Contribs,7002977030,06/01/2023,1176
Buckinghamshire Council,Adults and Health,WR Care Services Limited,1041724,Domiciliary care - perm - other,Agency (third party payments) & Contribs,7002977030,06/01/2023,1176
Buckinghamshire Council,Adults and Health,WR Care Services Limited,1041724,Domiciliary care - perm - other,Agency (third party payments) & Contribs,7002977030,06/01/2023,-539.2
Buckinghamshire Council,Adults and Health,WR Care Services Limited,1041724,Domiciliary care - perm - other,Agency (third party payments) & Contribs,7002977031,06/01/2023,735
Buckinghamshire Council,Adults and Health,WR Care Services Limited,1041724,Domiciliary care - perm - other,Agency (third party payments) & Contribs,7002977031,06/01/2023,-158.2
Buckinghamshire Council,Adults and Health,WR Care Services Limited,1041724,Domiciliary care - perm - other,Agency (third party payments) & Contribs,7002977032,06/01/2023,1344
Buckinghamshire Council,Adults and Health,WR Care Services Limited,1041724,Domiciliary care - perm - other,Agency (third party payments) & Contribs,7002977032,06/01/2023,-25.6
Buckinghamshire Council,Adults and Health,WR Care Services Limited,1041724,Domiciliary care - perm - other,Agency (third party payments) & Contribs,7002977033,06/01/2023,1176
Buckinghamshire Council,Adults and Health,WR Care Services Limited,1041724,Domiciliary care - perm - other,Agency (third party payments) & Contribs,7002977033,06/01/2023,-22.4
Buckinghamshire Council,Adults and Health,WR Care Services Limited,1041724,Domiciliary care - perm - other,Agency (third party payments) & Contribs,7002977034,06/01/2023,1029
Buckinghamshire Council,Adults and Health,WR Care Services Limited,1041724,Domiciliary care - perm - other,Agency (third party payments) & Contribs,7002977034,06/01/2023,1029
Buckinghamshire Council,Adults and Health,WR Care Services Limited,1041724,Domiciliary care - perm - other,Agency (third party payments) & Contribs,7002977034,06/01/2023,-39.2
Buckinghamshire Council,Adults and Health,Walfinch Mid & South Buckinghamshir,1041765,Domiciliary care - perm - other,Agency (third party payments) & Contribs,7002977035,06/01/2023,453.2
Buckinghamshire Council,Adults and Health,Walfinch Mid & South Buckinghamshir,1041765,Domiciliary care - perm - other,Agency (third party payments) & Contribs,7002977035,06/01/2023,453.2
Buckinghamshire Council,Adults and Health,Walfinch Mid & South Buckinghamshir,1041765,Domiciliary care - perm - other,Agency (third party payments) & Contribs,7002977036,06/01/2023,1268.96
Buckinghamshire Council,Adults and Health,Walfinch Mid & South Buckinghamshir,1041765,Domiciliary care - perm - other,Agency (third party payments) & Contribs,7002977036,06/01/2023,1268.96
Buckinghamshire Council,Adults and Health,Walfinch Mid & South Buckinghamshir,1041765,Domiciliary care - perm - other,Agency (third party payments) & Contribs,7002977036,06/01/2023,-1267.96
Buckinghamshire Council,Adults and Health,Walfinch Mid & South Buckinghamshir,1041765,Domiciliary care - perm - other,Agency (third party payments) & Contribs,7002977037,06/01/2023,634.48
Buckinghamshire Council,Adults and Health,Walfinch Mid & South Buckinghamshir,1041765,Domiciliary care - perm - other,Agency (third party payments) & Contribs,7002977039,06/01/2023,951.72
Buckinghamshire Council,Communities,Lee Snashfold Crematoria Management,1041917,Agency Worker,Controllable Employees,4101023238,06/01/2023,1544.1
Buckinghamshire Council,Children's Services,Aran Hall School,1042016,Tuit Fees Pupils at Independent Schools,Transfer Payments (Grants & Assistance),4101026339,06/01/2023,37500
Buckinghamshire Council,Children's Services,Aran Hall School,1042016,Maintenance & Attendance F - Residential,Agency (third party payments) & Contribs,4101026339,06/01/2023,37500
Buckinghamshire Council,Children's Services,Black Roses Support,1042101,Sec 20/31: Financial Assistance,Transfer Payments (Grants & Assistance),4101026084,06/01/2023,550.25
Buckinghamshire Council,Children's Services,Black Roses Support,1042101,Sec 20/31: Financial Assistance,Transfer Payments (Grants & Assistance),4101026085,06/01/2023,1065.75
Buckinghamshire Council,Children's Services,Black Roses Support,1042101,Sec 20/31: Financial Assistance,Transfer Payments (Grants & Assistance),4101026086,06/01/2023,916.55
Buckinghamshire Council,Children's Services,Black Roses Support,1042101,Sec 20/31: Financial Assistance,Transfer Payments (Grants & Assistance),4101026087,06/01/2023,668.4
Buckinghamshire Council,Adults and Health,Innovative Start,1042166,Domiciliary care - perm - other,Agency (third party payments) & Contribs,7002977040,06/01/2023,1394.96
Buckinghamshire Council,Adults and Health,Innovative Start,1042166,Domiciliary care - perm - other,Agency (third party payments) & Contribs,7002977040,06/01/2023,1394.96
Buckinghamshire Council,Adults and Health,Innovative Start,1042166,Domiciliary care - perm - other,Agency (third party payments) & Contribs,7002977040,06/01/2023,1
Buckinghamshire Council,Adults and Health,Innovative Start,1042166,Domiciliary care - perm - other,Agency (third party payments) & Contribs,7002977041,06/01/2023,930.16
Buckinghamshire Council,Adults and Health,Innovative Start,1042166,Domiciliary care - perm - other,Agency (third party payments) & Contribs,7002977041,06/01/2023,0.16
Buckinghamshire Council,Adults and Health,Innovative Start,1042166,Domiciliary care - perm - other,Agency (third party payments) & Contribs,7002977042,06/01/2023,775.04
Buckinghamshire Council,Adults and Health,Innovative Start,1042166,Domiciliary care - perm - other,Agency (third party payments) & Contribs,7002977042,06/01/2023,0.2
Buckinghamshire Council,Adults and Health,Innovative Start,1042166,Domiciliary care - perm - other,Agency (third party payments) & Contribs,7002977044,06/01/2023,775.04
Buckinghamshire Council,Adults and Health,Innovative Start,1042166,Domiciliary care - perm - other,Agency (third party payments) & Contribs,7002977044,06/01/2023,0.2
Buckinghamshire Council,Adults and Health,Innovative Start,1042166,Domiciliary care - perm - other,Agency (third party payments) & Contribs,7002977045,06/01/2023,775.04
Buckinghamshire Council,Adults and Health,Innovative Start,1042166,Domiciliary care - perm - other,Agency (third party payments) & Contribs,7002977045,06/01/2023,0.2
Buckinghamshire Council,Adults and Health,Innovative Start,1042166,Domiciliary care - perm - other,Agency (third party payments) & Contribs,7002977046,06/01/2023,619.92
Buckinghamshire Council,Adults and Health,Innovative Start,1042166,Domiciliary care - perm - other,Agency (third party payments) & Contribs,7002977046,06/01/2023,0.28
Buckinghamshire Council,Adults and Health,Innovative Start,1042166,Domiciliary care - perm - other,Agency (third party payments) & Contribs,7002977047,06/01/2023,1550.08
Buckinghamshire Council,Adults and Health,Innovative Start,1042166,Domiciliary care - perm - other,Agency (third party payments) & Contribs,7002977047,06/01/2023,1550.08
Buckinghamshire Council,Adults and Health,Innovative Start,1042166,Domiciliary care - perm - other,Agency (third party payments) & Contribs,7002977047,06/01/2023,0.84
Buckinghamshire Council,Adults and Health,Innovative Start,1042166,Domiciliary care - perm - other,Agency (third party payments) & Contribs,7002977048,06/01/2023,619.92
Buckinghamshire Council,Adults and Health,Innovative Start,1042166,Domiciliary care - perm - other,Agency (third party payments) & Contribs,7002977048,06/01/2023,0.28
Buckinghamshire Council,Adults and Health,Innovative Start,1042166,Domiciliary care - perm - other,Agency (third party payments) & Contribs,7002977049,06/01/2023,775.04
Buckinghamshire Council,Adults and Health,Innovative Start,1042166,Domiciliary care - perm - other,Agency (third party payments) & Contribs,7002977049,06/01/2023,0.2
Buckinghamshire Council,Adults and Health,Innovative Start,1042166,Domiciliary care - perm - other,Agency (third party payments) & Contribs,7002977051,06/01/2023,548.02
Buckinghamshire Council,Adults and Health,Innovative Start,1042166,Domiciliary care - perm - other,Agency (third party payments) & Contribs,7002977051,06/01/2023,548.02
Buckinghamshire Council,Adults and Health,Innovative Start,1042166,Domiciliary care - perm - other,Agency (third party payments) & Contribs,7002977051,06/01/2023,609
Buckinghamshire Council,Adults and Health,Innovative Start,1042166,Domiciliary care - perm - other,Agency (third party payments) & Contribs,7002977051,06/01/2023,609
Buckinghamshire Council,Adults and Health,Innovative Start,1042166,Domiciliary care - perm - other,Agency (third party payments) & Contribs,7002977051,06/01/2023,-76.88
Buckinghamshire Council,Adults and Health,Innovative Start,1042166,Domiciliary care - perm - other,Agency (third party payments) & Contribs,7002977052,06/01/2023,946.58
Buckinghamshire Council,Adults and Health,Innovative Start,1042166,Domiciliary care - perm - other,Agency (third party payments) & Contribs,7002977052,06/01/2023,0.33
Buckinghamshire Council,Children's Services,Panache Care Services,1042549,Sec 20/31: Financial Assistance,Transfer Payments (Grants & Assistance),4101026274,06/01/2023,503.05
Buckinghamshire Council,Resources,AVC Wise Ltd,1042564,Recoverable Expenditure,Supplies and Services,4101026300,06/01/2023,3102.36
Buckinghamshire Council,Adults and Health,Fountain Care,1042630,Domiciliary care - perm - other,Agency (third party payments) & Contribs,7002977055,06/01/2023,1323
Buckinghamshire Council,Adults and Health,Fountain Care,1042630,Domiciliary care - perm - other,Agency (third party payments) & Contribs,7002977055,06/01/2023,1323
Buckinghamshire Council,Adults and Health,Fountain Care,1042630,Domiciliary care - perm - other,Agency (third party payments) & Contribs,7002977055,06/01/2023,-945
Buckinghamshire Council,Adults and Health,Fountain Care,1042630,Domiciliary care - perm - other,Agency (third party payments) & Contribs,7002977057,06/01/2023,588
Buckinghamshire Council,Adults and Health,Fountain Care,1042630,Domiciliary care - perm - other,Agency (third party payments) & Contribs,7002977058,06/01/2023,1323
Buckinghamshire Council,Adults and Health,Fountain Care,1042630,Domiciliary care - perm - other,Agency (third party payments) & Contribs,7002977059,06/01/2023,882
Buckinghamshire Council,Adults and Health,Fountain Care,1042630,Domiciliary care - perm - other,Agency (third party payments) & Contribs,7002977061,06/01/2023,1491
Buckinghamshire Council,Adults and Health,Fountain Care,1042630,Domiciliary care - perm - other,Agency (third party payments) & Contribs,7002977061,06/01/2023,-168
Buckinghamshire Council,Adults and Health,Fountain Care,1042630,Domiciliary care - perm - other,Agency (third party payments) & Contribs,7002977062,06/01/2023,1323
Buckinghamshire Council,Adults and Health,Fountain Care,1042630,Domiciliary care - perm - other,Agency (third party payments) & Contribs,7002977062,06/01/2023,1323
Buckinghamshire Council,Adults and Health,Fountain Care,1042630,Domiciliary care - perm - other,Agency (third party payments) & Contribs,7002977063,06/01/2023,1176
Buckinghamshire Council,Adults and Health,Fountain Care,1042630,Domiciliary care - perm - other,Agency (third party payments) & Contribs,7002977063,06/01/2023,1176
Buckinghamshire Council,Adults and Health,Fountain Care,1042630,Domiciliary care - perm - other,Agency (third party payments) & Contribs,7002977066,06/01/2023,1176
Buckinghamshire Council,Adults and Health,Fountain Care,1042630,Domiciliary care - perm - other,Agency (third party payments) & Contribs,7002977067,06/01/2023,1029
Buckinghamshire Council,Adults and Health,Fountain Care,1042630,Domiciliary care - perm - other,Agency (third party payments) & Contribs,7002977069,06/01/2023,882
Buckinghamshire Council,Adults and Health,Fountain Care,1042630,Domiciliary care - perm - other,Agency (third party payments) & Contribs,7002977069,06/01/2023,882
Buckinghamshire Council,Adults and Health,Fountain Care,1042630,Domiciliary care - perm - other,Agency (third party payments) & Contribs,7002977070,06/01/2023,1470
Buckinghamshire Council,Adults and Health,Fountain Care,1042630,Domiciliary care - perm - other,Agency (third party payments) & Contribs,7002977070,06/01/2023,1470
Buckinghamshire Council,Adults and Health,Fountain Care,1042630,Domiciliary care - perm - other,Agency (third party payments) & Contribs,7002977071,06/01/2023,1176
Buckinghamshire Council,Adults and Health,Fountain Care,1042630,Domiciliary care - perm - other,Agency (third party payments) & Contribs,7002977072,06/01/2023,735
Buckinghamshire Council,Adults and Health,Fountain Care,1042630,Domiciliary care - perm - other,Agency (third party payments) & Contribs,7002977072,06/01/2023,-147
Buckinghamshire Council,Adults and Health,Fountain Care,1042630,Domiciliary care - perm - other,Agency (third party payments) & Contribs,7002977074,06/01/2023,1470
Buckinghamshire Council,Adults and Health,Fountain Care,1042630,Domiciliary care - perm - other,Agency (third party payments) & Contribs,7002977074,06/01/2023,1470
Buckinghamshire Council,Adults and Health,Fountain Care,1042630,Domiciliary care - perm - other,Agency (third party payments) & Contribs,7002977075,06/01/2023,1176
Buckinghamshire Council,Adults and Health,Fountain Care,1042630,Domiciliary care - perm - other,Agency (third party payments) & Contribs,7002977076,06/01/2023,1323
Buckinghamshire Council,Adults and Health,Fountain Care,1042630,Domiciliary care - perm - other,Agency (third party payments) & Contribs,7002977076,06/01/2023,1323
Buckinghamshire Council,Adults and Health,Fountain Care,1042630,Domiciliary care - perm - other,Agency (third party payments) & Contribs,7002977076,06/01/2023,-1323
Buckinghamshire Council,Adults and Health,Fountain Care,1042630,Domiciliary care - perm - other,Agency (third party payments) & Contribs,7002977077,06/01/2023,1323
Buckinghamshire Council,Adults and Health,Fountain Care,1042630,Domiciliary care - perm - other,Agency (third party payments) & Contribs,7002977077,06/01/2023,1323
Buckinghamshire Council,Children's Services,Alderwasley Hall School,1042791,Tuit Fees Pupils at Independent Schools,Transfer Payments (Grants & Assistance),4101026480,06/01/2023,24944.16
Buckinghamshire Council,Children's Services,Alderwasley Hall School,1042791,Maintenance & Attendance F - Residential,Agency (third party payments) & Contribs,4101026480,06/01/2023,24944.17
Buckinghamshire Council,Children's Services,PSM Healthcare Ltd,1043111,Sec 20/31: Financial Assistance,Transfer Payments (Grants & Assistance),4101026140,06/01/2023,990
Buckinghamshire Council,Children's Services,Bucks Physio,1043170,Professional Services (non curriculum) -,Supplies and Services,4101023147,06/01/2023,885
Buckinghamshire Council,Adults and Health,Mayfair Homecare Ltd,1043196,Other Com Care exp (eg pet sitting),Agency (third party payments) & Contribs,4101026154,06/01/2023,2718.72
Buckinghamshire Council,Adults and Health,Mayfair Homecare Ltd,1043196,Other Com Care exp (eg pet sitting),Agency (third party payments) & Contribs,4101026155,06/01/2023,2428.44
Buckinghamshire Council,Adults and Health,Mayfair Homecare Ltd,1043196,Other Com Care exp (eg pet sitting),Agency (third party payments) & Contribs,4101026156,06/01/2023,2647.92
Buckinghamshire Council,Adults and Health,Mayfair Homecare Ltd,1043196,Other Com Care exp (eg pet sitting),Agency (third party payments) & Contribs,4101026157,06/01/2023,2577.12
Buckinghamshire Council,Children's Services,REDACTED,1043531,Professional Services (non curriculum) -,Supplies and Services,4101026200,06/01/2023,3640
Buckinghamshire Council,Children's Services,The London College of Beauty Therap,1043600,College Placements,Agency (third party payments) & Contribs,4101024869,06/01/2023,675
Buckinghamshire Council,Deputy Chief Executive,REDACTED,1043611,Legal Fees,Supplies and Services,4101023855,06/01/2023,541.67
Buckinghamshire Council,Deputy Chief Executive,REDACTED,1043614,Legal Fees,Supplies and Services,4101024063,06/01/2023,650
Buckinghamshire Council,Communities,Farnham Common Community Library,1330719,Grants to External Bodies,Supplies and Services,4101026378,06/01/2023,2000
Buckinghamshire Council,Children's Services,Buckinghamshire Business First,1331867,Service Development,Supplies and Services,4101026472,06/01/2023,750
Buckinghamshire Council,Communities,CHAMBERS ENGINEERING LIMITED,1331940,Repair & Maint of Vehicles & Plant,Transport,4101026241,06/01/2023,884.85
Buckinghamshire Council,Communities,CHAMBERS ENGINEERING LIMITED,1331940,Repair & Maint of Vehicles & Plant,Transport,4101026242,06/01/2023,1210.17
Buckinghamshire Council,Communities,CHAMBERS ENGINEERING LIMITED,1331940,Repair & Maint of Vehicles & Plant,Transport,4101026243,06/01/2023,661.5
